{"text_format":"1","workbook":"xlsx","n_sheets":1,"sheets":["Trouwen Am_totaal"],"not_rendered":{"charts":0,"images":0,"macros":1,"external_links":0,"defined_names":3,"comments":0,"pivot_tables":0},"unopened":[],"bounds":{"document_bytes":16777216,"sheet_cells":100000,"rows_first":2000,"rows_last":500,"rows_between":2000,"halvings":0,"cell_chars":16384,"cell_head_chars":4096},"cells_cut":0,"cells_raw":0,"read":"whole","date_system":"1900"}

{"sheet":"Trouwen Am_totaal","index":0,"n_rows":791,"n_cols":24,"rows_kept":791,"cut":false,"hidden":false,"merged":[[0,17,1,17],[1,7,1,9],[1,11,1,13],[0,7,0,10],[0,11,0,14]]}
[null,null,null,null,"volg-","blz.","akt","ondertrouw",null,null,null,"trouwen",null,null,null,"rol","voornaam","tussen voegsel","achternaam","patroniem","J.M./J.D. van:","wonende","laatst","bijzonderheden"]
["code nr.","nr.","code","kolom","orde",null,"nr.","datum",null,null,"plaats","datum",null,null,"plaats",null,null,null,null,null,"geboren te:",null,"gewoond"]
["deze kolommen worden niet geprint",null,null,null,null,1,2,3,4,5,6,7,8,9,10,11,12,13,14,15,16,17,18,19]
[null," ","T HenB NA 1-II",null,1,98,1,null,null," ",null,30,3,1682,"Heicop","Bruidegom","Hendrick",null,null,"Joosten","Heicop"]
[null,null,"T HenB NA 1-II",null,2,{"$f":"F4","v":98},{"$f":"G4","v":1},null,null,{"$f":"J4","v":" "},{"$f":"K4","v":0},{"$f":"L4","v":30},{"$f":"M4","v":3},1682,{"$f":"O4","v":"Heicop"},"Bruid","Grietjen",null,null,"Hendricks","Heicop"]
[null,null,"T HenB NA 1-II",null,3,98,2,null,null,null,null,6,4,1682,"Heicop","Bruidegom","Wouter",null,null,"Hendriks","Heicop"]
[null,null,"T HenB NA 1-II",null,4,{"$f":"F6","v":98},{"$f":"G6","v":2},null,null,{"$f":"J6","v":0},{"$f":"K6","v":0},{"$f":"L6","v":6},{"$f":"M6","v":4},1682,{"$f":"O6","v":"Heicop"},"Bruid","Annigje",null,null,"Lubberts","Zijderveld"]
[null,null,"T HenB NA 1-II",null,5,98,3,null,null,null,null,23,4,1682,"Heicop","Bruidegom","Jan",null," ","Theunissen","Heicop"]
[null,null,"T HenB NA 1-II",null,6,{"$f":"F8","v":98},{"$f":"G8","v":3},null,null,{"$f":"J8","v":0},{"$f":"K8","v":0},{"$f":"L8","v":23},{"$f":"M8","v":4},1682,{"$f":"O8","v":"Heicop"},"Bruid","Wilmijntje",null,"Peel","Jans","Heicop"]
[null,null,"T HenB NA 1-II",null,7,98,4,null,null,null,null,21,5,1682,"Heicop","Bruidegom","Jan",null,null,"Aelders","Heicop"]
[null,null,"T HenB NA 1-II",null,8,{"$f":"F10","v":98},{"$f":"G10","v":4},null,null,{"$f":"J10","v":0},{"$f":"K10","v":0},{"$f":"L10","v":21},{"$f":"M10","v":5},1682,{"$f":"O10","v":"Heicop"},"Bruid","Lijntje",null,null,"Gerrits","Lexmond"]
[null,null,"T HenB NA 1-II",null,9,98,5,null,null,null,null,11,10,1682,"Heicop","Bruidegom","Gerrit",null,null,"Thomassen","Heicop"]
[null,null,"T HenB NA 1-II",null,10,{"$f":"F12","v":98},{"$f":"G12","v":5},null,null,{"$f":"J12","v":0},{"$f":"K12","v":0},{"$f":"L12","v":11},{"$f":"M12","v":10},1682,{"$f":"O12","v":"Heicop"},"Bruid","Annighjen",null,null,"Fredericks","Heicop"]
[null,null,"T HenB NA 1-II",null,11,98,6,null,null,null,null,26,11,1682,"Heicop","Bruidegom","Peeter",null,"Middelkoop","Jansz","Heicop"]
[null,null,"T HenB NA 1-II",null,12,{"$f":"F14","v":98},{"$f":"G14","v":6},null,null,{"$f":"J14","v":0},{"$f":"K14","v":0},{"$f":"L14","v":26},{"$f":"M14","v":11},1682,{"$f":"O14","v":"Heicop"},"Bruid","Maigjen",null,null,"Gerrits","Heicop"]
[null,null,"T HenB NA 1-II",null,13,98,7,null,null,null,null,15,4,1683,"Heicop","Bruidegom","Gerrit","de","Vos","Willems","Zijderveld"]
[null,null,"T HenB NA 1-II",null,14,{"$f":"F16","v":98},{"$f":"G16","v":7},null,null,{"$f":"J16","v":0},{"$f":"K16","v":0},{"$f":"L16","v":15},{"$f":"M16","v":4},1683,{"$f":"O16","v":"Heicop"},"Bruid","Maria",null,null,"Fredricks","Heicop"]
[null,null,"T HenB NA 1-II",null,15,98,8,null,null,null,null,12,8,1683,"Heicop","Bruidegom","Hendrick","van","Dorsten","Janss","Gorinchem"]
[null,null,"T HenB NA 1-II",null,16,{"$f":"F18","v":98},{"$f":"G18","v":8},null,null,{"$f":"J18","v":0},{"$f":"K18","v":0},{"$f":"L18","v":12},{"$f":"M18","v":8},1683,{"$f":"O18","v":"Heicop"},"Bruid","Roelifje","van","Wijngaarden"," ","Gorinchem"]
[null,null,"T HenB NA 1-II",null,17,98,9,null,null,null,null,22,3,1684,"Heicop","Bruidegom","Jacob",null,null,"Theunissen","Heicop"]
[null,null,"T HenB NA 1-II",null,18,{"$f":"F20","v":98},{"$f":"G20","v":9},null,null,{"$f":"J20","v":0},{"$f":"K20","v":0},{"$f":"L20","v":22},{"$f":"M20","v":3},1684,{"$f":"O20","v":"Heicop"},"Bruid","Lijsje",null,null,"Bastianen","Heicop"]
[null,null,"T HenB NA 1-II",null,19,98,10,null,null,null,null,13,4,1684,"Heicop","Bruidegom","Arien",null,null,"Bastiaans","Laageind Middelkoop"]
[null,null,"T HenB NA 1-II",null,20,{"$f":"F22","v":98},{"$f":"G22","v":10},null,null,{"$f":"J22","v":0},{"$f":"K22","v":0},{"$f":"L22","v":13},{"$f":"M22","v":4},1684,{"$f":"O22","v":"Heicop"},"Bruid","Belighjen",null,null,"Joosten","Heicop"]
[null,null,"T HenB NA 1-II",null,21,98,11,null,null,null,null,27,4,1684,"Heicop","Bruidegom","Celis",null,null,"Hendrikx","Bolgerije"]
[null,null,"T HenB NA 1-II",null,22,{"$f":"F24","v":98},{"$f":"G24","v":11},null,null,{"$f":"J24","v":0},{"$f":"K24","v":0},{"$f":"L24","v":27},{"$f":"M24","v":4},1684,{"$f":"O24","v":"Heicop"},"Bruid","Grietje ",null,null,"Franks",null,null,null,"weduwe van Peter Huijberts"]
[null,null,"T HenB NA 1-II",null,23,98,12,null,null,null,null,27,4,1684,"Heicop","Bruidegom","Willem","t ","Lam","Peters","Meerkerk"]
[null,null,"T HenB NA 1-II",null,24,{"$f":"F26","v":98},{"$f":"G26","v":12},null,null,{"$f":"J26","v":0},{"$f":"K26","v":0},{"$f":"L26","v":27},{"$f":"M26","v":4},1684,{"$f":"O26","v":"Heicop"},"Bruid","Maiken",null,"Cleijn","Cornelis","Heicop"]
[null,null,"T HenB NA 1-II",null,25,99,1,null,null,null,null,2,4,1686,"Heicop","Bruidegom","Jan",null,null,"Adriaensen","Lakerveld"]
[null,null,"T HenB NA 1-II",null,26,{"$f":"F28","v":99},{"$f":"G28","v":1},null,null,{"$f":"J28","v":0},{"$f":"K28","v":0},{"$f":"L28","v":2},{"$f":"M28","v":4},1686,{"$f":"O28","v":"Heicop"},"Bruid","Grietje",null,"Verkaick","Hijmens","Heicop"]
[null,null,"T HenB NA 1-II",null,27,99,2,null,null,null,null,20,3,1687,"Heicop","Bruidegom","Franck",null,null,"Dircksz"," ","Heicop"]
[null,null,"T HenB NA 1-II",null,28,{"$f":"F30","v":99},{"$f":"G30","v":2},null,null,{"$f":"J30","v":0},{"$f":"K30","v":0},{"$f":"L30","v":20},{"$f":"M30","v":3},1687,{"$f":"O30","v":"Heicop"},"Bruid","Neeltjen",null,null,"Cornelis"," ","Heicop"]
[null,null,"T HenB NA 1-II",null,29,99,3,null,null,null,null,1,5,1687,"Heicop","Bruidegom","Barent",null,"Copier","Reijertsz"," ","Heicop"]
[null,null,"T HenB NA 1-II",null,30,{"$f":"F32","v":99},{"$f":"G32","v":3},null,null,{"$f":"J32","v":0},{"$f":"K32","v":0},{"$f":"L32","v":1},{"$f":"M32","v":5},1687,{"$f":"O32","v":"Heicop"},"Bruid","Maeijcke",null,"Oirschot","Peters"," ","Heicop"]
[null,null,"T HenB NA 1-II",null,31,99,4,null,null,null,null,19,6,1687,"Heicop","Bruidegom","Aert",null,null,"Hermense","Zijderveld",null,null,"weduwnaar van Aeltje Gijsberts"]
[null,null,"T HenB NA 1-II",null,32,{"$f":"F34","v":99},{"$f":"G34","v":4},null,null,{"$f":"J34","v":0},{"$f":"K34","v":0},{"$f":"L34","v":19},{"$f":"M34","v":6},1687,{"$f":"O34","v":"Heicop"},"Bruid","Ariaantje",null,null,"Ariaensen","Lakerveld"]
[null,null,"T HenB NA 1-II",null,33,101,1,null,null,null,null,4,12,1687,"Heicop","Bruidegom","Sels",null,null,"Gerrits","Lopik","Heicop",null,"weduwnaar van Annetje Janss"]
[null,null,"T HenB NA 1-II",null,34,{"$f":"F36","v":101},{"$f":"G36","v":1},null,null,{"$f":"J36","v":0},{"$f":"K36","v":0},{"$f":"L36","v":4},{"$f":"M36","v":12},1687,{"$f":"O36","v":"Heicop"},"Bruid","Anneke","van","Andel","Jans","Woudrichem","Heicop"]
[null,null,"T HenB NA 1-II",null,35,101,2,null,null,null,null,6,5,1688,"Heicop","Bruidegom","Willem",null,null,"Frederiks","Heicop","Heicop"]
[null,null,"T HenB NA 1-II",null,36,{"$f":"F38","v":101},{"$f":"G38","v":2},null,null,{"$f":"J38","v":0},{"$f":"K38","v":0},{"$f":"L38","v":6},{"$f":"M38","v":5},1688,{"$f":"O38","v":"Heicop"},"Bruid","Garigje",null,null,"Willems","Heicop","Heicop"]
[null,null,"T HenB NA 1-II",null,37,101,3,null,null,null,null,20,5,1688,"Heicop","Bruidegom","Peter",null,"Oirschot","Cornelissen"," ","Bolgarije"]
[null,null,"T HenB NA 1-II",null,38,{"$f":"F40","v":101},{"$f":"G40","v":3},null,null,{"$f":"J40","v":0},{"$f":"K40","v":0},{"$f":"L40","v":20},{"$f":"M40","v":5},1688,{"$f":"O40","v":"Heicop"},"Bruid","Ariaentje",null,null,"Bastiaenen","Lakerveld","Heicop"]
[null,null,"T HenB NA 1-II",null,39,101,4,null,null,null,null,10,6,1688,"Heicop","Bruidegom","Jan",null,null,"Jacobs","Ameijde","Heicop"]
[null,null,"T HenB NA 1-II",null,40,{"$f":"F42","v":101},{"$f":"G42","v":4},null,null,{"$f":"J42","v":0},{"$f":"K42","v":0},{"$f":"L42","v":10},{"$f":"M42","v":6},1688,{"$f":"O42","v":"Heicop"},"Bruid","Hendrikje",null,null,"Peters","Lakerveld","Heicop"]
[null,null,"T HenB NA 1-II",null,41,101,5,null,null,null,null,"??",10,1688,"Heicop","Bruidegom","Jan",null,null,"Gijsberts",null,null,null,"Weduwnaar"]
[null,null,"T HenB NA 1-II",null,42,{"$f":"F44","v":101},{"$f":"G44","v":5},null,null,{"$f":"J44","v":0},{"$f":"K44","v":0},{"$f":"L44","v":"??"},{"$f":"M44","v":10},1688,{"$f":"O44","v":"Heicop"},"Bruid","Trijntje"]
[null,null,"T HenB NA 1-II",null,43,101,6,null,null,null,null,24,2,1689,"Heicop","Bruidegom","Joost",null,null,"Adriaensen"," ","Heicop"]
[null,null,"T HenB NA 1-II",null,44,{"$f":"F46","v":101},{"$f":"G46","v":6},null,null,{"$f":"J46","v":0},{"$f":"K46","v":0},{"$f":"L46","v":24},{"$f":"M46","v":2},1689,{"$f":"O46","v":"Heicop"},"Bruid","Emmigje","de","Vos","Willems"," ","Heicop",null,"Weduwe van Jan Willems Broklant"]
[null,null,"T HenB NA 1-II",null,45,101,7,null,null,null,null,13,3,1689,"Heicop","Bruidegom","Daem","de","Vos","Willems"," ","Heicop"]
[null,null,"T HenB NA 1-II",null,46,{"$f":"F48","v":101},{"$f":"G48","v":7},null,null,{"$f":"J48","v":0},{"$f":"K48","v":0},{"$f":"L48","v":13},{"$f":"M48","v":3},1689,{"$f":"O48","v":"Heicop"},"Bruid","Annigje",null,null,"Frederiks"," ","Heicop",null,"Weduwe van Gerrit Thomasz"]
[null,null,"T HenB NA 1-II",null,47,101,8,null,null,null,null,"??",4,1689,"Heicop","Bruidegom","Kornelis",null,"Peel","Jans","Heicop","Heicop"]
[null,null,"T HenB NA 1-II",null,48,{"$f":"F50","v":101},{"$f":"G50","v":8},null,null,{"$f":"J50","v":0},{"$f":"K50","v":0},{"$f":"L50","v":"??"},{"$f":"M50","v":4},1689,{"$f":"O50","v":"Heicop"},"Bruid","Maeycke",null,null,"Gerrits","Heicop","Heicop"]
[null,null,"T HenB NA 1-II",null,49,101,9,null,null,null,null,24,11,1689,"Heicop","Bruidegom","Mathijs",null,null,"Teunissen","De Donk"]
[null,null,"T HenB NA 1-II",null,50,{"$f":"F52","v":101},{"$f":"G52","v":9},null,null,{"$f":"J52","v":0},{"$f":"K52","v":0},{"$f":"L52","v":24},{"$f":"M52","v":11},1689,{"$f":"O52","v":"Heicop"},"Bruid","Annigje",null,null,"Dirke","Heicop","Heicop"]
[null,null,"T HenB NA 1-II",null,51,101,10,null,null,null,null,6,4,1690,"Heicop","Bruidegom","Justus Bernhardus",null,"Barkhusen",null,null,null,null,"conselitar van sijn excel. den heer grave van der Lippe"]
[null,null,"T HenB NA 1-II",null,52,{"$f":"F54","v":101},{"$f":"G54","v":10},null,null,{"$f":"J54","v":0},{"$f":"K54","v":0},{"$f":"L54","v":6},{"$f":"M54","v":4},1690,{"$f":"O54","v":"Heicop"},"Bruid","Johanna Clara","van","Coegelen Dortmondt",null,"Vianen","Vianen"]
[null,null,"T HenB NA 1-II",null,53,101,11,null,null,null,null,4,5,1690,"Heicop","Bruidegom","Gerrit",null,null,"Hendriksen","Heicop","Heicop"]
[null,null,"T HenB NA 1-II",null,54,{"$f":"F56","v":101},{"$f":"G56","v":11},null,null,{"$f":"J56","v":0},{"$f":"K56","v":0},{"$f":"L56","v":4},{"$f":"M56","v":5},1690,{"$f":"O56","v":"Heicop"},"Bruid","Aaltje",null,"Stout","Jans","Heicop","Heicop"]
[null,null,"T HenB NA 1-II",null,55,101,12,null,null,null,null,1,6,1690,"Heicop","Bruidegom","Jan",null,null,"Claessen","Heicop","Heicop"]
[null,null,"T HenB NA 1-II",null,56,{"$f":"F58","v":101},{"$f":"G58","v":12},null,null,{"$f":"J58","v":0},{"$f":"K58","v":0},{"$f":"L58","v":1},{"$f":"M58","v":6},1690,{"$f":"O58","v":"Heicop"},"Bruid","Annigje",null,null,"Gerrits","Heicop","Heicop"]
[null,null,"T HenB NA 1-II",null,57,101,13,null,null,null,null,22,6,1690,"Heicop","Bruidegom","Celis",null,null,"Hendrikse","Heicop","Heicop",null,"Weduwnaar van Grietje Franken"]
[null,null,"T HenB NA 1-II",null,58,{"$f":"F60","v":101},{"$f":"G60","v":13},null,null,{"$f":"J60","v":0},{"$f":"K60","v":0},{"$f":"L60","v":22},{"$f":"M60","v":6},1690,{"$f":"O60","v":"Heicop"},"Bruid","Geertruy",null,null,"Aertsen","Heicop","Heicop",null,"Weduwe van Wilems Jans van Buuren"]
[null,null,"T HenB NA 1-II",null,59,101,14,null,null,null,null,15,2,1691,"Heicop","Bruidegom","Jan","van","Schaik","Cornelissen"," ","Heicop",null,"Weduwnaar van Aefje Jans van Straelen"]
[null,null,"T HenB NA 1-II",null,60,{"$f":"F62","v":101},{"$f":"G62","v":14},null,null,{"$f":"J62","v":0},{"$f":"K62","v":0},{"$f":"L62","v":15},{"$f":"M62","v":2},1691,{"$f":"O62","v":"Heicop"},"Bruid","Catarina",null,null,"Costers"," ","Vianen"]
[null,null,"T HenB NA 1-II",null,61,101,15,null,null,null,null,21,5,1691,"Heicop","Bruidegom","Gijsbert",null,"Pijserman",null,"Heicop","Heicop"]
[null,null,"T HenB NA 1-II",null,62,{"$f":"F64","v":101},{"$f":"G64","v":15},null,null,{"$f":"J64","v":0},{"$f":"K64","v":0},{"$f":"L64","v":21},{"$f":"M64","v":5},1691,{"$f":"O64","v":"Heicop"},"Bruid","Maddelena",null,null,"Jans","Heicop","Heicop"]
[null,null,"T HenB NA 1-II",null,63,101,16,null,null,null,null,5,7,1691,"Heicop","Bruidegom","Jacobus",null,"Herder",null,"Vianen"]
[null,null,"T HenB NA 1-II",null,64,{"$f":"F66","v":101},{"$f":"G66","v":16},null,null,{"$f":"J66","v":0},{"$f":"K66","v":0},{"$f":"L66","v":5},{"$f":"M66","v":7},1691,{"$f":"O66","v":"Heicop"},"Bruid","Helena","van ","Niftrik",null,"Gorinchem"]
[null,null,"T HenB NA 1-II",null,65,101,17,null,null,null,null,19,7,1691,"Heicop","Bruidegom","Teunis",null,null,"Gerrits","Heicop","Heicop",null,"Weduwnaar van Eygje Everts"]
[null,null,"T HenB NA 1-II",null,66,{"$f":"F68","v":101},{"$f":"G68","v":17},null,null,{"$f":"J68","v":0},{"$f":"K68","v":0},{"$f":"L68","v":19},{"$f":"M68","v":7},1691,{"$f":"O68","v":"Heicop"},"Bruid","Heiltje",null,"Tukker","Gerrits","Heicop","Heicop"]
[null,null,"T HenB NA 1-II",null,67,101,18,null,null,null,null,6,12,1691,"Heicop","Bruidegom","Jan",null,null,"Dirksen","Heicop","Heicop"]
[null,null,"T HenB NA 1-II",null,68,{"$f":"F70","v":101},{"$f":"G70","v":18},null,null,{"$f":"J70","v":0},{"$f":"K70","v":0},{"$f":"L70","v":6},{"$f":"M70","v":12},1691,{"$f":"O70","v":"Heicop"},"Bruid","Maeyke",null,"Nobel","Dirkx","Laageind van Middelkoop"]
[null,null,"T HenB NA 1-II",null,69,102,1,null,null,null,null,24,4,1692,"Heicop","Bruidegom","Antonij",null,"Middag","Cornelissen","Heicop","Heicop"]
[null,null,"T HenB NA 1-II",null,70,{"$f":"F72","v":102},{"$f":"G72","v":1},null,null,{"$f":"J72","v":0},{"$f":"K72","v":0},{"$f":"L72","v":24},{"$f":"M72","v":4},1692,{"$f":"O72","v":"Heicop"},"Bruid","Pleuntje",null,"Werkhoven","Ariens","Heicop","Heicop"]
[null,null,"T HenB NA 1-II",null,71,102,2,null,null,null,null,24,4,1692,"Heicop","Bruidegom","Aert",null,null,"Chielen","Hoog Blokland"]
[null,null,"T HenB NA 1-II",null,72,101,{"$f":"G74","v":2},null,null,{"$f":"J74","v":0},{"$f":"K74","v":0},{"$f":"L74","v":24},{"$f":"M74","v":4},1692,{"$f":"O74","v":"Heicop"},"Bruid","Lijsbet",null,"Peel","Jans","Heicop","Heicop"]
[null,null,"T HenB NA 1-II",null,73,102,3,null,null,null,null,24,4,1692,"Heicop","Bruidegom","Bastiaan",null,"Pense",null,"Heicop","Heicop"]
[null,null,"T HenB NA 1-II",null,74,{"$f":"F76","v":102},{"$f":"G76","v":3},null,null,{"$f":"J76","v":0},{"$f":"K76","v":0},{"$f":"L76","v":24},{"$f":"M76","v":4},1692,{"$f":"O76","v":"Heicop"},"Bruid","Willemtje",null,null,"Dirkx","Heicop","Heicop"]
[null,null,"T HenB NA 1-II",null,75,102,4,null,null,null,null,1,5,1692,"Heicop","Bruidegom","Hendrik",null,"Pense",null,"Meerkerk","Lakerveld",null," "]
[null,null,"T HenB NA 1-II",null,76,{"$f":"F78","v":102},{"$f":"G78","v":4},null,null,{"$f":"J78","v":0},{"$f":"K78","v":0},{"$f":"L78","v":1},{"$f":"M78","v":5},1692,{"$f":"O78","v":"Heicop"},"Bruid","Leentje",null,null,"Joosten","Heicop","Lakerveld"]
[null,null,"T HenB NA 1-II",null,77,102,5,null,null,null,null,15,5,1692,"Heicop","Bruidegom","Cornelis",null,null,"Jans","Heicop","Heicop"]
[null,null,"T HenB NA 1-II",null,78,{"$f":"F80","v":102},{"$f":"G80","v":5},null,null,{"$f":"J80","v":0},{"$f":"K80","v":0},{"$f":"L80","v":15},{"$f":"M80","v":5},1692,{"$f":"O80","v":"Heicop"},"Bruid","Jannigje",null,"Peyserman","Cornelis","Heicop","Heicop",null,"weduwe van Gerrit Gijsbertse"]
[null,null,"T HenB NA 1-II",null,79,102,6,null,null,null,null,11,12,1692,"Heicop","Bruidegom","Jan",null,null,"Aelderts","Heicop","Heicop",null,"weduwnaar"]
[null,null,"T HenB NA 1-II",null,80,{"$f":"F82","v":102},{"$f":"G82","v":6},null,null,{"$f":"J82","v":0},{"$f":"K82","v":0},{"$f":"L82","v":11},{"$f":"M82","v":12},1692,{"$f":"O82","v":"Heicop"},"Bruid","Grietje",null,null,"Claes ","Zelhem","Heicop"]
[null,null,"T HenB NA 1-II",null,81,102,7,null,null,null,null,18,12,1692,"Heicop","Bruidegom","Gerrit",null,null,"Hendriks","Bolgarije","Bolgarije",null,"weduwnaar van Annigje Jans"]
[null,null,"T HenB NA 1-II",null,82,{"$f":"F84","v":102},{"$f":"G84","v":7},null,null,{"$f":"J84","v":0},{"$f":"K84","v":0},{"$f":"L84","v":18},{"$f":"M84","v":12},1692,{"$f":"O84","v":"Heicop"},"Bruid","Neeltje ",null,null,"Teunissen","Heicop","Heicop",null,"weduwe van Pieter Fredriks"]
[null,null,"T HenB NA 1-II",null,83,102,8,null,null,null,null,29,1,1693,"Heicop","Bruidegom","Dirk",null,null,"Jans","?"]
[null,null,"T HenB NA 1-II",null,84,{"$f":"F86","v":102},{"$f":"G86","v":8},null,null,{"$f":"J86","v":0},{"$f":"K86","v":0},{"$f":"L86","v":29},{"$f":"M86","v":1},1693,{"$f":"O86","v":"Heicop"},"Bruid","Maegje",null,null,"Gijsberts","Heicop","Heicop"]
[null,null,"T HenB NA 1-II",null,85,102,9,null,null,null,null,7,5,1693,"Heicop","Bruidegom","Lambert",null,null,"Claessen","Lakerveld"]
[null,null,"T HenB NA 1-II",null,86,{"$f":"F88","v":102},{"$f":"G88","v":9},null,null,{"$f":"J88","v":0},{"$f":"K88","v":0},{"$f":"L88","v":7},{"$f":"M88","v":5},1693,{"$f":"O88","v":"Heicop"},"Bruid","Swaentje",null,"Middag","Cornelis","Heicop","Heicop",null,"weduwe van Jan Teunissen"]
[null,null,"T HenB NA 1-II",null,87,102,10,null,null,null,null,4,2,1694,"Heicop","Bruidegom","Pel",null,null,"Claessen","Heicop","Heicop"]
[null,null,"T HenB NA 1-II",null,88,{"$f":"F90","v":102},{"$f":"G90","v":10},null,null,{"$f":"J90","v":0},{"$f":"K90","v":0},{"$f":"L90","v":4},{"$f":"M90","v":2},1694,{"$f":"O90","v":"Heicop"},"Bruid","Aegje",null,null,"Ariens","Lakerveld","Heicop",null,"weduwe van Willem Cornelissen"]
[null,null,"T HenB NA 1-II",null,89,102,11,null,null,null,null,1,4,1694,"Heicop","Bruidegom","Coen",null,null,"Dirks","Heicop","Heicop"]
[null,null,"T HenB NA 1-II",null,90,{"$f":"F92","v":102},12,null,null,{"$f":"J92","v":0},{"$f":"K92","v":0},{"$f":"L92","v":1},{"$f":"M92","v":4},1694,{"$f":"O92","v":"Heicop"},"Bruid","Baertje",null,null,"Meyerts","Heicop","Heicop",null,"weduwe van Barent Cornelissen Peyserman"]
[null,null,"T HenB NA 1-II",null,91,102,13,null,null,null,null,13,5,1694,"Heicop","Bruidegom","Paulus",null,null,"Pleunen","Lakerveld","Heicop"]
[null,null,"T HenB NA 1-II",null,92,{"$f":"F94","v":102},{"$f":"G94","v":13},null,null,{"$f":"J94","v":0},{"$f":"K94","v":0},{"$f":"L94","v":13},{"$f":"M94","v":5},1694,{"$f":"O94","v":"Heicop"},"Bruid","Ariaentje",null,null,"Claes","Middelkoop","Heicop"]
[null,null,"T HenB NA 1-II",null,93,102,14,null,null,null,null,17,2,1695,"Heicop","Bruidegom","Wijnand",null,null,"Hendriks","Nimbergen"]
[null,null,"T HenB NA 1-II",null,94,{"$f":"F96","v":102},{"$f":"G96","v":14},null,null,{"$f":"J96","v":0},{"$f":"K96","v":0},{"$f":"L96","v":17},{"$f":"M96","v":2},1695,{"$f":"O96","v":"Heicop"},"Bruid","Maegje",null,null,"Gerrits","Heicop","Heicop",null,"weduwe van Cornelis Jans Peel"]
[null,null,"T HenB NA 1-II",null,95,103,1,null,null,null,null,12,5,1695,"Heicop","Bruidegom","Gerrit",null,null,"Geerts","Heicop","Heicop"]
[null,null,"T HenB NA 1-II",null,96,{"$f":"F98","v":103},{"$f":"G98","v":1},null,null,{"$f":"J98","v":0},{"$f":"K98","v":0},12,{"$f":"M98","v":5},1695,{"$f":"O98","v":"Heicop"},"Bruid","Ariaentje","van","Muyden","Willems","Lakerveld","Heicop"]
[null,null,"T HenB NA 1-II",null,97,103,2,null,null,null,null,25,8,1695,"Heicop","Bruidegom","Teunis",null,null,"Geerts",null,"Heicop",null,"weduwnaar van Neeltje Gerrits"]
[null,null,"T HenB NA 1-II",null,98,{"$f":"F100","v":103},{"$f":"G100","v":2},null,null,{"$f":"J100","v":0},{"$f":"K100","v":0},{"$f":"L100","v":25},{"$f":"M100","v":8},1695,{"$f":"O100","v":"Heicop"},"Bruid","Heske","de","Sars","Otto","IJsendoorn","Heicop"]
[null,null,"T HenB NA 1-II",null,99,103,3,null,null,null,null,26,1,1696,"Heicop","Bruidegom","Gerrit",null,"Middag","Cornelissen","Heicop","Heicop"]
[null,null,"T HenB NA 1-II",null,100,{"$f":"F102","v":103},{"$f":"G102","v":3},null,null,{"$f":"J102","v":0},{"$f":"K102","v":0},{"$f":"L102","v":26},{"$f":"M102","v":1},1696,"Heicop","Bruid","Jannigje","de","Wit","Aerts","Heicop","Heicop"]
[null,null,"T HenB NA 1-II",null,101,103,4,null,null,null,null,9,2,1696,"Heicop","Bruidegom","Cornelis",null,null,"Lamberts","Heicop","Heicop"]
[null,null,"T HenB NA 1-II",null,102,{"$f":"F104","v":103},{"$f":"G104","v":4},null,null,{"$f":"J104","v":0},{"$f":"K104","v":0},{"$f":"L104","v":9},{"$f":"M104","v":2},1696,{"$f":"O104","v":"Heicop"},"Bruid","Lijsje","de","Groot","Jans","Leerdam","Heicop"]
[null,null,"T HenB NA 1-II",null,103,103,5,null,null,null,null,3,5,1696,"Heicop","Bruidegom","Antonij",null,"Middag","Cornelissen","Heicop","Heicop",null,"weduwnaar van Pleuntje Ariens"]
[null,null,"T HenB NA 1-II",null,104,{"$f":"F106","v":103},{"$f":"G106","v":5},null,null,{"$f":"J106","v":0},{"$f":"K106","v":0},{"$f":"L106","v":3},{"$f":"M106","v":5},1696,{"$f":"O106","v":"Heicop"},"Bruid","Lijsje",null,null,"Melissen",null,"Boeicop"]
[null,null,"T HenB NA 1-II",null,105,103,6,null,null,null,null,3,5,1696,"Heicop","Bruidegom","Frank ",null,null,"Melissen","Boeicop"]
[null,null,"T HenB NA 1-II",null,106,{"$f":"F108","v":103},{"$f":"G108","v":6},null,null,{"$f":"J108","v":0},{"$f":"K108","v":0},{"$f":"L108","v":3},{"$f":"M108","v":5},1696,{"$f":"O108","v":"Heicop"},"Bruid","Cornelia",null,null,"Peters","Leerdam","Heicop"]
[null,null,"T HenB NA 1-II",null,107,103,7,null,null,null,null,3,5,1696,"Heicop","Bruidegom","Floris",null,null,"Claessen",null,"Heicop"]
[null,null,"T HenB NA 1-II",null,108,{"$f":"F110","v":103},{"$f":"G110","v":7},null,null,{"$f":"J110","v":0},{"$f":"K110","v":0},{"$f":"L110","v":3},{"$f":"M110","v":5},1696,{"$f":"O110","v":"Heicop"},"Bruid","Geertje","van","Gend","Jans","Schoonrewoerd","Heicop"]
[null,null,"T HenB NA 1-II",null,109,103,8,null,null,null,null,31,5,1696,"Heicop","Bruidegom","Tomas",null,null,"Cornelissen","Heicop","Heicop"]
[null,null,"T HenB NA 1-II",null,110,{"$f":"F112","v":103},{"$f":"G112","v":8},null,null,{"$f":"J112","v":0},{"$f":"K112","v":0},{"$f":"L112","v":31},{"$f":"M112","v":5},1696,{"$f":"O112","v":"Heicop"},"Bruid","Maddeleentje",null,null,"Jans","Heicop","Heicop",null,"weduwe van Gijsbert Cornelissen Pijserman"]
[null,null,"T HenB NA 1-II",null,111,103,9,null,null,null,null,1,6,1696,"Heicop","Bruidegom","Jan",null,null,"Claessen","Hoornaar","Heicop"]
[null,null,"T HenB NA 1-II",null,112,{"$f":"F114","v":103},{"$f":"G114","v":9},null,null,{"$f":"J114","v":0},{"$f":"K114","v":0},{"$f":"L114","v":1},{"$f":"M114","v":6},1696,{"$f":"O114","v":"Heicop"},"Bruid","Lijsbeth",null,null,"Cornelis","Heicop","Heicop"]
[null,null,"T HenB NA 1-II",null,113,103,10,null,null,null,null,9,8,1696,"Heicop","Bruidegom","Hendrik",null,null,"Joosten","Heicop","Heicop",null,"weduwnaar van Barber Bastiaanse"]
[null,null,"T HenB NA 1-II",null,114,{"$f":"F116","v":103},{"$f":"G116","v":10},null,null,{"$f":"J116","v":0},{"$f":"K116","v":0},{"$f":"L116","v":9},{"$f":"M116","v":8},1696,{"$f":"O116","v":"Heicop"},"Bruid","Metje","de","Glaes","Adams","…el","Heicop"]
[null,null,"T HenB NA 1-II",null,115,103,11,null,null,null,null,30,8,1696,"Heicop","Bruidegom","Gijsbert","de","Wilt","Hendriks","Heicop","Heicop",null,"weduwnaar van Annigje Jans Middelcoop"]
[null,null,"T HenB NA 1-II",null,116,{"$f":"F118","v":103},{"$f":"G118","v":11},null,null,{"$f":"J118","v":0},{"$f":"K118","v":0},{"$f":"L118","v":30},{"$f":"M118","v":8},1696,{"$f":"O118","v":"Heicop"},"Bruid","Marigje","van","Es","Jacobs","Nieuwland","Heicop"]
[null,null,"T HenB NA 1-II",null,117,103,12,null,null,null,null,22,11,1696,"Heicop","Bruidegom","Dirk ",null,null,"Teunissen","Heicop","Heicop"]
[null,null,"T HenB NA 1-II",null,118,{"$f":"F120","v":103},{"$f":"G120","v":12},null,null,{"$f":"J120","v":0},{"$f":"K120","v":0},{"$f":"L120","v":22},{"$f":"M120","v":11},1696,{"$f":"O120","v":"Heicop"},"Bruid","Lijsje",null,null,"Barents","Laag Blokland","Heicop"]
[null,null,"T HenB NA 1-II",null,119,104,1,null,null,null,null,9,5,1697,"Heicop","Bruidegom","Huybert","van der","Leeden","Hendriks","Leerdam","Leerbroek"]
[null,null,"T HenB NA 1-II",null,120,{"$f":"F122","v":104},{"$f":"G122","v":1},null,null,{"$f":"J122","v":0},{"$f":"K122","v":0},{"$f":"L122","v":9},{"$f":"M122","v":5},1697,{"$f":"O122","v":"Heicop"},"Bruid","Hendrikje",null,null,"Gerrits","Heicop","Heicop"]
[null,null,"T HenB NA 1-II",null,121,104,2,null,null,null,null,17,10,1697,"Heicop","Bruidegom","Jan",null,null,"Claessen","Meerkerk","Heicop"]
[null,null,"T HenB NA 1-II",null,122,{"$f":"F124","v":104},{"$f":"G124","v":2},null,null,{"$f":"J124","v":0},{"$f":"K124","v":0},{"$f":"L124","v":17},{"$f":"M124","v":10},1697,{"$f":"O124","v":"Heicop"},"Bruid","Oegje",null,"Middag","Aertse","Heicop","Heicop"]
[null,null,"T HenB NA 1-II",null,123,104,3,null,null,null,null,12,12,1697,"Heicop","Bruidegom","Cornelis",null,null,"Franken","Nieuwland"]
[null,null,"T HenB NA 1-II",null,124,{"$f":"F126","v":104},{"$f":"G126","v":3},null,null,{"$f":"J126","v":0},{"$f":"K126","v":0},{"$f":"L126","v":12},{"$f":"M126","v":12},1697,{"$f":"O126","v":"Heicop"},"Bruid","Annigje",null,"Hage","Peters","Heicop","Heicop",null,"weduwe van Jan Jans Peel"]
[null,null,"T HenB NA 1-II",null,125,104,4,null,null,null,null,17,4,1698,"Heicop","Bruidegom","Jacob","van ","Nes","Jorissen","Otteland","Over-Boeicop",null,"weduwnaar van Mayke Ariens"]
[null,null,"T HenB NA 1-II",null,126,{"$f":"F128","v":104},{"$f":"G128","v":4},null,null,{"$f":"J128","v":0},{"$f":"K128","v":0},{"$f":"L128","v":17},{"$f":"M128","v":4},1698,{"$f":"O128","v":"Heicop"},"Bruid","Jenneke",null,null,"Jans","Heicop","Heicop"]
[null,null,"T HenB NA 1-II",null,127,104,5,null,null,null,null,4,12,1698,"Heicop","Bruidegom","Willem",null,null,"Gerrits","Heicop","Heicop"]
[null,null,"T HenB NA 1-II",null,128,{"$f":"F130","v":104},{"$f":"G130","v":5},null,null,{"$f":"J130","v":0},{"$f":"K130","v":0},{"$f":"L130","v":4},{"$f":"M130","v":12},1698,{"$f":"O130","v":"Heicop"},"Bruid","Lijsje",null,"Mackop","Peters","Heicop","Heicop"]
[null,null,"T HenB NA 1-II",null,129,104,6,null,null,null,null,5,3,1699,"Heicop","Bruidegom","Jan",null,"Peerdekooper","Teunissen","Leerdam","Heicop"]
[null,null,"T HenB NA 1-II",null,130,{"$f":"F132","v":104},{"$f":"G132","v":6},null,null,{"$f":"J132","v":0},{"$f":"K132","v":0},{"$f":"L132","v":5},{"$f":"M132","v":3},1699,{"$f":"O132","v":"Heicop"},"Bruid","Barber",null,null,"Cornelissen","Heicop","Heicop",null,"weduwe van Gijsbert Peters"]
[null,null,"T HenB NA 1-II",null,131,104,7,null,null,null,null,28,4,1700,"Heicop","Bruidegom","Willem",null,"Verwoerd","Jans","Lakerveld","'t Hoogeind van Middelkoop"]
[null,null,"T HenB NA 1-II",null,132,{"$f":"F134","v":104},{"$f":"G134","v":7},null,null,{"$f":"J134","v":0},{"$f":"K134","v":0},{"$f":"L134","v":28},{"$f":"M134","v":4},1700,{"$f":"O134","v":"Heicop"},"Bruid","Dirkje",null,null,"Cornelis","Heicop","Heicop"]
[null,null,"T HenB NA 1-II",null,133,104,8,null,null,null,null,20,5,1700,"Heicop","Bruidegom","Dirk","de","With","Aertse","Heicop","Heicop"]
[null,null,"T HenB NA 1-II",null,134,{"$f":"F136","v":104},{"$f":"G136","v":8},null,null,{"$f":"J136","v":0},{"$f":"K136","v":0},{"$f":"L136","v":20},{"$f":"M136","v":5},1700,{"$f":"O136","v":"Heicop"},"Bruid","Haesje",null,"Oskamp","Dirke","Ameijde","Heicop"]
[null,null,"T HenB NA 1-II",null,135,104,9,null,null,null,null,29,9,1700,"Heicop","Bruidegom","Jan",null,"Goes","Lambertse","Zijderveld","Heicop"]
[null,null,"T HenB NA 1-II",null,136,{"$f":"F138","v":104},{"$f":"G138","v":9},null,null,{"$f":"J138","v":0},{"$f":"K138","v":0},{"$f":"L138","v":29},{"$f":"M138","v":9},1700,{"$f":"O138","v":"Heicop"},"Bruid","Maeygje",null,"Hage","Peters","Heicop","Heicop",null,"weduwe van Barend Reyertse"]
[null,null,"T HenB NA 1-II",null,137,104,10,null,null,null,null,6,2,1701,"Heicop","Bruidegom","Pieter",null,null,"Claessen","Heicop","Heicop"]
[null,null,"T HenB NA 1-II",null,138,{"$f":"F140","v":104},{"$f":"G140","v":10},null,null,{"$f":"J140","v":0},{"$f":"K140","v":0},{"$f":"L140","v":6},{"$f":"M140","v":2},1701,{"$f":"O140","v":"Heicop"},"Bruid","Beligje",null,"Suyddam","Dirke","Zijderveld","Heicop"]
[null,null,"T HenB NA 1-II",null,139,105,1,null,null,null,null,13,2,1701,"Heicop","Bruidegom","Gerrit",null,"Pense",null,"Heicop","Heicop",null,"weduwnaar van Swaentje Aelderts"]
[null,null,"T HenB NA 1-II",null,140,{"$f":"F142","v":105},{"$f":"G142","v":1},null,null,{"$f":"J142","v":0},{"$f":"K142","v":0},{"$f":"L142","v":13},{"$f":"M142","v":2},1701,{"$f":"O142","v":"Heicop"},"Bruid","Aegje",null,null,"Ariens","Lakerveld","Heicop",null,"weduwe van Pel Claessen"]
[null,null,"T HenB NA 1-II",null,141,105,2,null,null,null,null,10,4,1701,"Heicop","Bruidegom","Cornelis",null,null,"Gijsberts","Laageind van Middelkoop","Heicop"]
[null,null,"T HenB NA 1-II",null,142,{"$f":"F144","v":105},{"$f":"G144","v":2},null,null,{"$f":"J144","v":0},{"$f":"K144","v":0},{"$f":"L144","v":10},{"$f":"M144","v":4},1701,{"$f":"O144","v":"Heicop"},"Bruid","Maeygje",null,"Middag","Cornelis","Heicop","Heicop"]
[null,null,"T HenB NA 1-II",null,143,105,3,null,null,null,null,29,5,1701,"Heicop","Bruidegom","Jan","van der","Ham","Joosten","Meerkerk","Heicop"]
[null,null,"T HenB NA 1-II",null,144,{"$f":"F146","v":105},{"$f":"G146","v":3},null,null,{"$f":"J146","v":0},{"$f":"K146","v":0},{"$f":"L146","v":29},{"$f":"M146","v":5},1701,{"$f":"O146","v":"Heicop"},"Bruid","Hendrikje",null,null,"Cornelis","Hoogeind van Middelkoop","Heicop"]
[null,null,"T HenB NA 1-II",null,145,105,4,null,null,null,null,27,11,1701,"Heicop","Bruidegom","Jan",null,null,"Joosten","Heicop","Heicop"]
[null,null,"T HenB NA 1-II",null,146,{"$f":"F148","v":105},{"$f":"G148","v":4},null,null,{"$f":"J148","v":0},{"$f":"K148","v":0},{"$f":"L148","v":27},{"$f":"M148","v":11},1701,{"$f":"O148","v":"Heicop"},"Bruid","Barbertje",null,null,"Ariens","Giesen-Oudekerk","'t Recht van ter Lede"]
[null,null,"T HenB NA 1-II",null,147,105,5,null,null,null,null,16,3,1702,"Heicop","Bruidegom","Jan",null,null,"Gerritse","Heicop","Heicop"]
[null,null,"T HenB NA 1-II",null,148,{"$f":"F150","v":105},{"$f":"G150","v":5},null,null,{"$f":"J150","v":0},{"$f":"K150","v":0},{"$f":"L150","v":16},{"$f":"M150","v":3},1702,{"$f":"O150","v":"Heicop"},"Bruid","Grietje",null,null,"Cornelis","Heicop","Heicop"]
[null,null,"T HenB NA 1-II",null,149,105,6,null,null,null,null,16,3,1702,"Heicop","Bruidegom","Aert",null,"Stichter","Leenderts","'s Gravendeel","'t Hoogeind van Middelkoop"]
[null,null,"T HenB NA 1-II",null,150,{"$f":"F152","v":105},{"$f":"G152","v":6},null,null,{"$f":"J152","v":0},{"$f":"K152","v":0},{"$f":"L152","v":16},{"$f":"M152","v":3},1702,{"$f":"O152","v":"Heicop"},"Bruid","Maiygje",null,null,"Cornelis","Heicop","Heicop"]
[null,null,"T HenB NA 1-II",null,151,105,7,null,null,null,null,14,4,1702,"Heicop","Bruidegom","Jan","van","Heijcoop","Dirkse"," "]
[null,null,"T HenB NA 1-II",null,152,{"$f":"F154","v":105},{"$f":"G154","v":7},null,null,{"$f":"J154","v":0},{"$f":"K154","v":0},{"$f":"L154","v":14},{"$f":"M154","v":4},1702,{"$f":"O154","v":"Heicop"},"Bruid","Maeygje",null,null,"Cornelis","Hoogeind van Middelkoop","Heicop"]
[null,null,"T HenB NA 1-II",null,153,105,8,null,null,null,null,30,4,1702,"Heicop","Bruidegom","Jan","de","Jong","Jans","Leerdam","Heicop"]
[null,null,"T HenB NA 1-II",null,154,{"$f":"F156","v":105},{"$f":"G156","v":8},null,null,{"$f":"J156","v":0},{"$f":"K156","v":0},{"$f":"L156","v":30},{"$f":"M156","v":4},1702,{"$f":"O156","v":"Heicop"},"Bruid","Flora",null,"Oirschot","Willems","Heicop","Heicop"]
[null,null,"T HenB NA 1-II",null,155,105,9,null,null,null,null,7,5,1702,"Heicop","Bruidegom","Daem",null,"Stichter","Jans","Slingeland"]
[null,null,"T HenB NA 1-II",null,156,{"$f":"F158","v":105},{"$f":"G158","v":9},null,null,{"$f":"J158","v":0},{"$f":"K158","v":0},{"$f":"L158","v":7},{"$f":"M158","v":5},1702,{"$f":"O158","v":"Heicop"},"Bruid","Teuntje",null,"Oirschot","Cornelis","Heicop","Heicop"]
[null,null,"T HenB NA 1-II",null,157,105,10,null,null,null,null,28,5,1702,"Heicop","Bruidegom","Ernst","van","Westerveld",null,"Vianen",null,null,"met attestatie"]
[null,null,"T HenB NA 1-II",null,158,{"$f":"F160","v":105},{"$f":"G160","v":10},null,null,{"$f":"J160","v":0},{"$f":"K160","v":0},{"$f":"L160","v":28},{"$f":"M160","v":5},1702,{"$f":"O160","v":"Heicop"},"Bruid","Elisabet",null,"Onderwater",null,"Vianen"]
[null,null,"T HenB NA 1-II",null,159,105,11,null,null,null,null,31,12,1702,"Heicop","Bruidegom","Jan",null,"Maeckop","Peterse","Heicop","Heicop"]
[null,null,"T HenB NA 1-II",null,160,{"$f":"F162","v":105},{"$f":"G162","v":11},null,null,{"$f":"J162","v":0},{"$f":"K162","v":0},{"$f":"L162","v":31},{"$f":"M162","v":12},1702,{"$f":"O162","v":"Heicop"},"Bruid","Annigje",null,null,"Geerits","Heicop","Heicop"]
[null,null,"T HenB NA 1-II",null,161,105,12,null,null,null,null,7,5,1703,"Heicop","Bruidegom","Teunis",null,"Middelcoop","Claesse","Heicop","Heicop"]
[null,null,"T HenB NA 1-II",null,162,{"$f":"F164","v":105},{"$f":"G164","v":12},null,null,{"$f":"J164","v":0},{"$f":"K164","v":0},{"$f":"L164","v":7},{"$f":"M164","v":5},1703,{"$f":"O164","v":"Heicop"},"Bruid","Neeltje",null,null,"Willems","Lakerveld","Heicop"]
[null,null,"T HenB NA 1-II",null,163,105,13,null,null,null,null,20,5,1703,"Heicop","Bruidegom","Gijsbert",null,"Middelcoop","Claesse","Heicop"]
[null,null,"T HenB NA 1-II",null,164,{"$f":"F166","v":105},{"$f":"G166","v":13},null,null,{"$f":"J166","v":0},{"$f":"K166","v":0},{"$f":"L166","v":20},{"$f":"M166","v":5},1703,{"$f":"O166","v":"Heicop"},"Bruid","Willemtje",null,"Tromp","Maertens","Otteland"]
[null,null,"T HenB NA 1-II",null,165,105,14,null,null,null,null,27,5,1703,"Heicop","Bruidegom","Leendert","de","Jong","Cornelisse ","Groot-Ammers"]
[null,null,"T HenB NA 1-II",null,166,{"$f":"F168","v":105},{"$f":"G168","v":14},null,null,{"$f":"J168","v":0},{"$f":"K168","v":0},{"$f":"L168","v":27},{"$f":"M168","v":5},1703,{"$f":"O168","v":"Heicop"},"Bruid","Marijtje","van ","Buren","Willems","Heicop"]
[null,null,"T HenB NA 1-II",null,167,106,1,null,null,null,null,11,11,1703,"Heicop","Bruidegom","Thomas",null,null,"Cornelissen","Heicop","Heicop",null,"weduwnaar van Maddeleentje Jans"]
[null,null,"T HenB NA 1-II",null,168,{"$f":"F170","v":106},{"$f":"G170","v":1},null,null,{"$f":"J170","v":0},{"$f":"K170","v":0},{"$f":"L170","v":11},{"$f":"M170","v":11},1703,{"$f":"O170","v":"Heicop"},"Bruid","Aefje",null,"Brakband","Jans","Lakerveld","Heicop"]
[null,null,"T HenB NA 1-II",null,169,106,2,null,null,null,null,28,9,1704,"Heicop","Bruidegom","Adriaen","van","Leent"]
[null,null,"T HenB NA 1-II",null,170,{"$f":"F172","v":106},{"$f":"G172","v":2},null,null,{"$f":"J172","v":0},{"$f":"K172","v":0},{"$f":"L172","v":28},{"$f":"M172","v":9},1704,{"$f":"O172","v":"Heicop"},"Bruid","Maria",null,"Nobeling",null,"Vianen"]
[null,null,"T HenB NA 1-II",null,171,106,3,null,null,null,null,18,1,1705,"Heicop","Bruidegom","Reijer",null,"Suijddam","Dirks","Zijderveld","Heicop"]
[null,null,"T HenB NA 1-II",null,172,{"$f":"F174","v":106},{"$f":"G174","v":3},null,null,{"$f":"J174","v":0},{"$f":"K174","v":0},{"$f":"L174","v":18},{"$f":"M174","v":1},1705,{"$f":"O174","v":"Heicop"},"Bruid","Baertje",null,null,"Cornelis","Zijderveld","Heicop"]
[null,null,"T HenB NA 1-II",null,173,106,4,null,null,null,null,8,3,1705,"Heicop","Bruidegom","Jan",null,null,"Hendriks","Noordeloos"]
[null,null,"T HenB NA 1-II",null,174,{"$f":"F176","v":106},{"$f":"G176","v":4},null,null,{"$f":"J176","v":0},{"$f":"K176","v":0},{"$f":"L176","v":8},{"$f":"M176","v":3},1705,{"$f":"O176","v":"Heicop"},"Bruid","Jacobje",null,"Maeckop","Peters","Heicop"]
[null,null,"T HenB NA 1-II",null,175,106,5,null,null,null,null,3,5,1705,"Heicop","Bruidegom","Teunis","van","Muijden","Willems","Nieuwland","Nieuwland"]
[null,null,"T HenB NA 1-II",null,176,{"$f":"F178","v":106},{"$f":"G178","v":5},null,null,{"$f":"J178","v":0},{"$f":"K178","v":0},{"$f":"L178","v":3},{"$f":"M178","v":5},1705,{"$f":"O178","v":"Heicop"},"Bruid","Marijtje",null,"Paerdekoper","Teunis ","Leerdam","Heicop"]
[null,null,"T HenB NA 1-II",null,177,106,6,null,null,null,null,14,2,1706,"Heicop","Bruidegom","Cornelis",null,"Huysman","Gerritsen","Lexmond"]
[null,null,"T HenB NA 1-II",null,178,{"$f":"F180","v":106},{"$f":"G180","v":6},null,null,{"$f":"J180","v":0},{"$f":"K180","v":0},{"$f":"L180","v":14},{"$f":"M180","v":2},1706,{"$f":"O180","v":"Heicop"},"Bruid","Grietje","van","Delft","Pieters","Heicop","Heicop"]
[null,null,"T HenB NA 1-II",null,179,106,7,null,null,null,null,7,3,1706,"Heicop","Bruidegom","Jacob",null,null,"Franken","Zijderveld"]
[null,null,"T HenB NA 1-II",null,180,{"$f":"F182","v":106},{"$f":"G182","v":7},null,null,{"$f":"J182","v":0},{"$f":"K182","v":0},{"$f":"L182","v":7},{"$f":"M182","v":3},1706,{"$f":"O182","v":"Heicop"},"Bruid","Aeltje",null,"Middelcoop","Peters","Heicop","Heicop"]
[null,null,"T HenB NA 1-II",null,181,106,8,null,null,null,null,11,4,1706,"Heicop","Bruidegom","Willem",null,null,"Jans",null,"Heicop"]
[null,null,"T HenB NA 1-II",null,182,{"$f":"F184","v":106},{"$f":"G184","v":8},null,null,{"$f":"J184","v":0},{"$f":"K184","v":0},{"$f":"L184","v":11},{"$f":"M184","v":4},1706,{"$f":"O184","v":"Heicop"},"Bruid","Aeltje",null,null,"Cornelis","Heicop","Heicop"]
[null,null,"T HenB NA 1-II",null,183,106,9,null,null,null,null,18,4,1706,"Heicop","Bruidegom","Cors","de","Bruijn","Lamberts","Blokland","Heicop"]
[null,null,"T HenB NA 1-II",null,184,{"$f":"F186","v":106},{"$f":"G186","v":9},null,null,{"$f":"J186","v":0},{"$f":"K186","v":0},{"$f":"L186","v":18},{"$f":"M186","v":4},1706,{"$f":"O186","v":"Heicop"},"Bruid","Marijtje",null,"Brakband","Jans","Lakerveld","Heicop"]
[null,null,"T HenB NA 1-II",null,185,106,10,null,null,null,null,25,4,1706,"Heicop","Bruidegom","Leendert",null,"Liefhebber","Tomassen","Boeicop"]
[null,null,"T HenB NA 1-II",null,186,{"$f":"F188","v":106},{"$f":"G188","v":10},null,null,{"$f":"J188","v":0},{"$f":"K188","v":0},{"$f":"L188","v":25},{"$f":"M188","v":4},1706,{"$f":"O188","v":"Heicop"},"Bruid","Aeltje",null,"Huijgen",null,"Boeicop","Heicop"]
[null,null,"T HenB NA 1-II",null,187,106,11,null,null,null,null,9,5,1706,"Heicop","Bruidegom","Gerrit",null,"Middag","Cornelissen","Heicop","Heicop",null,"weduwnaar van Jannigje Aerts de With"]
[null,null,"T HenB NA 1-II",null,188,{"$f":"F190","v":106},11,null,null,{"$f":"J190","v":0},{"$f":"K190","v":0},{"$f":"L190","v":9},{"$f":"M190","v":5},1706,{"$f":"O190","v":"Heicop"},"Bruid","Jannigje",null,null,"Roelen","Leerdam","Heicop"]
[null,null,"T HenB NA 1-II",null,189,106,12,null,null,null,null,15,8,1706,"Heicop","Bruidegom","Bastiaen Aert",null,"Pense",null,"Heicop","Heicop",null,"weduwnaar van Willemtje Dirke"]
[null,null,"T HenB NA 1-II",null,190,{"$f":"F192","v":106},11,null,null,{"$f":"J192","v":0},{"$f":"K192","v":0},{"$f":"L192","v":15},{"$f":"M192","v":8},1706,{"$f":"O192","v":"Heicop"},"Bruid","Aeltje",null,null,"Jans","Heicop","Heicop"]
[null,null,"T HenB NA 1-II",null,191,106,13,null,null,null,null,10,10,1706,"Heicop","Bruidegom","Peter",null,"Peel","Jansz",null,null,null,"weduwnaar van Geertje Willems"]
[null,null,"T HenB NA 1-II",null,192,{"$f":"F194","v":106},{"$f":"G194","v":13},null,null,{"$f":"J194","v":0},{"$f":"K194","v":0},{"$f":"L194","v":10},{"$f":"M194","v":10},1706,{"$f":"O194","v":"Heicop"},"Bruid","Cornelia",null,"Blom","Joosten","Jaarsveld","Heicop",null,"weduwe van Willem Jans Verschoor"]
[null,null,"T HenB NA 1-II",null,193,106,14,null,null,null,null,12,12,1706,"Heicop","Bruidegom","Gijsbert",null,null,"Franken","Heicop","Heicop"]
[null,null,"T HenB NA 1-II",null,194,{"$f":"F196","v":106},{"$f":"G196","v":14},null,null,{"$f":"J196","v":0},{"$f":"K196","v":0},{"$f":"L196","v":12},{"$f":"M196","v":12},1706,{"$f":"O196","v":"Heicop"},"Bruid","Neeltje","van","Buren","Franken","Heicop","Heicop"]
[null,null,"T HenB NA 1-II",null,195,107,1,null,null,null,null,20,3,1707,"Heicop","Bruidegom","Jan",null,null,"Jans","Heicop","Heicop"]
[null,null,"T HenB NA 1-II",null,196,{"$f":"F198","v":107},{"$f":"G198","v":1},null,null,{"$f":"J198","v":0},{"$f":"K198","v":0},{"$f":"L198","v":20},{"$f":"M198","v":3},1707,{"$f":"O198","v":"Heicop"},"Bruid","Teuntje",null,null,"Lamberts","Heicop","Heicop"]
[null,null,"T HenB NA 1-II",null,197,107,2,null,null,null,null,27,3,1707,"Heicop","Bruidegom","Jacobus",null,"Visbach",null,"'s Gravenhage","Heicop"]
[null,null,"T HenB NA 1-II",null,198,{"$f":"F200","v":107},{"$f":"G200","v":2},null,null,{"$f":"J200","v":0},{"$f":"K200","v":0},{"$f":"L200","v":27},{"$f":"M200","v":3},1707,{"$f":"O200","v":"Heicop"},"Bruid","Anna","de","Bruijn",null,"Amsterdam","Vianen"]
[null,null,"T HenB NA 1-II",null,199,107,3,null,null,null,null,22,4,1707,"Heicop","Bruidegom","Arij",null,"Stichter","Leenderts","Meerkerksbroek"]
[null,null,"T HenB NA 1-II",null,200,{"$f":"F202","v":107},{"$f":"G202","v":3},null,null,{"$f":"J202","v":0},{"$f":"K202","v":0},{"$f":"L202","v":22},{"$f":"M202","v":4},1707,{"$f":"O202","v":"Heicop"},"Bruid","Metje",null,"Peel","Peters","Zijderveld","Heicop"]
[null,null,"T HenB NA 1-II",null,201,107,4,null,null,null,null,1,5,1707,"Heicop","Bruidegom","Arij",null,"Besten","Cornelissen","Noordeloos","'t Hoogeind van Middelkoop"]
[null,null,"T HenB NA 1-II",null,202,{"$f":"F204","v":107},{"$f":"G204","v":4},null,null,{"$f":"J204","v":0},{"$f":"K204","v":0},{"$f":"L204","v":1},{"$f":"M204","v":5},1707,{"$f":"O204","v":"Heicop"},"Bruid","Maijgje",null,"Oirschot","Cornelis","Heicop","Heicop"]
[null,null,"T HenB NA 1-II",null,203,107,5,null,null,null,null,9,5,1707,"Heicop","Bruidegom","Gerardus",null,"Vink","Helgerse","Gorinchem","Over-Heicop"]
[null,null,"T HenB NA 1-II",null,204,{"$f":"F206","v":107},{"$f":"G206","v":5},null,null,{"$f":"J206","v":0},{"$f":"K206","v":0},{"$f":"L206","v":9},{"$f":"M206","v":5},1707,{"$f":"O206","v":"Heicop"},"Bruid","Lijsbet",null,"Vergoeij","Michielse","Utrecht","Heicop"]
[null,null,"T HenB NA 1-II",null,205,107,6,null,null,null,null,26,12,1707,"Heicop","Bruidegom","Huijbert",null,"Maeckop","Petersz","Heicop","Heicop"]
[null,null,"T HenB NA 1-II",null,206,{"$f":"F208","v":107},{"$f":"G208","v":6},null,null,{"$f":"J208","v":0},{"$f":"K208","v":0},{"$f":"L208","v":26},{"$f":"M208","v":12},1707,{"$f":"O208","v":"Heicop"},"Bruid","Teuntje",null,null,"Gerrits","Heicop","Heicop"]
[null,null,"T HenB NA 1-II",null,207,107,7,null,null,null,null,12,2,1708,"Heicop","Bruidegom","Willem",null,"Stims",null,null,null,null,"dragonder onder coL: Cammer…."]
[null,null,"T HenB NA 1-II",null,208,{"$f":"F210","v":107},{"$f":"G210","v":7},null,null,{"$f":"J210","v":0},{"$f":"K210","v":0},{"$f":"L210","v":12},{"$f":"M210","v":2},1708,{"$f":"O210","v":"Heicop"},"Bruid","Hilligje","van der","For","Cornelis","Vianen"]
[null,null,"T HenB NA 1-II",null,209,108,1,null,null,null,null,29,4,1708,"Heicop","Bruidegom","Jacob","de","Vries","Woutersen","Maartensdijk","Heicop"]
[null,null,"T HenB NA 1-II",null,210,{"$f":"F212","v":108},{"$f":"G212","v":1},null,null,{"$f":"J212","v":0},{"$f":"K212","v":0},{"$f":"L212","v":29},{"$f":"M212","v":4},1708,{"$f":"O212","v":"Heicop"},"Bruid","Jannigjen",null,"Pinssen","Gerrits","Heicop","Heicop"]
[null,null,"T HenB NA 1-II",null,211,108,2,null,null,null,null,29,4,1708,"Heicop","Bruidegom","Teunis","de","Vromen","Jansen","Heicop","Heicop"]
[null,null,"T HenB NA 1-II",null,212,{"$f":"F214","v":108},{"$f":"G214","v":2},null,null,{"$f":"J214","v":0},{"$f":"K214","v":0},{"$f":"L214","v":29},{"$f":"M214","v":4},1708,{"$f":"O214","v":"Heicop"},"Bruid","Stijntjen ",null,"Oirschot","Willems","Heicop","Heicop"]
[null,null,"T HenB NA 1-II",null,213,108,3,null,null,null,null,27,4,1709,"Heicop","Bruidegom","Johannes","van","Dijck","Anthonijsz","Schoonrewoerd","Schoonrewoerd"]
[null,null,"T HenB NA 1-II",null,214,{"$f":"F216","v":108},{"$f":"G216","v":3},null,null,{"$f":"J216","v":0},{"$f":"K216","v":0},{"$f":"L216","v":27},{"$f":"M216","v":4},1709,{"$f":"O216","v":"Heicop"},"Bruid","Neeltje",null,null,"Dirkz","Heicop","Heicop"]
[null,null,"T HenB NA 1-II",null,215,108,4,null,null,null,null,30,3,1710,"Heicop","Bruidegom","Jan","de","With","Teunisz","Heicop","Heicop"]
[null,null,"T HenB NA 1-II",null,216,{"$f":"F218","v":108},{"$f":"G218","v":4},null,null,{"$f":"J218","v":0},{"$f":"K218","v":0},{"$f":"L218","v":30},{"$f":"M218","v":3},1710,{"$f":"O218","v":"Heicop"},"Bruid","Claartje","van ","Dijck","Claasz","Lexmond","Heicop"]
[null,null,"T HenB NA 1-II",null,217,109,1,null,null,null,null,13,5,1710,"Heicop","Bruidegom","Arij",null,"Vak","Geluwen","Groot-Ammers","Heicop"]
[null,null,"T HenB NA 1-II",null,218,{"$f":"F220","v":109},{"$f":"G220","v":1},null,null,{"$f":"J220","v":0},{"$f":"K220","v":0},{"$f":"L220","v":13},{"$f":"M220","v":5},1710,{"$f":"O220","v":"Heicop"},"Bruid","Emmigje",null,"Vermeulen","Hessels","Heicop","Heicop"]
[null,null,"T HenB NA 1-II",null,219,109,2,null,null,null,null,16,11,1710,"Heicop","Bruidegom","Henrik",null,null,"Gerritz","Zijderveld","Heicop"]
[null,null,"T HenB NA 1-II",null,220,{"$f":"F222","v":109},{"$f":"G222","v":2},null,null,{"$f":"J222","v":0},{"$f":"K222","v":0},{"$f":"L222","v":16},{"$f":"M222","v":11},1710,{"$f":"O222","v":"Heicop"},"Bruid","Fijgje","de","With","Teunissz","Heicop","Heicop"]
[null,null,"T HenB NA 1-II",null,221,109,3,null,null,null,null,23,11,1710,"Heicop","Bruidegom","Willem","van","Campen","Jansz","Schoonderwoerd","Heicop"]
[null,null,"T HenB NA 1-II",null,222,{"$f":"F224","v":109},{"$f":"G224","v":3},null,null,{"$f":"J224","v":0},{"$f":"K224","v":0},{"$f":"L224","v":23},{"$f":"M224","v":11},1710,{"$f":"O224","v":"Heicop"},"Bruid","Annigje",null,"Liefhebber","Thomasz","Schoonderwoerd","Heicop"]
[null,null,"T HenB NA 1-II",null,223,109,4,null,null,null,null,26,4,1711,"Heicop","Bruidegom","Cornelis",null,"Peijserman","Gijsbertz","Heicop","Heicop"]
[null,null,"T HenB NA 1-II",null,224,{"$f":"F226","v":109},{"$f":"G226","v":4},null,null,{"$f":"J226","v":0},{"$f":"K226","v":0},{"$f":"L226","v":26},{"$f":"M226","v":4},1711,{"$f":"O226","v":"Heicop"},"Bruid","Lijsje",null,null,"Jansz","Heicop","Heicop"]
[null,null,"T HenB NA 1-II",null,225,109,5,null,null,null,null,26,4,1711,"Heicop","Bruidegom","Arij","de","Wit ","Arijsz","Heicop","Heicop"]
[null,null,"T HenB NA 1-II",null,226,{"$f":"F228","v":109},{"$f":"G228","v":5},null,null,{"$f":"J228","v":0},{"$f":"K228","v":0},{"$f":"L228","v":26},{"$f":"M228","v":4},1711,{"$f":"O228","v":"Heicop"},"Bruid","Grietje","van","Dijk","Claasz","Lexmond","Heicop"]
[null,null,"T HenB NA 1-II",null,227,109,6,null,null,null,null,26,4,1711,"Heicop","Bruidegom","Kors",null,null,"Arijsz","Lakerveld","Lakerveld"]
[null,null,"T HenB NA 1-II",null,228,{"$f":"F230","v":109},{"$f":"G230","v":6},null,null,{"$f":"J230","v":0},{"$f":"K230","v":0},{"$f":"L230","v":26},{"$f":"M230","v":4},1711,{"$f":"O230","v":"Heicop"},"Bruid","Jannigje","de","Vrome ","Jansz","Heicop","Lakerveld"]
[null,null,"T HenB NA 1-II",null,229,109,7,null,null,null,null,1,5,1711,"Heicop","Bruidegom","Arij",null,"Dikken","Henrikz","Meerkerk"]
[null,null,"T HenB NA 1-II",null,230,{"$f":"F232","v":109},{"$f":"G232","v":7},null,null,{"$f":"J232","v":0},{"$f":"K232","v":0},{"$f":"L232","v":1},{"$f":"M232","v":5},1711,{"$f":"O232","v":"Heicop"},"Bruid","Magdaleentje",null,null,"Cornelisz","Heicop","Heicop"]
[null,null,"T HenB NA 1-II",null,231,109,8,null,null,null,null,24,5,1711,"Heicop","Bruidegom","Teunis",null,"Kool","Jaspersz","Zijderveld"]
[null,null,"T HenB NA 1-II",null,232,{"$f":"F234","v":109},{"$f":"G234","v":8},null,null,{"$f":"J234","v":0},{"$f":"K234","v":0},{"$f":"L234","v":24},{"$f":"M234","v":5},1711,{"$f":"O234","v":"Heicop"},"Bruid","Zijgje",null,"Peijserman","Barendz","Heicop","Heicop"]
[null,null,"T HenB NA 1-II",null,233,109,9,null,null,null,null,2,8,1711,"Heicop","Bruidegom","Gerrit","van","Kars","Huibertz",null,"Schoonrewoerd",null,"weduwnaar van Marijtje Cornelis Kool; aan de diefdijk"]
[null,null,"T HenB NA 1-II",null,234,{"$f":"F236","v":109},{"$f":"G236","v":9},null,null,{"$f":"J236","v":0},{"$f":"K236","v":0},{"$f":"L236","v":2},{"$f":"M236","v":8},1711,{"$f":"O236","v":"Heicop"},"Bruid","Lijsje",null,null,"Melisz",null,"Heicop",null,"weduwe van Antonij Cornelisz Middag"]
[null,null,"T HenB NA 1-II",null,235,109,10,null,null,null,null,24,4,1712,"Heicop","Bruidegom","Gerrit",null,"Oirschot","Cornelisz","Bolgreije","Heicop"]
[null,null,"T HenB NA 1-II",null,236,{"$f":"F238","v":109},{"$f":"G238","v":10},null,null,{"$f":"J238","v":0},{"$f":"K238","v":0},{"$f":"L238","v":24},{"$f":"M238","v":4},1712,{"$f":"O238","v":"Heicop"},"Bruid","Huibertje",null,null,"Henrikz","Heicop","Heicop"]
[null,null,"T HenB NA 1-II",null,237,109,11,null,null,null,null,8,5,1712,"Heicop","Bruidegom","Gerrit","de","Leeuw","Gijsbertz","Oosterwijk","Lexmond"]
[null,null,"T HenB NA 1-II",null,238,{"$f":"F240","v":109},{"$f":"G240","v":11},null,null,{"$f":"J240","v":0},{"$f":"K240","v":0},{"$f":"L240","v":8},{"$f":"M240","v":5},1712,{"$f":"O240","v":"Heicop"},"Bruid","Maagje",null,"Verweij","Gerritz","Heicop","Heicop"]
[null,null,"T HenB NA 1-II",null,239,110,1,null,null,null,null,31,7,1712,"Heicop","Bruidegom","Hermannus","de","Jong","Jansz","Vianen"]
[null,null,"T HenB NA 1-II",null,240,{"$f":"F242","v":110},{"$f":"G242","v":1},null,null,{"$f":"J242","v":0},{"$f":"K242","v":0},{"$f":"L242","v":31},{"$f":"M242","v":7},1712,{"$f":"O242","v":"Heicop"},"Bruid","Metje",null,"Zuiddam","Dirkz","Zijderveld","Heicop"]
[null,null,"T HenB NA 1-II",null,241,110,2,null,null,null,null,30,4,1713,"Heicop","Bruidegom","Frerik","van","Lakerveld","Willemsz","Lakerveld","Heicop"]
[null,null,"T HenB NA 1-II",null,242,{"$f":"F244","v":110},{"$f":"G244","v":2},null,null,{"$f":"J244","v":0},{"$f":"K244","v":0},{"$f":"L244","v":30},{"$f":"M244","v":4},1713,{"$f":"O244","v":"Heicop"},"Bruid","Grietje","de","With","Hessels","Heicop","Heicop"]
[null,null,"T HenB NA 1-II",null,243,110,3,null,null,null,null,30,4,1713,"Heicop","Bruidegom","Joost",null,null,"Henriksz","Heicop"]
[null,null,"T HenB NA 1-II",null,244,{"$f":"F246","v":110},{"$f":"G246","v":3},null,null,{"$f":"J246","v":0},{"$f":"K246","v":0},{"$f":"L246","v":30},{"$f":"M246","v":4},1713,{"$f":"O246","v":"Heicop"},"Bruid","Marijgje","van de ","Ham","Joosten","Lakerveld"]
[null,null,"T HenB NA 1-II",null,245,110,4,null,null,null,null,17,9,1713,"Heicop","Bruidegom","Herbert","van","Dogterom","Ottho","t Recht van der Leede","Leerbroek"]
[null,null,"T HenB NA 1-II",null,246,{"$f":"F248","v":110},{"$f":"G248","v":4},null,null,{"$f":"J248","v":0},{"$f":"K248","v":0},{"$f":"L248","v":17},{"$f":"M248","v":9},1713,{"$f":"O248","v":"Heicop"},"Bruid","Jannigje","van der","Aa","Cornelisz","Meerkerk","Heicop"]
[null,null,"T HenB NA 1-II",null,247,110,5,null,null,null,null,25,3,1714,"Heicop","Bruidegom","Jan",null,"Verschoor","Willemsz","Heicop","Heicop"]
[null,null,"T HenB NA 1-II",null,248,{"$f":"F250","v":110},{"$f":"G250","v":5},null,null,{"$f":"J250","v":0},{"$f":"K250","v":0},{"$f":"L250","v":25},{"$f":"M250","v":3},1714,{"$f":"O250","v":"Heicop"},"Bruid","Henrikje",null,"Kortleven","Cornelisz","Leerbroek","Heicop"]
[null,null,"T HenB NA 1-II",null,249,110,6,null,null,null,null,29,4,1714,"Heicop","Bruidegom","Willem","de","Vos","Daamen","Heicop","Heicop"]
[null,null,"T HenB NA 1-II",null,250,{"$f":"F252","v":110},{"$f":"G252","v":6},null,null,{"$f":"J252","v":0},{"$f":"K252","v":0},{"$f":"L252","v":29},{"$f":"M252","v":4},1714,{"$f":"O252","v":"Heicop"},"Bruid","Aaltje",null,null,"Melisz",null,null,null,"weduwe van Joost Geeritsz"]
[null,null,"T HenB NA 1-II",null,251,110,7,null,null,null,null,16,9,1714,"Heicop","Bruidegom","Peter",null,"Brakband","Jansz","Lakerveld","Heicop"]
[null,null,"T HenB NA 1-II",null,252,{"$f":"F254","v":110},{"$f":"G254","v":7},null,null,{"$f":"J254","v":0},{"$f":"K254","v":0},{"$f":"L254","v":16},{"$f":"M254","v":9},1714,{"$f":"O254","v":"Heicop"},"Bruid","Neeltje",null,"Peel","Jansz","Heicop","Heicop"]
[null,null,"T HenB NA 1-II",null,253,110,8,null,null,null,null,20,1,1715,"Heicop","Bruidegom","Pelgrim","van","Rhijn","Otten","Everdingen","Everdingen"]
[null,null,"T HenB NA 1-II",null,254,{"$f":"F256","v":110},{"$f":"G256","v":8},null,null,{"$f":"J256","v":0},{"$f":"K256","v":0},{"$f":"L256","v":20},{"$f":"M256","v":1},1715,{"$f":"O256","v":"Heicop"},"Bruid","Maagje",null,null,"Coenen","Heicop","Heicop"]
[null,null,"T HenB NA 1-II",null,255,110,9,null,null,null,null,7,3,1715,"Heicop","Bruidegom","Arij","de","Weijer","Adriaansz","Lexmond","Heicop"]
[null,null,"T HenB NA 1-II",null,256,{"$f":"F258","v":110},{"$f":"G258","v":9},null,null,{"$f":"J258","v":0},{"$f":"K258","v":0},{"$f":"L258","v":7},{"$f":"M258","v":3},1715,{"$f":"O258","v":"Heicop"},"Bruid","Annette",null,null,"Henriksz","Heicop","Heicop"]
[null,null,"T HenB NA 1-II",null,257,110,10,null,null,null,null,12,5,1715,"Heicop","Bruidegom","Claas",null,null,"Janszen","Heicop","Heicop"]
[null,null,"T HenB NA 1-II",null,258,{"$f":"F260","v":110},{"$f":"G260","v":10},null,null,{"$f":"J260","v":0},{"$f":"K260","v":0},{"$f":"L260","v":12},{"$f":"M260","v":5},1715,{"$f":"O260","v":"Heicop"},"Bruid","Teuntje",null,"Kruif","Dirkz","Lakerveld","Heicop"]
[null,null,"T HenB NA 1-II",null,259,110,11,null,null,null,null,12,5,1715,"Heicop","Bruidegom","Jan",null,"Oirschot","Willemszen","Heicop","Heicop"]
[null,null,"T HenB NA 1-II",null,260,{"$f":"F262","v":110},{"$f":"G262","v":11},null,null,{"$f":"J262","v":0},{"$f":"K262","v":0},{"$f":"L262","v":12},{"$f":"M262","v":5},1715,{"$f":"O262","v":"Heicop"},"Bruid","Johanna",null,"Schapers","Jansz","Beltrum","Heicop"]
[null,null,"T HenB NA 1-II",null,261,111,1,null,null,null,null,17,7,1715,"Heicop","Bruidegom","Jan","de","Koster","Lucaszen","Oosterwijk","Schoonrewoerd"]
[null,null,"T HenB NA 1-II",null,262,{"$f":"F264","v":111},{"$f":"G264","v":1},null,null,{"$f":"J264","v":0},{"$f":"K264","v":0},{"$f":"L264","v":17},{"$f":"M264","v":7},1715,{"$f":"O264","v":"Heicop"},"Bruid","Anna","van","Buren","Franken","Heicop","Lexmond"]
[null,null,"T HenB NA 1-II",null,263,111,2,null,null,null,null,27,10,1715,"Schoonrewoerd","Bruidegom","Gerrit",null,"Middag","Corneliszen",null,null,null,"weduwnaar van Jannigje Roelen"]
[null,null,"T HenB NA 1-II",null,264,{"$f":"F266","v":111},{"$f":"G266","v":2},null,null,{"$f":"J266","v":0},{"$f":"K266","v":0},{"$f":"L266","v":27},{"$f":"M266","v":10},1715,{"$f":"O266","v":"Schoonrewoerd"},"Bruid","Lijsbet",null,null,"Heijmensz","Schoonrewoerd",null,null,"3 agtereenvolgende geboden in de kerk in Heijcop"]
[null,null,"T HenB NA 1-II",null,265,111,3,null,null,null,null,17,11,1715,"Heicop","Bruidegom","Joost","van den","Ham",null,"Lexmond",null,null,"weduwnaar van Henrikje Jansz Maas"]
[null,null,"T HenB NA 1-II",null,266,{"$f":"F268","v":111},{"$f":"G268","v":3},null,null,{"$f":"J268","v":0},{"$f":"K268","v":0},{"$f":"L268","v":17},{"$f":"M268","v":11},1715,{"$f":"O268","v":"Heicop"},"Bruid","Huibertje",null,null,"Henriksz",null,null,null,"weduwe van Gerrit Corneliszen Oirschot"]
[null,null,"T HenB NA 1-II",null,267,111,4,null,null,null,null,15,12,1715,"Meerkerk","Bruidegom","Jan",null,null,"Joosten",null,null,null,"weduwnaar van Barbertje Ariensz"]
[null,null,"T HenB NA 1-II",null,268,{"$f":"F270","v":111},{"$f":"G270","v":4},null,null,{"$f":"J270","v":0},{"$f":"K270","v":0},{"$f":"L270","v":15},{"$f":"M270","v":12},1715,{"$f":"O270","v":"Meerkerk"},"Bruid","Geertruid","de","Bruin","Jacobsz","Meerkerk",null,null,"In de kerk van Heijcop het laatste gebod gehad "]
[null,null,"T HenB NA 1-II",null,269,111,5,null,null,null,null,15,12,1715,"Heicop","Bruidegom","Willem",null,null,"Janszen",null,null,null,"weduwnaar van Aaltje Cornelisz"]
[null,null,"T HenB NA 1-II",null,270,{"$f":"F272","v":111},{"$f":"G272","v":5},null,null,{"$f":"J272","v":0},{"$f":"K272","v":0},{"$f":"L272","v":15},{"$f":"M272","v":12},1715,{"$f":"O272","v":"Heicop"},"Bruid","Neeltje","de","Groot","Bastiaansz","Lexmond","Heicop"]
[null,null,"T HenB NA 1-II",null,271,111,6,null,null,null,null,30,8,1716,"Leerdam","Bruidegom","Jacob","de","With","Meijertsz","Heicop","Heicop",null,"Hebben in de kerk van Heijcop het 3de gebod gehad"]
[null,null,"T HenB NA 1-II",null,272,{"$f":"F274","v":111},{"$f":"G274","v":6},null,null,{"$f":"J274","v":0},{"$f":"K274","v":0},{"$f":"L274","v":30},{"$f":"M274","v":8},1716,{"$f":"O274","v":"Leerdam"},"Bruid","Aaltje","van","Muilwijk",null,"Leerdam","t Hoogeind van Middelkoop",null,"en getrouwd te Leerdam"]
[null,null,"T HenB NA 1-II",null,273,111,7,null,null,null,null,21,2,1717,"Heicop","Bruidegom","Jasper","de","Raat","Meertensz","Zijderveld","Zijderveld"]
[null,null,"T HenB NA 1-II",null,274,{"$f":"F276","v":111},{"$f":"G276","v":7},null,null,{"$f":"J276","v":0},{"$f":"K276","v":0},{"$f":"L276","v":21},{"$f":"M276","v":2},1717,{"$f":"O276","v":"Heicop"},"Bruid","Sijgje",null,null,"Jans","Heicop","Heicop"]
[null,null,"T HenB NA 1-II",null,275,111,8,null,null,null,null,18,4,1717,"Heicop","Bruidegom","Henrik","de","Weijer","Adriaansz","Heicop","Heicop"]
[null,null,"T HenB NA 1-II",null,276,{"$f":"F278","v":111},{"$f":"G278","v":8},null,null,{"$f":"J278","v":0},{"$f":"K278","v":0},{"$f":"L278","v":18},{"$f":"M278","v":4},1717,{"$f":"O278","v":"Heicop"},"Bruid","Catharijntje",null,"Oirschot","Willems","Heicop","Heicop"]
[null,null,"T HenB NA 1-II",null,277,111,9,null,null,null,null,9,5,1717,"Heicop","Bruidegom","Willem","van","Hart","Centen","Achterland onder Groot Ammers",null,null,"Hebben hier 3 zondagen Hlijkse geboden gehad. NB: de bruidegom heeft hier maar enkele jaren gewoond om zijn kost te winnen, bij een ander altijd t huis leggende zonder fixum domicilium hier te hebben gehad."]
[null,null,"T HenB NA 1-II",null,278,{"$f":"F280","v":111},{"$f":"G280","v":9},null,null,{"$f":"J280","v":0},{"$f":"K280","v":0},{"$f":"L280","v":9},{"$f":"M280","v":5},1717,{"$f":"O280","v":"Heicop"},"Bruid","Neeltje",null,"Meerkerk","Jans","Schaik onder Leerdam"]
[null,null,"T HenB NA 1-II",null,279,111,10,null,null,null,null,14,11,1717,"Heicop","Bruidegom","Jacob",null,"Labri van Namen",null,"Vianen","Vianen"]
[null,null,"T HenB NA 1-II",null,280,{"$f":"F282","v":111},{"$f":"G282","v":10},null,null,{"$f":"J282","v":0},{"$f":"K282","v":0},{"$f":"L282","v":14},{"$f":"M282","v":11},1717,{"$f":"O282","v":"Heicop"},"Bruid","Neeltje",null,"Peel","Cornelis","Heicop","Heicop"]
[null,null,"T HenB NA 1-II",null,281,111,11,null,null,null,"na",28,11,1717,"Lexmond","Bruidegom","Peter",null,null,"Dirkszen","Heicop","Heicop",null,"Hebben op 28-11-1715 het laatste gebod gehad in de kerk in Heijcop en zijn getrouwd in Lexmond."]
[null,null,"T HenB NA 1-II",null,282,{"$f":"F284","v":111},{"$f":"G284","v":11},null,null,{"$f":"J284","v":0},{"$f":"K284","v":"na"},{"$f":"L284","v":28},{"$f":"M284","v":11},1717,{"$f":"O284","v":"Lexmond"},"Bruid","Aaltje",null,"Muilwijk","Teunis","Lakerveld","Lakerveld"]
[null,null,"T HenB NA 1-II",null,283,112,1,null,null,null,"na",20,2,1718,"Heicop","Bruidegom","Gerrit",null,null,"Janszen","Heicop",null,null,"Hebben in de kerk van Heijcop het 3de gebod gehad"]
[null,null,"T HenB NA 1-II",null,284,{"$f":"F286","v":112},{"$f":"G286","v":1},null,null,{"$f":"J286","v":0},{"$f":"K286","v":"na"},{"$f":"L286","v":20},{"$f":"M286","v":2},1718,{"$f":"O286","v":"Heicop"},"Bruid","Marigje"]
[null,null,"T HenB NA 1-II",null,285,112,2,null,null,null,null,1,5,1718,"Zijderveld","Bruidegom","Joost",null,"Werkhoven","Ariensz",null,null,null,"weduwnaar van Emmigje Willems de Vos"]
[null,null,"T HenB NA 1-II",null,286,{"$f":"F288","v":112},{"$f":"G288","v":2},null,null,{"$f":"J288","v":0},{"$f":"K288","v":0},{"$f":"L288","v":1},{"$f":"M288","v":5},1718,{"$f":"O288","v":"Zijderveld"},"Bruid","Lijsje","van der","Wolf","Barends",null,null,null,"weduwe van Dirk Teuniszen van Zijderveld, hebben in de kerk van Heijcop het derde gebod gehad en zijn getrouwd in Zijderveld"]
[null,null,"T HenB NA 1-II",null,287,112,3,null,null,null,null,8,5,1718,"Heicop","Bruidegom","Gerrit","van","Besoijen","Geeritsz","Lexmond"]
[null,null,"T HenB NA 1-II",null,288,{"$f":"F290","v":112},{"$f":"G290","v":3},null,null,{"$f":"J290","v":0},{"$f":"K290","v":0},{"$f":"L290","v":8},{"$f":"M290","v":5},1718,{"$f":"O290","v":"Heicop"},"Bruid","Metje",null,"Peel","Cornelis","Heicop","Heicop"]
[null,null,"T HenB NA 1-II",null,289,112,4,null,null,null,null,24,7,1718,"Heicop","Bruidegom","Jan","van den ","Molenwerf","Jacobsz","Everdingen"]
[null,null,"T HenB NA 1-II",null,290,{"$f":"F292","v":112},{"$f":"G292","v":4},null,null,{"$f":"J292","v":0},{"$f":"K292","v":0},{"$f":"L292","v":24},{"$f":"M292","v":7},1718,{"$f":"O292","v":"Heicop"},"Bruid","Barbara",null,"Spronk","Harmens","Beesd",null,null,"Op attestatie van Amsterdam, dat zij hare drie geboden daar in de kerk hebben gehad, gedateerd op 17 julij 1718"]
[null,null,"T HenB NA 1-II",null,291,112,5,null,null,null,null,18,12,1718,"Heicop","Bruidegom","Teunis",null,"Tukker","Joosten","Leerbroek"]
[null,null,"T HenB NA 1-II",null,292,{"$f":"F294","v":112},{"$f":"G294","v":5},null,null,{"$f":"J294","v":0},{"$f":"K294","v":0},{"$f":"L294","v":18},{"$f":"M294","v":12},1718,{"$f":"O294","v":"Heicop"},"Bruid","Jacobje","de","With","Teunis","Heicop","Heicop"]
[null,null,"T HenB NA 1-II",null,293,112,6,null,null,null,null,30,3,1719,"Heicop","Bruidegom","Willem",null,null,"Freriken",null,null,null,"weduwnaar van Gougje Willems"]
[null,null,"T HenB NA 1-II",null,294,{"$f":"F296","v":112},{"$f":"G296","v":6},null,null,{"$f":"J296","v":0},{"$f":"K296","v":0},{"$f":"L296","v":30},{"$f":"M296","v":3},1719,{"$f":"O296","v":"Heicop"},"Bruid","Beertje",null,null,"Meijerts ",null,null,null,"weduwe van Coen Dirksz"]
[null,null,"T HenB NA 1-II",null,295,112,7,null,null,null,"na",24,9,1719,"Heicop","Bruidegom","Aart",null,"Pinssen van der Aa","Bastianen","Heicop","Leerbroek"]
[null,null,"T HenB NA 1-II",null,296,{"$f":"F298","v":112},{"$f":"G298","v":7},null,null,{"$f":"J298","v":0},{"$f":"K298","v":"na"},{"$f":"L298","v":24},{"$f":"M298","v":9},1719,{"$f":"O298","v":"Heicop"},"Bruid","Ariantje",null,"Kooiman","Wouters ","Polsbroek","Polsbroek",null,"Hebben in de kerk van Heijcop op 24-9-1719 haar 3 gebod gehad"]
[null,null,"T HenB NA 1-II",null,297,112,8,null,null,null,null,5,11,1719,"Heicop","Bruidegom","Kors","de","Bruin","Lammertsz",null,"Heicop",null,"weduwnaar van Marijtje Jans Brakband"]
[null,null,"T HenB NA 1-II",null,298,{"$f":"F300","v":112},{"$f":"G300","v":8},null,null,{"$f":"J300","v":0},{"$f":"K300","v":0},{"$f":"L300","v":5},{"$f":"M300","v":11},1719,{"$f":"O300","v":"Heicop"},"Bruid","Cornelia",null,"Blom","Joosten",null,"Heicop",null,"weduwe van Peter Peel"]
[null,null,"T HenB NA 1-II",null,299,112,9,null,null,null,null,14,1,1720,"Heicop","Bruidegom","Henrik",null,null,"Winandsz","Heicop","Heicop"]
[null,null,"T HenB NA 1-II",null,300,{"$f":"F302","v":112},{"$f":"G302","v":9},null,null,{"$f":"J302","v":0},{"$f":"K302","v":0},{"$f":"L302","v":14},{"$f":"M302","v":1},1720,{"$f":"O302","v":"Heicop"},"Bruid","Geertruid ",null,null,"Gerrits","Schoonrewoerd","Heicop"]
[null,null,"T HenB NA 1-II",null,301,112,10,null,null,null,null,14,1,1720,"Heicop","Bruidegom","Jan",null,null,"Lammertsz","Heicop","Heicop"]
[null,null,"T HenB NA 1-II",null,302,{"$f":"F304","v":112},{"$f":"G304","v":10},null,null,{"$f":"J304","v":0},{"$f":"K304","v":0},{"$f":"L304","v":14},{"$f":"M304","v":1},1720,{"$f":"O304","v":"Heicop"},"Bruid","Annigje",null,null,"Thomas ","Heicop","Heicop"]
[null,null,"T HenB NA 1-II",null,303,112,11,null,null,null,null,21,1,1720,"Heicop","Bruidegom","Dirk",null,"Boer","Woutersz","Schoonrewoerd"]
[null,null,"T HenB NA 1-II",null,304,{"$f":"F306","v":112},{"$f":"G306","v":11},null,null,{"$f":"J306","v":0},{"$f":"K306","v":0},{"$f":"L306","v":21},{"$f":"M306","v":1},1720,{"$f":"O306","v":"Heicop"},"Bruid","Grietje",null,null,"Jans","Heicop","Heicop"]
[null,null,"T HenB NA 1-II",null,305,113,1,null,null,null,null,14,4,1720,"Heicop","Bruidegom","Arij",null,"Dikken","Henriksz",null,null,null,"weduwnaar van Magdaleentje Cornelis"]
[null,null,"T HenB NA 1-II",null,306,{"$f":"F308","v":113},{"$f":"G308","v":1},null,null,{"$f":"J308","v":0},{"$f":"K308","v":0},{"$f":"L308","v":14},{"$f":"M308","v":4},1720,{"$f":"O308","v":"Heicop"},"Bruid","Willemtje ",null,null,"Jans","Schoonrewoerd",null,null,"Hebben het 3 gebod gehad en zijn getroud in onze kerk diezelve dag."]
[null,null,"T HenB NA 1-II",null,307,113,2,null,null,null,"na",28,4,1720,"Lexmond","Bruidegom","Meijert",null,null,"Jansz",null,null,null,"Hebben het 3 gebod gehad en zijn getroud te Lexmond"]
[null,null,"T HenB NA 1-II",null,308,{"$f":"F310","v":113},{"$f":"G310","v":2},null,null,{"$f":"J310","v":0},{"$f":"K310","v":"na"},{"$f":"L310","v":28},{"$f":"M310","v":4},1720,{"$f":"O310","v":"Lexmond"},"Bruid","Ariaantje",null,"Tienhoven","Jacobs "]
[null,null,"T HenB NA 1-II",null,309,113,3,null,null,null,null,22,12,1720,"Heicop","Bruidegom","Jan ",null,"Vervloet",null,"Asperen"]
[null,null,"T HenB NA 1-II",null,310,{"$f":"F312","v":113},{"$f":"G312","v":3},null,null,{"$f":"J312","v":0},{"$f":"K312","v":0},{"$f":"L312","v":22},{"$f":"M312","v":12},1720,{"$f":"O312","v":"Heicop"},"Bruid","Marij",null,null,"Pellen","Heicop","Heicop"]
[null,null,"T HenB NA 1-II",null,311,113,4,null,null,null,null,25,5,1721,"Heicop","Bruidegom","Jan","de","With","Jansz",null,"Zijderveld",null,"weduwnaar van Hendrijntje Jans"]
[null,null,"T HenB NA 1-II",null,312,{"$f":"F314","v":113},{"$f":"G314","v":4},null,null,{"$f":"J314","v":0},{"$f":"K314","v":0},{"$f":"L314","v":25},{"$f":"M314","v":5},1721,{"$f":"O314","v":"Heicop"},"Bruid","Marijgje","van","Velsen","Claas ",null,"Heicop",null,"weduwe van Jan Henriksz van Loon"]
[null,null,"T HenB NA 1-II",null,313,113,5,null,null,null,null,9,11,1721,"Heicop","Bruidegom","Gerrit",null,null,"Aartsz","Heicop","Heicop"]
[null,null,"T HenB NA 1-II",null,314,{"$f":"F316","v":113},{"$f":"G316","v":5},null,null,{"$f":"J316","v":0},{"$f":"K316","v":0},{"$f":"L316","v":9},{"$f":"M316","v":11},1721,{"$f":"O316","v":"Heicop"},"Bruid","Marij",null,null,"Jansz","Schoonrewoerd","Heicop"]
[null,null,"T HenB NA 1-II",null,315,113,6,null,null,null,null,9,11,1721,"Heicop","Bruidegom","Egbert",null,null,"Jansz","Bergambacht"]
[null,null,"T HenB NA 1-II",null,316,{"$f":"F318","v":113},{"$f":"G318","v":6},null,null,{"$f":"J318","v":0},{"$f":"K318","v":0},{"$f":"L318","v":9},{"$f":"M318","v":11},1721,{"$f":"O318","v":"Heicop"},"Bruid","Florisje",null,null,"Jans","Schoonrewoerd","Heicop"]
[null,null,"T HenB NA 1-II",null,317,113,7,null,null,null,null,1,2,1722,"Heicop","Bruidegom","Henrik",null,null,"Dirksz ","Heicop","Heicop"]
[null,null,"T HenB NA 1-II",null,318,{"$f":"F320","v":113},{"$f":"G320","v":7},null,null,{"$f":"J320","v":0},{"$f":"K320","v":0},{"$f":"L320","v":1},{"$f":"M320","v":2},1722,{"$f":"O320","v":"Heicop"},"Bruid","Jannigje",null,"Middelkoop","Peters","Heicop","Heicop"]
[null,null,"T HenB NA 1-II",null,319,113,8,null,null,null,null,22,11,1722,"Heicop","Bruidegom","Cornelis","de","    ","Jansz","Hoogeind van Middelkoop",null,null,"weduwnaar van Jannigje Huiberts"]
[null,null,"T HenB NA 1-II",null,320,{"$f":"F322","v":113},{"$f":"G322","v":8},null,null,{"$f":"J322","v":0},{"$f":"K322","v":0},{"$f":"L322","v":22},{"$f":"M322","v":11},1722,{"$f":"O322","v":"Heicop"},"Bruid","Neeltje","de","With","Goverts","Heicop","Heicop"]
[null,null,"T HenB NA 1-II",null,321,113,9,null,null,null,null,30,5,1723,"Heicop","Bruidegom","Henrik","de","Hartog",null,"Schoonrewoerd",null,null,"weduwnaar van Jannigje Peters Walbeek"]
[null,null,"T HenB NA 1-II",null,322,{"$f":"F324","v":113},{"$f":"G324","v":9},null,null,{"$f":"J324","v":0},{"$f":"K324","v":0},{"$f":"L324","v":30},{"$f":"M324","v":5},1723,{"$f":"O324","v":"Heicop"},"Bruid","Grietje",null,null,"Franken",null,"Heicop"]
[null,null,"T HenB NA 1-II",null,323,113,10,null,null,null,null,11,7,1723,"Heicop","Bruidegom","Teunis",null,"Middelkoop","Ariensz",null,"Heicop"]
[null,null,"T HenB NA 1-II",null,324,{"$f":"F326","v":113},{"$f":"G326","v":10},null,null,{"$f":"J326","v":0},{"$f":"K326","v":0},{"$f":"L326","v":11},{"$f":"M326","v":7},1723,{"$f":"O326","v":"Heicop"},"Bruid","Aartje","de","With","Ariens",null,"Heicop"]
[null,null,"T HenB NA 1-II",null,325,113,11,null,null,null,null,10,10,1723,"Heicop","Bruidegom","Teunis",null,"Groeneveld","Gerritsz","Meerkerk"]
[null,null,"T HenB NA 1-II",null,326,{"$f":"F328","v":113},{"$f":"G328","v":11},null,null,{"$f":"J328","v":0},{"$f":"K328","v":0},{"$f":"L328","v":10},{"$f":"M328","v":10},1723,{"$f":"O328","v":"Heicop"},"Bruid","Maagje","van","Heikoop","Cornelis","Heicop","Heicop",null,"weduwe van Jan Dirksz Andrieszen"]
[null,null,"T HenB NA 1-II",null,327,114,1,null,null,null,null,26,3,1724,"Heicop","Bruidegom","Gerrit",null,null,"Lammertsz","Heicop","Heicop"]
[null,null,"T HenB NA 1-II",null,328,{"$f":"F330","v":114},{"$f":"G330","v":1},null,null,{"$f":"J330","v":0},{"$f":"K330","v":0},{"$f":"L330","v":26},{"$f":"M330","v":3},1724,{"$f":"O330","v":"Heicop"},"Bruid","Ariaantje",null,"Taats","Hendriksz"," 't Recht van ter Leede"]
[null,null,"T HenB NA 1-II",null,329,114,2,null,null,null,null,7,5,1724,"Heicop","Bruidegom","Abraham",null,"Paardekoper","Gerritszen","Leerbroek"]
[null,null,"T HenB NA 1-II",null,330,{"$f":"F332","v":114},{"$f":"G332","v":2},null,null,{"$f":"J332","v":0},{"$f":"K332","v":0},{"$f":"L332","v":7},{"$f":"M332","v":5},1724,{"$f":"O332","v":"Heicop"},"Bruid","Neeltje",null,null,"Willems","Heicop"]
[null,null,"T HenB NA 1-II",null,331,114,3,null,null,null,null,6,8,1724,"Heicop","Bruidegom","Cornelis",null,"Oirschot","Janszen",null,"Heicop"]
[null,null,"T HenB NA 1-II",null,332,{"$f":"F334","v":114},{"$f":"G334","v":3},null,null,{"$f":"J334","v":0},{"$f":"K334","v":0},{"$f":"L334","v":6},{"$f":"M334","v":8},1724,{"$f":"O334","v":"Heicop"},"Bruid","Teuntje",null,"Kruif","Dirke",null,"Heicop",null,"weduwe van Claas Janszen"]
[null,null,"T HenB NA 1-II",null,333,114,4,null,null,null,null,1,3,1725,"Heicop","Bruidegom","Jan",null,null,"Joosten",null,"Heicop",null,"weduwnaar van Geertruid Jacobs de Bruin"]
[null,null,"T HenB NA 1-II",null,334,{"$f":"F336","v":114},{"$f":"G336","v":4},null,null,{"$f":"J336","v":0},{"$f":"K336","v":0},{"$f":"L336","v":1},{"$f":"M336","v":3},1725,{"$f":"O336","v":"Heicop"},"Bruid","Neeltje",null,null,"Willems",null,"Heicop",null,"weduwe van Teunis Claaszen"]
[null,null,"T HenB NA 1-II",null,335,114,5,null,null,null,null,8,4,1725,"Bleskensgraaf","Bruidegom","Pieter",null,"Schoonrewoerd","Gijsbertsz","Hoornaar","Bleskensgraaf",null,"Hebben hier op 8 april het 3 gebod gehad en zijn getrouwd te Bleskensgraaf"]
[null,null,"T HenB NA 1-II",null,336,{"$f":"F338","v":114},{"$f":"G338","v":5},null,null,{"$f":"J338","v":0},{"$f":"K338","v":0},{"$f":"L338","v":8},{"$f":"M338","v":4},1725,{"$f":"O338","v":"Bleskensgraaf"},"Bruid","Celijtje",null,"Meerkerk","Jans","Heicop","Bleskensgraaf"]
[null,null,"T HenB NA 1-II",null,337,114,6,null,null,null,null,22,8,1725,"Heicop","Bruidegom","Jan",null,"Schas ","Laurents",null,"Vianen",null,"thesaurier van Vianen"]
[null,null,"T HenB NA 1-II",null,338,{"$f":"F340","v":114},{"$f":"G340","v":6},null,null,{"$f":"J340","v":0},{"$f":"K340","v":0},{"$f":"L340","v":22},{"$f":"M340","v":8},1725,{"$f":"O340","v":"Heicop"},"Bruid","Anna",null,"Boellaart",null,"Asperen",null,null,"op attestatie van Vianen en Asperen"]
[null,null,"T HenB NA 1-II",null,339,114,7,null,null,null,null,26,8,1725,"Acquoy","Bruidegom","Hessel",null,"Verwoerd","Willemsz","Heicop",null,null,"Hebben hier het 3 gebod gehad en zijn dezelfde dag getrouwd te Acquoi"]
[null,null,"T HenB NA 1-II",null,340,{"$f":"F342","v":114},{"$f":"G342","v":7},null,null,{"$f":"J342","v":0},{"$f":"K342","v":0},{"$f":"L342","v":26},{"$f":"M342","v":8},1725,{"$f":"O342","v":"Acquoy"},"Bruid","Claesje",null,"Westerhoud","Ariens","Acquoy"]
[null,null,"T HenB NA 1-II",null,341,114,8,null,null,null,null,"??","??",1726,"Heicop","Bruidegom","Pieter",null,"Groeneveld","Geeritsz",null,null,null,"In de kerk haar 3 gebod gehad"]
[null,null,"T HenB NA 1-II",null,342,{"$f":"F344","v":114},{"$f":"G344","v":8},null,null,{"$f":"J344","v":0},{"$f":"K344","v":0},{"$f":"L344","v":"??"},{"$f":"M344","v":"??"},1726,{"$f":"O344","v":"Heicop"},"Bruid","Johanna","van","Veen",null,null,null,null,"weduwe van Jan de Kruif"]
[null,null,"T HenB NA 1-II",null,343,114,9,null,null,null,null,12,5,1726,"Heicop","Bruidegom","Jan","van den","Hoek","Jansz","Benschop"]
[null,null,"T HenB NA 1-II",null,344,{"$f":"F346","v":114},{"$f":"G346","v":9},null,null,{"$f":"J346","v":0},{"$f":"K346","v":0},{"$f":"L346","v":12},{"$f":"M346","v":5},1726,{"$f":"O346","v":"Heicop"},"Bruid","Maagje",null,null,"Jans",null,"Heicop"]
[null,null,"T HenB NA 1-II",null,345,114,10,null,null,null,null,10,11,1726,"Heicop","Bruidegom","Bastiaan","van","Besoijen","Geeritsz","Lexmond","Heicop"]
[null,null,"T HenB NA 1-II",null,346,{"$f":"F348","v":114},{"$f":"G348","v":10},null,null,{"$f":"J348","v":0},{"$f":"K348","v":0},{"$f":"L348","v":10},{"$f":"M348","v":11},1726,{"$f":"O348","v":"Heicop"},"Bruid","Jannigje",null,"Kool","Huiberts","Zijderveld","Heicop"]
[null,null,"T HenB NA 1-II",null,347,115,1,null,null,null,null,30,3,1727,"Heicop","Bruidegom","Cornelis",null,null,"Jansen",null,"'t Waal"]
[null,null,"T HenB NA 1-II",null,348,{"$f":"F350","v":115},{"$f":"G350","v":1},null,null,{"$f":"J350","v":0},{"$f":"K350","v":0},{"$f":"L350","v":30},{"$f":"M350","v":3},1727,{"$f":"O350","v":"Heicop"},"Bruid","Aeltje",null,"Heijcop","Jansen","Heicop","'t Waal"]
[null,null,"T HenB NA 1-II",null,349,116,1,null,null,null,null,28,9,1727,"Heicop","Bruidegom","Anthony","van der","Hoeven",null,null,"Gorinchem",null,"weduwnaar van Geertruij Swens"]
[null,null,"T HenB NA 1-II",null,350,{"$f":"F352","v":116},{"$f":"G352","v":1},null,null,{"$f":"J352","v":0},{"$f":"K352","v":0},{"$f":"L352","v":28},{"$f":"M352","v":9},1727,{"$f":"O352","v":"Heicop"},"Bruid","Maria Martina","van ","s Graventroost",null,"Meeuwen"]
[null,null,"T HenB NA 1-II",null,351,116,2,null,null,null,null,26,10,1727,"Heicop","Bruidegom","Jan ",null,null,"Joosten","Heicop","Heicop"]
[null,null,"T HenB NA 1-II",null,352,{"$f":"F354","v":116},{"$f":"G354","v":2},null,null,{"$f":"J354","v":0},{"$f":"K354","v":0},{"$f":"L354","v":26},{"$f":"M354","v":10},1727,{"$f":"O354","v":"Heicop"},"Bruid","Divertje",null,null,"Dirks","Heicop","Heicop"]
[null,null,"T HenB NA 1-II",null,353,116,3,null,null,null,null,30,11,1727,"Heicop","Bruidegom","Jan",null,"Hopman",null,"Arnhem"]
[null,null,"T HenB NA 1-II",null,354,{"$f":"F356","v":116},{"$f":"G356","v":3},null,null,{"$f":"J356","v":0},{"$f":"K356","v":0},{"$f":"L356","v":30},{"$f":"M356","v":11},1727,{"$f":"O356","v":"Heicop"},"Bruid","Dirkje","de","Waal","Jans","Heicop"]
[null,null,"T HenB NA 1-II",null,355,116,4,null,null,null,null,1,2,1728,"Heicop","Bruidegom","Klaas","van der","Bies","Sandersz","Noordeloos",null,null,"weduwnaar van Margje Jacobs Scheer"]
[null,null,"T HenB NA 1-II",null,356,{"$f":"F358","v":116},{"$f":"G358","v":4},null,null,{"$f":"J358","v":0},{"$f":"K358","v":0},{"$f":"L358","v":1},{"$f":"M358","v":2},1728,{"$f":"O358","v":"Heicop"},"Bruid","Lijntje","de","Mik","Willems","Noordeloos"]
[null,null,"T HenB NA 1-II",null,357,116,5,null,null,null,null,15,5,1729,"Heicop","Bruidegom","Marijnus","van","Esch","Louwen","Boeicop"]
[null,null,"T HenB NA 1-II",null,358,{"$f":"F360","v":116},{"$f":"G360","v":5},null,null,{"$f":"J360","v":0},{"$f":"K360","v":0},{"$f":"L360","v":15},{"$f":"M360","v":5},1729,{"$f":"O360","v":"Heicop"},"Bruid","Judighje",null,null,null,"Heicop"]
[null,null,"T HenB NA 1-II",null,359,116,6,null,null,null,null,6,11,1729,"Heicop","Bruidegom","Willem","de ","Bruijn",null,"Jaarsveld","Kortenhoeven",null,"weduwnaar van Aantje Jans Vos"]
[null,null,"T HenB NA 1-II",null,360,{"$f":"F362","v":116},{"$f":"G362","v":6},null,null,{"$f":"J362","v":0},{"$f":"K362","v":0},{"$f":"L362","v":6},{"$f":"M362","v":11},1729,{"$f":"O362","v":"Heicop"},"Bruid","Maagje",null,null,"Jacobs","Heicop"]
[null,null,"T HenB NA 1-II",null,361,116,7,null,null,null,null,28,5,1730,"Heicop","Bruidegom","Teunis",null,null,"Joosten",null,"Heicop",null,"weduwnaar van Jabikje Teunis"]
[null,null,"T HenB NA 1-II",null,362,{"$f":"F364","v":116},{"$f":"G364","v":7},null,null,{"$f":"J364","v":0},{"$f":"K364","v":0},{"$f":"L364","v":28},{"$f":"M364","v":5},1730,{"$f":"O364","v":"Heicop"},"Bruid","Neeltje",null,null,"Jans","Meerkerk","Heicop"]
[null,null,"T HenB NA 1-II",null,363,116,8,null,null,null,null,8,10,1730,"Heicop","Bruidegom","Frank",null,null,"Melissen",null,"Heicop",null,"weduwnaar van Cornelia Peters"]
[null,null,"T HenB NA 1-II",null,364,{"$f":"F366","v":116},{"$f":"G366","v":8},null,null,{"$f":"J366","v":0},{"$f":"K366","v":0},{"$f":"L366","v":8},{"$f":"M366","v":10},1730,{"$f":"O366","v":"Heicop"},"Bruid","Hejltje","de","Vos","Willems","Zijderveld","Heicop"]
[null,null,"T HenB NA 1-II",null,365,116,9,null,null,null,null,31,12,1730,"Heicop","Bruidegom","Klaas",null,"Spinhoven","Jacobsz","Lexmond","Heicop"]
[null,null,"T HenB NA 1-II",null,366,{"$f":"F368","v":116},{"$f":"G368","v":9},null,null,{"$f":"J368","v":0},{"$f":"K368","v":0},{"$f":"L368","v":31},{"$f":"M368","v":12},1730,{"$f":"O368","v":"Heicop"},"Bruid","Maajke",null,"Hejkop","Jans","Heicop","Heicop"]
[null,null,"T HenB NA 1-II",null,367,116,10,null,null,null,null,4,2,1731,"Heicop","Bruidegom","Jan",null,"Stigter","Dame","Heicop"]
[null,null,"T HenB NA 1-II",null,368,{"$f":"F370","v":116},{"$f":"G370","v":10},null,null,{"$f":"J370","v":0},0,4,2,1731,"Heicop","Bruid","Katharina","van","Loon","Pieters","Noord-Polsbroek","Heicop"]
[null,null,"T HenB NA 1-II",null,369,124,1,null,null,null,null,8,3,1731,"Heicop","Bruidegom","Gijsbert",null,null,"Jansz","Heicop","Heicop"]
[null,null,"T HenB NA 1-II",null,370,{"$f":"F372","v":124},{"$f":"G372","v":1},null,null,{"$f":"J372","v":0},0,8,3,1731,"Heicop","Bruid","Aarjaantje","van den ","Lenoy","Willems","Kortgerecht onder Schoonderwoerd","Heicop"]
[null,null,"T HenB NA 1-II",null,371,124,2,null,null,null,null,11,6,1731,"Heicop","Bruidegom","Gerrit",null,"Scholten",null,"Hedel"]
[null,null,"T HenB NA 1-II",null,372,{"$f":"F374","v":124},{"$f":"G374","v":2},null,null,{"$f":"J374","v":0},0,11,6,1731,"Heicop","Bruid","Catharina",null,"Schapers",null,"Neede"]
[null,null,"T HenB NA 1-II",null,373,124,3,null,null,null,null,11,6,1731,"Heicop","Bruidegom","Dirk",null,"Zujdam","Reijersz","Heicop"]
[null,null,"T HenB NA 1-II",null,374,{"$f":"F376","v":124},{"$f":"G376","v":3},null,null,{"$f":"J376","v":0},0,11,6,1731,"Heicop","Bruid","Margje",null,"Stigter","Dame","Heicop"]
[null,null,"T HenB NA 1-II",null,375,124,4,null,null,null,null,8,7,1731,"Heicop","Bruidegom","Hermannus",null,"Henning",null,null,null,null,"Hermannus Henning, j.m., sergeant onder 't regiment van den hertog van Saxen Eijsenach in de comp. van capt. Kettler, nu in guarnisoen te Swol - Christina Schapers, j.d.van Zutphen"]
[null,null,"T HenB NA 1-II",null,376,{"$f":"F378","v":124},{"$f":"G378","v":4},null,null,{"$f":"J378","v":0},0,8,7,1731,"Heicop","Bruid","Christina ",null,"Schapers",null,"Zutphen"]
[null,null,"T HenB NA 1-II",null,377,124,5,null,null,null,null,21,10,1731,"Heicop","Bruidegom","Arij","van","Lakerveld","Jansz",null,"Lakerveld onder Lexmond",null,"weduwnaar van Teuntje Jacobs van Mourik"]
[null,null,"T HenB NA 1-II",null,378,{"$f":"F380","v":124},{"$f":"G380","v":5},null,null,{"$f":"J380","v":0},0,21,10,1731,"Heicop","Bruid","Lejsje",null,"Brouwer","Johannes",null,"Heijkop"]
[null,null,"T HenB NA 1-II",null,379,124,6,null,null,null,null,2,12,1731,"Heicop","Bruidegom","Dirk",null,"Hejkop","Jansz","Heicop","Heicop"]
[null,null,"T HenB NA 1-II",null,380,{"$f":"F382","v":124},{"$f":"G382","v":6},null,null,{"$f":"J382","v":0},0,2,12,1731,"Heicop","Bruid","Annigje",null,null,"Hendriks","Heicop","Heicop"]
[null,null,"T HenB NA 1-II",null,381,124,7,null,null,null,null,24,2,1732,"Heicop","Bruidegom","Kornelis","van","Kortensoever","Kornelissen","Kortenhoeven onder Lexmond","Kortenhoeven onder Lexmond"]
[null,null,"T HenB NA 1-II",null,382,{"$f":"F384","v":124},{"$f":"G384","v":7},null,null,{"$f":"J384","v":0},0,24,2,1732,"Heicop","Bruid","Jannigje","de","Wit ","Franken","Heicop","Heicop"]
[null,null,"T HenB NA 1-II",null,383,124,8,2,5,1732,"Heicop",22,5,1732,"Heicop","Bruidegom","Giorg","van ","Drunen",null,null,null,null,"predikant in Heijcop"]
[null,null,"T HenB NA 1-II",null,384,{"$f":"F386","v":124},{"$f":"G386","v":8},2,5,{"$f":"J386","v":1732},"Heicop",22,5,1732,"Heicop","Bruid","Anna",null,"Schas ",null,null,null,null,"weduwe van Everd Boellaard"]
[null,null,"T HenB NA 1-II",null,385,125,1,null,null,null,null,25,5,1732,"Heicop","Bruidegom","Maarten",null,"Middelkoop","Gijsbertsz","Heicop","Heicop"]
[null,null,"T HenB NA 1-II",null,386,{"$f":"F388","v":125},{"$f":"G388","v":1},null,null,{"$f":"J388","v":0},0,25,5,1732,"Heicop","Bruid","Aarjaantje",null,"Fak","Ariens","Heicop","Heicop"]
[null,null,"T HenB NA 1-II",null,387,125,2,null,null,null,null,14,9,1732,"Heicop","Bruidegom","Kornelis",null,null,"Jansz","Heicop","Heicop"]
[null,null,"T HenB NA 1-II",null,388,{"$f":"F390","v":125},{"$f":"G390","v":2},null,null,{"$f":"J390","v":0},0,14,9,1732,"Heicop","Bruid","Lijsbit",null,"Moot","Hendriks","Oosterwijk","Heicop"]
[null,null,"T HenB NA 1-II",null,389,125,3,null,null,null,null,9,11,1732,"Heicop","Bruidegom","Arij","de","Wejer","Adriaansz",null,"Heicop",null,"weduwnaar van Annette Hendriks"]
[null,null,"T HenB NA 1-II",null,390,{"$f":"F392","v":125},{"$f":"G392","v":3},null,null,{"$f":"J392","v":0},0,9,11,1732,"Heicop","Bruid","Maagje","de","Vroome","Jacobs",null,"Heicop",null,"weduwe van Willem Gerritsz de Bruijn"]
[null,null,"T HenB NA 1-II",null,391,125,4,null,null,null,null,25,1,1733,"Heicop","Bruidegom","Kornelis",null,"Stigter","Aardse","Heicop","Heicop"]
[null,null,"T HenB NA 1-II",null,392,{"$f":"F394","v":125},{"$f":"G394","v":4},null,null,{"$f":"J394","v":0},0,25,1,1733,"Heicop","Bruid","Metje","van","Santen","Gerrits","Schoonrewoerd","Heicop"]
[null,null,"T HenB NA 1-II",null,393,125,5,null,null,null,null,22,2,1733,"Heicop","Bruidegom","Geerlof",null,"Coyman","Gemis","Moolnaarsgraaf"]
[null,null,"T HenB NA 1-II",null,394,{"$f":"F396","v":125},{"$f":"G396","v":5},null,null,{"$f":"J396","v":0},0,22,2,1733,"Heicop","Bruid","Dirkje",null,"Stigter","Dame","Heicop"]
[null,null,"T HenB NA 1-II",null,395,125,6,null,null,null,null,8,3,1733,"Heicop","Bruidegom","Anthony","van","Metere","Willems","Schoonrewoerd","Schoonrewoerd"]
[null,null,"T HenB NA 1-II",null,396,{"$f":"F398","v":125},{"$f":"G398","v":6},null,null,{"$f":"J398","v":0},0,8,3,1733,"Heicop","Bruid","Neeltje",null,null,"Willems","Heicop","Heicop"]
[null,null,"T HenB NA 1-II",null,397,125,7,null,null,null,null,3,4,1733,"Heicop","Bruidegom","Peter",null,"Bronkhorst","Jansse","Zijderveld"]
[null,null,"T HenB NA 1-II",null,398,{"$f":"F400","v":125},{"$f":"G400","v":7},null,null,{"$f":"J400","v":0},0,3,4,1733,"Heicop","Bruid","Aafje",null,null,"Dirks","Heicop","Heicop"]
[null,null,"T HenB NA 1-II",null,399,125,8,null,null,null,null,19,6,1733,"Heicop","Bruidegom","Bastiaan",null,null,"Joosten","Heicop","Heicop"]
[null,null,"T HenB NA 1-II",null,400,{"$f":"F402","v":125},{"$f":"G402","v":8},null,null,{"$f":"J402","v":0},0,19,6,1733,"Heicop","Bruid","Marijgje",null,"Brandwijk","Leenders","Bleskensgraaf"]
[null,null,"T HenB NA 1-II",null,401,126,1,null,null,null,null,26,4,1733,"Heicop","Bruidegom","Teunis",null,null,"Jacobs","Heicop"]
[null,null,"T HenB NA 1-II",null,402,{"$f":"F404","v":126},{"$f":"G404","v":1},null,null,{"$f":"J404","v":0},0,26,4,1733,"Heicop","Bruid","Majke",null,"Hertog","Kornelis ","Zijderveld"]
[null,null,"T HenB NA 1-II",null,403,127,1,null,null,null,null,22,3,1735,"Heicop","Bruidegom","Klaes",null,"Middelkoop","Floor","Heicop"]
[null,null,"T HenB NA 1-II",null,404,{"$f":"F406","v":127},{"$f":"G406","v":1},null,null,{"$f":"J406","v":0},0,22,3,1735,"Heicop","Bruid","Kaatje","van","Loon","Pieters","Heicop",null,null,"weduwe van Jan Dame de Stigter"]
[null,null,"T HenB NA 1-II",null,405,127,2,null,null,null,null,17,4,1735,"Heicop","Bruidegom","Huig","de","Wit","Govers","Heicop","Heicop"]
[null,null,"T HenB NA 1-II",null,406,{"$f":"F408","v":127},{"$f":"G408","v":2},null,null,{"$f":"J408","v":0},0,17,4,1735,"Heicop","Bruid","Maagje",null,null,"Willems ","Heicop","Heicop"]
[null,null,"T HenB NA 1-II",null,407,127,3,null,null,null,null,1,9,1735,"Heicop","Bruidegom","Johannes",null,"Kelderman","Hermannus","Zaltbommel"]
[null,null,"T HenB NA 1-II",null,408,{"$f":"F410","v":127},{"$f":"G410","v":3},null,null,{"$f":"J410","v":0},0,1,9,1735,"Heicop","Bruid","Francina",null,"Koning","Maria","Leerdam"]
[null,null,"T HenB NA 1-II",null,409,127,4,null,null,null,null,15,1,1736,"Heicop","Bruidegom","Arij",null,null,"Jansen","Heicop"]
[null,null,"T HenB NA 1-II",null,410,{"$f":"F412","v":127},{"$f":"G412","v":4},null,null,{"$f":"J412","v":0},0,15,1,1736,"Heicop","Bruid","Jannetje",null,"Wyburg","Aarten","Brakelen","Heicop"]
[null,null,"T HenB NA 1-II",null,411,127,5,null,null,null,null,29,1,1736,"Heicop","Bruidegom","Michiel",null,null,"Leuwestein","Zijderveld"]
[null,null,"T HenB NA 1-II",null,412,{"$f":"F414","v":127},{"$f":"G414","v":5},null,null,{"$f":"J414","v":0},0,29,1,1736,"Heicop","Bruid","Antonia",null,"Diepenhorst",null,"Lexmond"]
[null,null,"T HenB NA 1-II",null,413,127,6,null,null,null,null,5,2,1736,"Heicop","Bruidegom","Bastiaan",null,null,"Jakobsen","Heicop","Heicop"]
[null,null,"T HenB NA 1-II",null,414,{"$f":"F416","v":127},{"$f":"G416","v":6},null,null,{"$f":"J416","v":0},0,5,2,1736,"Heicop","Bruid","Jannigje",null,"Sterk","Cornelissen","Schoonrewoerd","Heicop"]
[null,null,"T HenB NA 1-II",null,415,127,7,null,null,null,null,21,10,1736,"Heicop","Bruidegom","Claas","van","Loon",null,"Heicop","Heicop"]
[null,null,"T HenB NA 1-II",null,416,{"$f":"F418","v":127},{"$f":"G418","v":7},null,null,{"$f":"J418","v":0},0,21,10,1736,"Heicop","Bruid","Regina",null,"Koopman",null,"Kort Hinderdam","Rotterdam"]
[null,null,"T HenB NA 1-II",null,417,128,1,null,null,null,null,2,5,1737,"Heicop","Bruidegom","Jakob","de","Wilt","Gijsbertsen","Heicop","Heicop"]
[null,null,"T HenB NA 1-II",null,418,{"$f":"F420","v":128},{"$f":"G420","v":1},null,null,{"$f":"J420","v":0},0,2,5,1737,"Heicop","Bruid","Beligje",null,null,"Thomas ","Heicop","Heicop"]
[null,null,"T HenB NA 1-II",null,419,128,2,null,null,null,null,14,7,1737,"Heicop","Bruidegom","Cornelis",null,"Zijervelt","Gerritsen","Zijderveld","Boeicop"]
[null,null,"T HenB NA 1-II",null,420,{"$f":"F422","v":128},{"$f":"G422","v":2},null,null,{"$f":"J422","v":0},0,14,7,1737,"Heicop","Bruid","Arriaantje","de","Wit","Govers","Heicop","Heicop"]
[null,null,"T HenB NA 1-II",null,421,128,3,null,null,null,null,17,11,1737,"Heicop","Bruidegom","Geert ","van","Vuuren","Lambertsen","Niewland"]
[null,null,"T HenB NA 1-II",null,422,{"$f":"F424","v":128},{"$f":"G424","v":3},null,null,{"$f":"J424","v":0},0,17,11,1737,"Heicop","Bruid","Hendrikjen",null,"Dikker","Ariens","Heicop","Heicop"]
[null,null,"T HenB NA 1-II",null,423,128,4,null,null,null,null,12,5,1738,"Heicop","Bruidegom","Claes ",null,null,"Freriks","Heicop","Heicop"]
[null,null,"T HenB NA 1-II",null,424,{"$f":"F426","v":128},{"$f":"G426","v":4},null,null,{"$f":"J426","v":0},0,12,5,1738,"Heicop","Bruid","Sara","den","Hartog","Huiberts","Schoonrewoerd","Heicop"]
[null,null,"T HenB NA 1-II",null,425,128,5,null,null,null,null,23,11,1738,"Heicop","Bruidegom","Jan",null,"Sterk","Cornelissen","Schoonrewoerd","Schoonrewoerd",null,"weduwnaar van Maria Cornelisse Bogaart"]
[null,null,"T HenB NA 1-II",null,426,{"$f":"F428","v":128},{"$f":"G428","v":5},null,null,{"$f":"J428","v":0},0,23,11,1738,"Heicop","Bruid","Magtelt",null,"Stigter","Aartsen","Heicop","Heicop"]
[null,null,"T HenB NA 1-II",null,427,128,6,null,null,null,null,14,12,1738,"Heicop","Bruidegom","Jakobus",null,"Makop",null,"Heicop","Heicop"]
[null,null,"T HenB NA 1-II",null,428,{"$f":"F430","v":128},{"$f":"G430","v":6},null,null,{"$f":"J430","v":0},0,14,12,1738,"Heicop","Bruid","Arriaantje","de","Jong","Meertens ","Leerdam","Heicop"]
[null,null,"T HenB NA 1-II",null,429,128,7,null,null,null,null,15,2,1739,"Heicop","Bruidegom","Pieter",null,null,"Joosten","Heicop","Lopik"]
[null,null,"T HenB NA 1-II",null,430,{"$f":"F432","v":128},{"$f":"G432","v":7},null,null,{"$f":"J432","v":0},0,15,2,1739,"Heicop","Bruid","Neeltje","van der","Velde","Ariense","Lopik","Lopik"]
[null,null,"T HenB NA 1-II",null,431,129,1,null,null,null,null,3,5,1739,"Heicop","Bruidegom","Dirk",null,null,"Thomasz","Heicop","Heicop"]
[null,null,"T HenB NA 1-II",null,432,{"$f":"F434","v":129},{"$f":"G434","v":1},null,null,{"$f":"J434","v":0},0,3,5,1739,"Heicop","Bruid","Magdaleentje",null,"Pijserman","Cornelisz","Heicop","Heicop"]
[null,null,"T HenB NA 1-II",null,433,129,2,null,null,null,null,20,12,1739,"Heicop","Bruidegom","Jan","van","Dulst","Johannesz","Goudriaan","Lopik"]
[null,null,"T HenB NA 1-II",null,434,{"$f":"F436","v":129},{"$f":"G436","v":2},null,null,{"$f":"J436","v":0},0,20,12,1739,"Heicop","Bruid","Hendrikje",null,"Suidam","Reiers","Heicop","Lopik"]
[null,null,"T HenB NA 1-II",null,435,129,3,null,null,null,null,23,4,1740,"Heicop","Bruidegom","Jakob","van der","Wert",null,"Vianen","Vianen",null,"met attestatie van Vianen"]
[null,null,"T HenB NA 1-II",null,436,{"$f":"F438","v":129},{"$f":"G438","v":3},null,null,{"$f":"J438","v":0},0,23,4,1740,"Heicop","Bruid","Johanna Catharina Elisabet",null,"Volmers",null,"Emmerick","Vianen"]
[null,null,"T HenB NA 1-II",null,437,129,4,null,null,null,null,8,10,1740,"Heicop","Bruidegom","Hendrick","van","Loon","Pieters","Heicop","Heicop"]
[null,null,"T HenB NA 1-II",null,438,{"$f":"F440","v":129},{"$f":"G440","v":4},null,null,{"$f":"J440","v":0},0,8,10,1740,"Heicop","Bruid","Jannigje","van","Loon","Pieters","Heicop","Heicop"]
[null,null,"T HenB NA 1-II",null,439,129,5,null,null,null,null,18,11,1741,"Heicop","Bruidegom","Gerrit",null,"Middag","Gerritsen","Hoornaar","Heicop"]
[null,null,"T HenB NA 1-II",null,440,{"$f":"F442","v":129},{"$f":"G442","v":5},null,null,{"$f":"J442","v":0},0,18,11,1741,"Heicop","Bruid","Gerrigje","van ","Vulpen",null,"Mariënwaard","Heicop",null,"weduwe van Arij Hessels van Heikoop"]
[null,null,"T HenB NA 1-II",null,441,129,6,null,null,null,null,9,12,1742,"Heicop","Bruidegom","Gerrit","van","Selderen","Janszen","Meerkerk","Ameide"]
[null,null,"T HenB NA 1-II",null,442,{"$f":"F444","v":129},{"$f":"G444","v":6},null,null,{"$f":"J444","v":0},0,9,12,1742,"Heicop","Bruid","Maagje",null,"Pyserman","Cornelis","Heicop","Benschop"]
[null,null,"T HenB NA 1-II",null,443,129,7,null,null,null,null,5,5,1743,"Heicop","Bruidegom","Jan","van","Kampen","Willemsz","Heicop","Heicop"]
[null,null,"T HenB NA 1-II",null,444,{"$f":"F446","v":129},{"$f":"G446","v":7},null,null,{"$f":"J446","v":0},0,5,5,1743,"Heicop","Bruid","Bastiaantje","van","Vueren","Cornelisz","'t Hoogeind van Leerdam","Heicop"]
[null,null,"T HenB NA 1-II",null,445,130,1,null,null,null,null,2,2,1744,"Heicop","Bruidegom","Gerrit","van","Ewijk",null,"Tricht","Heicop"]
[null,null,"T HenB NA 1-II",null,446,{"$f":"F448","v":130},{"$f":"G448","v":1},null,null,{"$f":"J448","v":0},0,2,2,1744,"Heicop","Bruid","Hannitje",null,null,"Freryks","Heicop","Heicop"]
[null,null,"T HenB NA 1-II",null,447,130,2,null,null,null,null,26,4,{"$f":"N449","v":1744},"Heicop","Bruidegom","Govert","van","Vuuren","Cornelisz","Nauwland","Heicop"]
[null,null,"T HenB NA 1-II",null,448,{"$f":"F450","v":130},{"$f":"G450","v":2},null,null,{"$f":"J450","v":0},{"$f":"K450","v":0},{"$f":"L450","v":26},{"$f":"M450","v":4},1744,{"$f":"O450","v":"Heicop"},"Bruid","Pietertje","van","Kampen","Willemz","Heicop","Heicop"]
[null,null,"T HenB NA 1-II",null,449,130,3,null,null,null,null,17,5,1744,"Heicop","Bruidegom","Teunis",null,"Blom","Abrahams","'t Hoogeind onder Leerdam","'t Hoogeind onder Leerdam"]
[null,null,"T HenB NA 1-II",null,450,{"$f":"F452","v":130},{"$f":"G452","v":3},null,null,{"$f":"J452","v":0},{"$f":"K452","v":0},{"$f":"L452","v":17},{"$f":"M452","v":5},1744,{"$f":"O452","v":"Heicop"},"Bruid","Jannigje",null,"Wyburg","Aartz","Brakel ","Heicop",null,"weduwe van Arij Jans"]
[null,null,"T HenB NA 1-II",null,451,130,4,null,null,null,null,4,6,1744,"Heicop","Bruidegom","Jakobus",null,"Post",null,"Zaltbommel","Middelburg"]
[null,null,"T HenB NA 1-II",null,452,{"$f":"F454","v":130},{"$f":"G454","v":4},null,null,{"$f":"J454","v":0},{"$f":"K454","v":0},{"$f":"L454","v":4},{"$f":"M454","v":6},1744,{"$f":"O454","v":"Heicop"},"Bruid","Gauwgje",null,"Makop",null,"Heicop","Heicop"]
[null,null,"T HenB NA 1-II",null,453,130,5,null,null,null,null,4,6,1744,"Heicop","Bruidegom","Gerrit",null,null,"Gerritzen","Nauwland","Heicop"]
[null,null,"T HenB NA 1-II",null,454,{"$f":"F456","v":130},{"$f":"G456","v":5},null,null,{"$f":"J456","v":0},{"$f":"K456","v":0},{"$f":"L456","v":4},{"$f":"M456","v":6},1744,{"$f":"O456","v":"Heicop"},"Bruid","Neeltje",null,"Meerkerk","Jans","Heicop","Heicop",null,"weduwe"]
[null,null,"T HenB NA 1-II",null,455,130,6,null,null,null,null,28,6,1744,"Heicop","Bruidegom","Gerrit",null,"Monshouwen",null,"Gorinchem","Gorinchem"]
[null,null,"T HenB NA 1-II",null,456,{"$f":"F458","v":130},{"$f":"G458","v":6},null,null,{"$f":"J458","v":0},{"$f":"K458","v":0},{"$f":"L458","v":28},{"$f":"M458","v":6},1744,{"$f":"O458","v":"Heicop"},"Bruid","Willemtje",null,"Makop",null,"Heicop","Heicop"]
[null,null,"T HenB NA 1-II",null,457,130,7,null,null,null,null,25,10,1744,"Heicop","Bruidegom","Jan",null,"Hagervorst","Claesz","Bodegraven","Bodegraven"]
[null,null,"T HenB NA 1-II",null,458,{"$f":"F460","v":130},{"$f":"G460","v":7},null,null,{"$f":"J460","v":0},{"$f":"K460","v":0},{"$f":"L460","v":25},{"$f":"M460","v":10},1744,{"$f":"O460","v":"Heicop"},"Bruid","Eijgje","de","Vrome","Teunis","Woerden","Woerden"]
[null,null,"T HenB NA 1-II",null,459,131,1,null,null,null,null,21,4,1745,"Heicop","Bruidegom","Claas",null,"Middelkoop","Teunis","Heicop","Heicop"]
[null,null,"T HenB NA 1-II",null,460,{"$f":"F462","v":131},{"$f":"G462","v":1},null,null,{"$f":"J462","v":0},0,21,4,1745,"Heicop","Bruid","Leysje","de","Weyer","Hendriks","Heicop","Heicop"]
[null,null,"T HenB NA 1-II",null,461,131,2,null,null,null,null,8,8,1745,"Heicop","Bruidegom","Frank",null,null,"Jakobs ","Heicop","Heicop"]
[null,null,"T HenB NA 1-II",null,462,{"$f":"F464","v":131},{"$f":"G464","v":2},null,null,{"$f":"J464","v":0},0,8,8,1745,"Heicop","Bruid","Willemje","van","Loon",null,"Heicop","Heicop"]
[null,null,"T HenB NA 1-II",null,463,131,3,null,null,null,null,26,9,1745,"Heicop","Bruidegom","Pieter",null,"Makop",null,"Heicop","Heicop"]
[null,null,"T HenB NA 1-II",null,464,{"$f":"F466","v":131},{"$f":"G466","v":3},null,null,{"$f":"J466","v":0},0,26,9,1745,"Heicop","Bruid","Neeltje",null,"Makop",null,"Heicop","Vlissingen"]
[null,null,"T HenB NA 1-II",null,465,131,4,null,null,null,null,1,5,1746,"Heicop","Bruidegom","Gijsbert","de","Wilt",null,null,"Heicop",null,"weduwnaar van Beligje Thomasz"]
[null,null,"T HenB NA 1-II",null,466,{"$f":"F468","v":131},{"$f":"G468","v":4},null,null,{"$f":"J468","v":0},0,1,5,1746,"Heicop","Bruid","Floortje","de","Jonge","Jans",null,"Heicop",null,"weduwe van Egbert Jans"]
[null,null,"T HenB NA 1-II",null,467,131,5,null,null,null,null,1,5,1746,"Heicop","Bruidegom","Thomas",null,"Verhoef","Jansz","Heicop","Heicop"]
[null,null,"T HenB NA 1-II",null,468,{"$f":"F470","v":131},{"$f":"G470","v":5},null,null,{"$f":"J470","v":0},{"$f":"K470","v":0},{"$f":"L470","v":1},{"$f":"M470","v":5},1746,{"$f":"O470","v":"Heicop"},"Bruid","Truigje",null,"Vrolick","Jans","Heicop","Heicop"]
[null,null,"T HenB NA 1-II",null,469,131,6,null,null,null,null,8,5,1746,"Heicop","Bruidegom","Jan",null,"Oosterhoud","Gerritzen","Nieuwland","Nieuwland"]
[null,null,"T HenB NA 1-II",null,470,{"$f":"F472","v":131},{"$f":"G472","v":6},null,null,{"$f":"J472","v":0},0,8,5,1746,"Heicop","Bruid","Engeltje","de","Jong","Jansz","Heicop","Leerbroek"]
[null,null,"T HenB NA 1-II",null,471,131,7,null,null,null,null,30,10,1746,"Heicop","Bruidegom","Joost",null,"Macob",null,"Heicop","Heicop"]
[null,null,"T HenB NA 1-II",null,472,{"$f":"F474","v":131},{"$f":"G474","v":7},null,null,{"$f":"J474","v":0},0,30,10,1746,"Heicop","Bruid","Grietje",null,"Oorschot","Jansz","Heicop","Heicop"]
[null,null,"T HenB NA 1-II",null,473,131,8,null,null,null,null,18,6,1747,"Heicop","Bruidegom","Cornelis",null,"Kuik",null,"Nieuwpoort","Papekop Oudewater"]
[null,null,"T HenB NA 1-II",null,474,{"$f":"F476","v":131},{"$f":"G476","v":8},null,null,{"$f":"J476","v":0},0,18,6,1747,"Heicop","Bruid","Grietje",null,null,"Gijsberts","Heicop","Heicop"]
[null,null,"T HenB NA 1-II",null,475,132,1,null,null,null,null,13,8,1747,"Heicop","Bruidegom","Willem","van der","Pijl","Leendertze",null,"Leerdam",null,"weduwnaar van Neeltje Jacobs"]
[null,null,"T HenB NA 1-II",null,476,{"$f":"F478","v":132},{"$f":"G478","v":1},null,null,{"$f":"J478","v":0},0,13,8,1747,"Heicop","Bruid","Annigje",null,"Bragband","Peters",null,"Heicop"]
[null,null,"T HenB NA 1-II",null,477,132,2,null,null,null,null,13,8,1747,"Heicop","Bruidegom","Reyer","de","Jong","Jacobs",null,"Schoonrewoerd",null,"weduwnaar van Neeltje  Huibers Middelkoop"]
[null,null,"T HenB NA 1-II",null,478,{"$f":"F480","v":132},{"$f":"G480","v":2},null,null,{"$f":"J480","v":0},0,13,8,1747,"Heicop","Bruid","Cornelia",null,"Brouwer","Johannes",null,"Heicop"]
[null,null,"T HenB NA 1-II",null,479,132,3,null,null,null,null,10,12,1747,"Heicop","Bruidegom","Aart",null,"Vergeer","Reyersz","Schoonrewoerd","Schoonrewoerd"]
[null,null,"T HenB NA 1-II",null,480,{"$f":"F482","v":132},{"$f":"G482","v":3},null,null,{"$f":"J482","v":0},0,10,12,1747,"Heicop","Bruid","Annetje",null,null,"Joosten","Heicop","Heicop"]
[null,null,"T HenB NA 1-II",null,481,132,4,null,null,null,null,16,6,1748,"Heicop","Bruidegom","Arie","van","Arkel",null,null,"Lexmond"]
[null,null,"T HenB NA 1-II",null,482,{"$f":"F484","v":132},{"$f":"G484","v":4},null,null,{"$f":"J484","v":0},0,16,6,1748,"Heicop","Bruid","Aafje","van","Loon",null,null,"Heicop"]
[null,null,"T HenB NA 1-II",null,483,132,5,null,null,null,null,28,7,1748,"Heicop","Bruidegom","Jan",null,"Rappardus","Adolf",null,"Vianen"]
[null,null,"T HenB NA 1-II",null,484,{"$f":"F486","v":132},{"$f":"G486","v":5},null,null,{"$f":"J486","v":0},0,28,7,1748,"Heicop","Bruid","Mondina",null,"Maas",null,null,"Vianen"]
[null,null,"T HenB NA 1-II",null,485,132,6,null,null,null,null,20,10,1748,"Heicop","Bruidegom","Cornelis",null,"Stigter",null,null,"Heicop",null,"weduwnaar van Lijsbet Tukken"]
[null,null,"T HenB NA 1-II",null,486,{"$f":"F488","v":132},{"$f":"G488","v":6},null,null,{"$f":"J488","v":0},0,20,10,1748,"Heicop","Bruid","Aaltje","van","Kempen",null,null,"Heicop"]
[null,null,"T HenB NA 1-II",null,487,132,7,null,null,null,null,15,12,1748,"Heicop","Bruidegom","Gerrit","de","Vos","Aartsen",null,"Heicop"]
[null,null,"T HenB NA 1-II",null,488,{"$f":"F490","v":132},{"$f":"G490","v":7},null,null,{"$f":"J490","v":0},0,15,12,1748,"Heicop","Bruid","Lijsje",null,null,"Frerijks",null,"Heicop"]
[null,null,"T HenB NA 1-II",null,489,133,1,null,null,null,null,28,9,1749,"Heicop","Bruidegom","Cornelis","de","Jong","Jansz",null,"Lakerveld",null,"weduwnaar van Jannigje Teunis Bouman"]
[null,null,"T HenB NA 1-II",null,490,{"$f":"F492","v":133},{"$f":"G492","v":1},null,null,{"$f":"J492","v":0},0,28,9,1749,"Heicop","Bruid","Maagje",null,"Oorschot","Jans","Heicop","Heicop"]
[null,null,"T HenB NA 1-II",null,491,133,2,null,null,null,null,9,11,1749,"Heicop","Bruidegom","Teunis",null,"Blom",null,"Leerdam","Heicop",null,"weduwnaar van Jannigje Weyburg"]
[null,null,"T HenB NA 1-II",null,492,{"$f":"F494","v":133},{"$f":"G494","v":2},null,null,{"$f":"J494","v":0},0,9,11,1749,"Heicop","Bruid","Meintje","van","Randwyk",null,"Rumpt","Heicop"]
[null,null,"T HenB NA 1-II",null,493,133,3,null,null,null,null,19,12,1749,"Heicop","Bruidegom","Gerrit",null,"Brouwer",null,"Achthoven","Heicop"]
[null,null,"T HenB NA 1-II",null,494,{"$f":"F496","v":133},{"$f":"G496","v":3},null,null,{"$f":"J496","v":0},0,19,12,1749,"Heicop","Bruid","Aaltje","van der","Lede",null,"Leerdam","Heicop"]
[null,null,"T HenB NA 1-II",null,495,133,4,null,null,null,null,18,4,1751,"Heicop","Bruidegom","Hendrick","van","Loon",null,"Heicop","Heicop",null,"weduwnaar van Jannigje van Loon"]
[null,null,"T HenB NA 1-II",null,496,{"$f":"F498","v":133},{"$f":"G498","v":4},null,null,{"$f":"J498","v":0},0,18,4,1751,"Heicop","Bruid","Neeltje",null,"Oorschot",null,"Heicop","Heicop"]
[null,null,"T HenB NA 1-II",null,497,133,5,null,null,null,null,23,5,1751,"Heicop","Bruidegom","Leendert","de","Witt","Franken","Heicop","Heicop"]
[null,null,"T HenB NA 1-II",null,498,{"$f":"F500","v":133},{"$f":"G500","v":5},null,null,{"$f":"J500","v":0},0,23,5,1751,"Heicop","Bruid","Neeltje","van ","Meerkerk","Jansz","Heicop","Heicop",null,"weduwe van Gerrit van Leuwen"]
[null,null,"T HenB NA 1-II",null,499,133,6,null,null,null,null,13,2,1752,"Heicop","Bruidegom","Jan",null,null,"Joosten",null,"Heicop",null,"weduwnaar van Divertje Dirks"]
[null,null,"T HenB NA 1-II",null,500,{"$f":"F502","v":133},{"$f":"G502","v":6},null,null,{"$f":"J502","v":0},0,13,2,1752,"Heicop","Bruid","Leib",null,null,"Hendricks",null,"Heicop",null,"weduwe van Cornelis Jansz"]
[null,null,"T HenB NA 1-II",null,501,133,7,null,null,null,null,20,2,1752,"Heicop","Bruidegom","Joris",null,"Kers","Janze","Leerdam","Heicop"]
[null,null,"T HenB NA 1-II",null,502,{"$f":"F504","v":133},{"$f":"G504","v":7},null,null,{"$f":"J504","v":0},0,20,2,1752,"Heicop","Bruid","Elisabet",null,"Bogaart","Corneliz","Schoonrewoerd","Heicop"]
[null,null,"T HenB NA 1-II",null,503,134,1,null,null,null,null,"??",2,1752,"Heicop","Bruidegom","Jan ",null,"Middelkoop","Evertzen",null,"Heicop"]
[null,null,"T HenB NA 1-II",null,504,{"$f":"F506","v":134},{"$f":"G506","v":1},null,null,{"$f":"J506","v":0},0,"??",2,1752,"Heicop","Bruid","Neeltje","van","Loon","Pieterz",null,"Heicop"]
[null,null,"T HenB NA 1-II",null,505,134,2,null,null,null,null,23,4,1752,"Heicop","Bruidegom","Gerrit",null,"Karszen","Jansz",null,"Heicop"]
[null,null,"T HenB NA 1-II",null,506,{"$f":"F508","v":134},{"$f":"G508","v":2},null,null,{"$f":"J508","v":0},0,23,4,1752,"Heicop","Bruid","Gerrigje",null,null,"Jans",null,"Heicop"]
[null,null,"T HenB NA 1-II",null,507,134,3,null,null,null,null,30,4,1752,"Heicop","Bruidegom","Jan",null,"Kor","Cobus","onder Stolwijk","Heicop"]
[null,null,"T HenB NA 1-II",null,508,{"$f":"F510","v":134},{"$f":"G510","v":3},null,null,{"$f":"J510","v":0},0,30,4,1752,"Heicop","Bruid","Jasperijnte","de","Graaf","Cornelisd",null,"Heicop"]
[null,null,"T HenB NA 1-II",null,509,134,4,null,null,null,null,7,5,1752,"Heicop","Bruidegom","Jan",null,"Middelkoop","Claesz",null,"Heicop"]
[null,null,"T HenB NA 1-II",null,510,{"$f":"F512","v":134},{"$f":"G512","v":4},null,null,{"$f":"J512","v":0},0,7,5,1752,"Heicop","Bruid","Teuntje","van","Elden","Harmensd",null,"Heicop",null,"weduwe van Gerrit de Vries"]
[null,null,"T HenB NA 1-II",null,511,134,5,null,null,null,null,22,10,1752,"Heicop","Bruidegom","Jan",null,"Vrolick","Jansz",null,"Heicop",null,"weduwnaar van Teuntje Lamberts"]
[null,null,"T HenB NA 1-II",null,512,{"$f":"F514","v":134},{"$f":"G514","v":5},null,null,{"$f":"J514","v":0},0,22,10,1752,"Heicop","Bruid","Cathrina",null,"Groeneveld",null,null,"Heicop",null,"weduwe van Jan de Jong"]
[null,null,"T HenB NA 1-II",null,513,134,6,null,null,null,null,23,9,1753,"Heicop","Bruidegom","Gerrit",null,"Pyserman Brouwer",null,"Heicop","Heicop"]
[null,null,"T HenB NA 1-II",null,514,{"$f":"F516","v":134},{"$f":"G516","v":6},null,null,{"$f":"J516","v":0},{"$f":"K516","v":0},{"$f":"L516","v":23},{"$f":"M516","v":9},1753,{"$f":"O516","v":"Heicop"},"Bruid","Trijnte",null,null,"Gijsberts","Heicop","Heicop"]
[null,null,"T HenB NA 1-II",null,515,134,7,null,null,null,null,3,3,1754,"Heicop","Bruidegom","Claas",null,"Deventer","Jans",null,null,null,"weduwnaar van Jennigje Oosterhoud"]
[null,null,"T HenB NA 1-II",null,516,{"$f":"F518","v":134},{"$f":"G518","v":7},null,null,{"$f":"J518","v":0},0,3,3,1754,"Heicop","Bruid","Geertruij",null,"Hopman","Jans",null,"onder Leerbroek"]
[null,null,"T HenB NA 1-II",null,517,135,1,null,null,null,null,17,3,1754,"Heicop","Bruidegom","Cornelis",null,"Verweij",null,"Leerbroek"]
[null,null,"T HenB NA 1-II",null,518,{"$f":"F520","v":135},{"$f":"G520","v":1},null,null,{"$f":"J520","v":0},0,17,3,1754,"Heicop","Bruid","Annigje",null,"Keiser",null,"Heicop",null,null,"weduwe van Dirk Jansz Andriessen"]
[null,null,"T HenB NA 1-II",null,519,135,2,null,null,null,null,21,4,1754,"Heicop","Bruidegom","Cornelis",null,"Stip",null,"Achthoven onder Lexmond"]
[null,null,"T HenB NA 1-II",null,520,{"$f":"F522","v":135},{"$f":"G522","v":2},null,null,{"$f":"J522","v":0},0,21,4,1754,"Heicop","Bruid","Jannigje",null," ","Hendricks","Everdingen",null,null,"weduwe van Conelis Schoonderwoerd"]
[null,null,"T HenB NA 1-II",null,521,135,3,null,null,null,null,23,11,1755,"Heicop","Bruidegom","Gijsbert","van","Rijn",null,"Heicop","Heicop"]
[null,null,"T HenB NA 1-II",null,522,{"$f":"F524","v":135},{"$f":"G524","v":3},null,null,{"$f":"J524","v":0},0,23,11,1755,"Heicop","Bruid","Huibertje",null,"Heikoop",null,"Heicop","Heicop"]
[null,null,"T HenB NA 1-II",null,523,135,4,null,null,null,null,9,1,1756,"Heicop","Bruidegom","Govert","van","Vuuren",null,null,null,null,"weduwnaar van Pietertje van Campen"]
[null,null,"T HenB NA 1-II",null,524,{"$f":"F526","v":135},{"$f":"G526","v":4},null,null,{"$f":"J526","v":0},0,9,1,1756,"Heicop","Bruid","Maria Cathrina",null,"Snacks",null,null,"Syburg onder Cevleus"]
[null,null,"T HenB NA 1-II",null,525,135,5,null,null,null,null,22,2,1756,"Heicop","Bruidegom","Cornelis",null,"Keth","Aartz","Achthoven onder Lexmond","Heicop"]
[null,null,"T HenB NA 1-II",null,526,{"$f":"F528","v":135},{"$f":"G528","v":5},null,null,{"$f":"J528","v":0},0,22,2,1756,"Heicop","Bruid","Neeltje","den","Braven",null,"Schoonrewoerd"]
[null,null,"T HenB NA 1-II",null,527,135,6,null,null,null,null,19,3,1756,"Heicop","Bruidegom","Gerrit","van","Ewijk",null,null,null,null,"weduwnaar van Hermtje Frederijks"]
[null,null,"T HenB NA 1-II",null,528,{"$f":"F530","v":135},{"$f":"G530","v":6},null,null,{"$f":"J530","v":0},0,19,3,1756,"Heicop","Bruid","Merrigje ","de","Wilt",null,null,"Lakerveld",null,"weduwe van Anton Winkel van Lakerveld"]
[null,null,"T HenB NA 1-II",null,529,135,7,null,null,null,null,16,5,1756,"Heicop","Bruidegom","Jan",null,"Vrolick","Cornelisz","Heicop"]
[null,null,"T HenB NA 1-II",null,530,{"$f":"F532","v":135},{"$f":"G532","v":7},null,null,{"$f":"J532","v":0},0,16,5,1756,"Heicop","Bruid","Antonette","van ","Beek","Gerrits","Tienhoven","Schoonrewoerd"]
[null,null,"T HenB NA 1-II",null,531,135,8,null,null,null,null,27,6,1756,"Heicop","Bruidegom","Jan","den","Braven","Dirks","Schoonrewoerd"]
[null,null,"T HenB NA 1-II",null,532,{"$f":"F534","v":135},{"$f":"G534","v":8},null,null,{"$f":"J534","v":0},0,27,6,1756,"Heicop","Bruid","Leibje",null,null,"Gerritz","Heicop","Heicop"]
[null,null,"T HenB NA 1-II",null,533,136,1,null,null,null,null,27,11,1757,"Heicop","Bruidegom","Jan",null,"Vrolyk","Gijse","Heicop","Heicop"]
[null,null,"T HenB NA 1-II",null,534,{"$f":"F536","v":136},{"$f":"G536","v":1},null,null,{"$f":"J536","v":0},0,27,11,1757,"Heicop","Bruid","Arriaantje","van","Arkel",null,"Arkel","Heicop"]
[null,null,"T HenB NA 1-II",null,535,136,2,null,null,null,null,18,12,1757,"Heicop","Bruidegom","Jan","de","Koster",null,"Oosterwijk","Oosterwijk",null,"weduwnaar van Tonia van Spanje"]
[null,null,"T HenB NA 1-II",null,536,{"$f":"F538","v":136},{"$f":"G538","v":2},null,null,{"$f":"J538","v":0},0,18,12,1757,"Heicop","Bruid","Geertruy","van","Muyden",null,"Schoonderwoerd","Heicop"]
[null,null,"T HenB NA 1-II",null,537,136,3,null,null,null,null,29,10,1758,"Heicop","Bruidegom","Jacobus","van","Brussel",null,"Utrecht","Heicop",null,"weduwnaar van Wilhelmina Johanna van Breem"]
[null,null,"T HenB NA 1-II",null,538,{"$f":"F540","v":136},{"$f":"G540","v":3},null,null,{"$f":"J540","v":0},0,29,10,1758,"Heicop","Bruid","Lijsje","de","Weyer",null,"Heicop","Heicop",null,"weduwe van Klaas Middelkoop"]
[null,null,"T HenB NA 1-II",null,539,136,4,null,null,null,null,25,3,1759,"Heicop","Bruidegom","Meyert",null,"Kersbergen",null,null,"Heicop",null,"weduwnaar van Saartje Copier"]
[null,null,"T HenB NA 1-II",null,540,{"$f":"F542","v":136},{"$f":"G542","v":4},null,null,{"$f":"J542","v":0},0,25,3,1759,"Heicop","Bruid","Maria",null,null,"Leenders",null,"Heicop",null,"weduwe van Floris Stam"]
[null,null,"T HenB NA 1-II",null,541,136,5,null,null,null,null,21,6,1759,"Heicop","Bruidegom","Cornelis ",null,"Stip",null,null,"Heicop",null,"weduwnaar van Jannetje Hendriks van Weertenburg"]
[null,null,"T HenB NA 1-II",null,542,{"$f":"F544","v":136},{"$f":"G544","v":5},null,null,{"$f":"J544","v":0},0,21,6,1759,"Heicop","Bruid","Ariaantje",null,"Heikoop",null,null,"Heicop"]
[null,null,"T HenB NA 1-II",null,543,136,6,null,null,null,null,2,3,1760,"Heicop","Bruidegom","Joost",null,"Makop",null,"Heicop","Heicop",null,"weduwnaar van Lijsje van de Velde"]
[null,null,"T HenB NA 1-II",null,544,{"$f":"F546","v":136},{"$f":"G546","v":6},null,null,{"$f":"J546","v":0},0,2,3,1760,"Heicop","Bruid","Lena","van","Ameide",null,"Streefkerk","Heicop"]
[null,null,"T HenB NA 1-II",null,545,136,7,null,null,null,null,30,3,1760,"Heicop","Bruidegom","Tomas","de","Wilt",null,"Heicop","Heicop"]
[null,null,"T HenB NA 1-II",null,546,{"$f":"F548","v":136},{"$f":"G548","v":7},null,null,{"$f":"J548","v":0},0,30,3,1760,"Heicop","Bruid","Johanna",null,"Kortleven",null,"'t Hoogeind onder Leerdam","Heicop"]
[null,null,"T HenB NA 1-II",null,547,137,1,null,null,null,null,4,5,1760,"Heicop","Bruidegom","Jaab","de","Wilt",null,null,"Heicop",null,"weduwnaar van Floortje Jansz de Jong"]
[null,null,"T HenB NA 1-II",null,548,{"$f":"F550","v":137},{"$f":"G550","v":1},null,null,{"$f":"J550","v":0},0,4,5,1760,"Heicop","Bruid","Floortje","van","Deventer",null,null,"Heicop",null,"weduwe van Pieter van Muyden"]
[null,null,"T HenB NA 1-II",null,549,137,2,null,null,null,null,11,5,1760,"Heicop","Bruidegom","Thomas",null,"Verhoef","Jansz",null,"Heicop",null,"weduwnaar van Truijgjen Jansz Vrolijk"]
[null,null,"T HenB NA 1-II",null,550,{"$f":"F552","v":137},{"$f":"G552","v":2},null,null,{"$f":"J552","v":0},0,11,5,1760,"Heicop","Bruid","Maagje",null,"Oorschot",null,null,"Heicop"]
[null,null,"T HenB NA 1-II",null,551,137,3,11,10,1760,"Heicop",2,11,1760,"Heicop","Bruidegom","Teunis",null,"Bock","Gerritsz ","Schoonrewoerd","Bolgerije",null,"weduwnaar van Aaltje Janse de Ligt"]
[null,null,"T HenB NA 1-II",null,552,{"$f":"F554","v":137},{"$f":"G554","v":3},11,10,{"$f":"J554","v":1760},"Heicop",2,11,1760,"Heicop","Bruid","Willempjen",null,"Vrolijk","Gijsbertssen","Heicop","Bolgerije"]
[null,null,"T HenB NA 1-II",null,553,137,4,9,11,1760,"Heicop",15,3,1761,"Heicop","Bruidegom","Willem",null,null,"Harms","Oirschot","Heicop",null,"Hebben zij agtien weken onder de geboden geweest omdat de bruidegom van de paapsche en de bruyd van de gereformeerde religie voorgaf te zijn volgens 't placaat van de Staten van Holland en wet onzes land op de ongelijke huwelijk en gestatueert anno 1755"]
[null,null,"T HenB NA 1-II",null,554,{"$f":"F556","v":137},{"$f":"G556","v":4},9,11,{"$f":"J556","v":1760},"Heicop",15,3,1761,"Heicop","Bruid","Jannigje","van","Santen",null,"Leerdam","Leerdam"]
[null,null,"T HenB NA 1-II",null,555,137,5,null,null,null,null,20,9,1761,"Heicop","Bruidegom","Herbert","van der","Leede ",null,"Schoonrewoerd","Heicop",null," "]
[null,null,"T HenB NA 1-II",null,556,{"$f":"F558","v":137},{"$f":"G558","v":5},null,null,{"$f":"J558","v":0},0,20,9,1761,"Heicop","Bruid","Lijsbet",null,"Heikoop",null,"Meerkerk","Lakerveld"]
[null,null,"T HenB NA 1-II",null,557,137,6,null,null,null,null,26,9,1762,"Heicop","Bruidegom","Herman ",null,"Veen",null,"Vianen","Vianen",null," "]
[null,null,"T HenB NA 1-II",null,558,{"$f":"F560","v":137},{"$f":"G560","v":6},null,null,{"$f":"J560","v":0},0,26,9,1762,"Heicop","Bruid","Grietje",null,"Sijderveld",null,"Heicop","Vianen"]
[null,null,"T HenB NA 1-II",null,559,137,7,5,11,1762,"Heicop",21,11,1762,"Heicop","Bruidegom","Gerrit","de","Stigter",null,"Heicop","Heicop"]
[null,null,"T HenB NA 1-II",null,560,{"$f":"F562","v":137},{"$f":"G562","v":7},5,11,{"$f":"J562","v":1762},"Heicop",21,11,1762,"Heicop","Bruid","Jannigje",null,"Bogaart",null,"Heicop","Heicop"]
[null,null,"T HenB NA 1-II",null,561,138,1,25,3,1763,"Heicop",15,5,1763,"Heicop","Bruidegom","Willem",null,"Bogaart",null,"Schoonrewoerd","Heicop",null,"weduwnaar van Grietje Mouritz"]
[null,null,"T HenB NA 1-II",null,562,{"$f":"F564","v":138},{"$f":"G564","v":1},25,3,{"$f":"J564","v":1763},"Heicop",15,5,1763,"Heicop","Bruid","Maagje",null,"Vrolijk","Gijze","Heicop","Heicop",null,"Zie acte"]
[null,null,"T HenB NA 1-II",null,563,138,2,null,null,null,null,4,9,1763,"Heicop","Bruidegom","Johannes"," ","Verpoorte",null,"Leerdam"]
[null,null,"T HenB NA 1-II",null,564,{"$f":"F566","v":138},{"$f":"G566","v":2},null,null,{"$f":"J566","v":0},0,4,9,1763,"Heicop","Bruid","Mayke","van","Gulik",null,"Spijk","Heicop"]
[null,null,"T HenB NA 1-II",null,565,139,1,25,11,1763,"Heicop",13,12,1763,"Heicop","Bruidegom","Gijsbert","de","Wilt",null,"Heicop","Heicop"]
[null,null,"T HenB NA 1-II",null,566,{"$f":"F568","v":139},{"$f":"G568","v":1},25,11,{"$f":"J568","v":1763},"Heicop",13,12,1763,"Heicop","Bruid","Maagje",null,"Bogaart",null,"Schoonrewoerd","Heicop"]
[null,null,"T HenB NA 1-II",null,567,139,2,11,5,1764,"Heicop",27,5,1764,"Heicop","Bruidegom","Adrianus",null,"Tak",null,"Benschop",null,null,"weduwnaar van Josina Blanke, schoolmeester te Heikoop"]
[null,null,"T HenB NA 1-II",null,568,{"$f":"F570","v":139},{"$f":"G570","v":2},11,5,{"$f":"J570","v":1764},"Heicop",27,5,1764,"Heicop","Bruid","Willemijntje",null,"Blanke",null,"Benschop","Heicop"]
[null,null,"T HenB NA 1-II",null,569,139,3,null,null,null,null,25,6,1764,"Heicop","Bruidegom","Gabriel",null,"Psargignac",null,"Amsterdam","Vianen",null,"medicine doctor"]
[null,null,"T HenB NA 1-II",null,570,{"$f":"F572","v":139},{"$f":"G572","v":3},null,null,{"$f":"J572","v":0},0,25,6,1764,"Heicop","Bruid","Elisabeth",null,"Chardavoine",null,null,"Vianen",null,"weduwe van Elie Le Fevre, predikant in de Walsche gemeente op Suriname"]
[null,null,"T HenB NA 1-II",null,571,139,4,null,null,null,null,5,8,1764,"Heicop","Bruidegom","Hermanus",null,"Moot",null,"Leerdam","Leerdam"]
[null,null,"T HenB NA 1-II",null,572,{"$f":"F574","v":139},{"$f":"G574","v":4},null,null,{"$f":"J574","v":0},0,5,8,1764,"Heicop","Bruid","Bartha Catharina ",null,"Londenberg",null,"Kristiaansand (Noorwegen)","Leerdam"]
[null,null,"T HenB NA 1-II",null,573,139,5,null,null,null,null,2,9,1764,"Heicop","Bruidegom","Jean Francois","de","Saston (Vrankerijk)",null,"Provincie Languedoc","Vianen"]
[null,null,"T HenB NA 1-II",null,574,{"$f":"F576","v":139},{"$f":"G576","v":5},null,null,{"$f":"J576","v":0},0,2,9,1764,"Heicop","Bruid","Margaretha",null,"Collombier",null,"Utrecht","Vianen",null,"weduwe van P.A. Le Marchand"]
[null,null,"T HenB NA 1-II",null,575,140,1,5,10,1764,"Heicop",21,10,1764,"Heicop","Bruidegom","Arij","de","Koning",null,"Rhoon","Rhoon"]
[null,null,"T HenB NA 1-II",null,576,{"$f":"F578","v":140},{"$f":"G578","v":1},5,10,{"$f":"J578","v":1764},"Heicop",21,10,1764,"Heicop","Bruid","Japikje","de","Vrome",null,"Heicop","Heicop"]
[null,null,"T HenB NA 1-II",null,577,140,2,19,4,1765,"Heicop",5,5,1765,"Heicop","Bruidegom","Jan","van","Soelen",null,"Beusichem","Heicop"]
[null,null,"T HenB NA 1-II",null,578,{"$f":"F580","v":140},{"$f":"G580","v":2},19,4,{"$f":"J580","v":1765},"Heicop",5,5,1765,"Heicop","Bruid","Cornelia",null,"Verwoert",null,"Utrecht","Heicop"]
[null,null,"T HenB NA 1-II",null,579,140,3,1,11,1765,"Heicop",17,11,1765,"Heicop","Bruidegom","Jan",null,"Vrolijk",null,"Heicop","Heicop",null,"weduwnaar van Antonette van Beek"]
[null,null,"T HenB NA 1-II",null,580,{"$f":"F582","v":140},{"$f":"G582","v":3},1,11,{"$f":"J582","v":1765},"Heicop",17,11,1765,"Heicop","Bruid","Ariaantje","van","Oostrum",null,"Rotterdam","Heicop"]
[null,null,"T HenB NA 1-II",null,581,140,4,4,4,1766,"Heicop",null,null,null,"Heicop","Bruidegom","Gerrit",null,"Peerdekoper",null,"Heicop","Heicop"]
[null,null,"T HenB NA 1-II",null,582,{"$f":"F584","v":140},{"$f":"G584","v":4},4,4,{"$f":"J584","v":1766},"Heicop",0,0,0,"Heicop","Bruid","Teuntje","de","Stigter",null,"?","?"]
[null,null,"T HenB NA 1-II",null,583,140,5,18,4,1766,"Heicop",null,null,null,"Heicop","Bruidegom","Leendert","van den","Berg",null,"Heicop","Heicop"]
[null,null,"T HenB NA 1-II",null,584,{"$f":"F586","v":140},{"$f":"G586","v":5},18,4,{"$f":"J586","v":1766},"Heicop",0,0,0,"Heicop","Bruid","Annigje ",null,"Kortleven",null,"Leerdam","Heicop"]
[null,null,"T HenB NA 1-II",null,585,140,6,null,null,null,null,17,8,1766,"Heicop","Bruidegom","Hendrik","van","Leeuwen",null,"Leerdam","Leerdam"]
[null,null,"T HenB NA 1-II",null,586,{"$f":"F588","v":140},{"$f":"G588","v":6},null,null,{"$f":"J588","v":0},0,17,8,1766,"Heicop","Bruid","Maria",null,"Verpoorten",null,"Leerdam","Leerdam"]
[null,null,"T HenB NA 1-II",null,587,141,1,27,3,1767,"Heicop",24,4,1767,"Heicop","Bruidegom","Teunis",null,"Hol",null,"Leerdam","Heicop"]
[null,null,"T HenB NA 1-II",null,588,{"$f":"F590","v":141},{"$f":"G590","v":1},27,3,{"$f":"J590","v":1767},"Heicop",24,4,1767,"Heicop","Bruid","Cuyndertje","de","Jong",null,"Heicop","Heicop"]
[null,null,"T HenB NA 1-II",null,589,141,2,1,5,1767,null,17,5,1767,"Heicop","Bruidegom","Pieter",null,"Verhoef",null,"Heicop","Heicop"]
[null,null,"T HenB NA 1-II",null,590,{"$f":"F592","v":141},{"$f":"G592","v":2},1,5,{"$f":"J592","v":1767},0,17,5,1767,"Heicop","Bruid","Jacomijntje",null,"Vermeulen",null,"Lexmond","Lexmond"]
[null,null,"T HenB NA 1-II",null,591,141,3,null,null,0,"Leerdam",28,6,1767,"Heicop","Bruidegom","Gerrit","van","Kley",null,"Loosdorp","Loosdorp"]
[null,null,"T HenB NA 1-II",null,592,{"$f":"F594","v":141},{"$f":"G594","v":3},null,null,{"$f":"J594","v":0},"Leerdam",28,6,1767,"Heicop","Bruid","Francijntje",null,"Zijderveld",null,"Heicop","Loosdorp"]
[null,null,"T HenB NA 1-II",null,593,141,4,5,11,1767,"Heicop",29,11,1767,"Zijderveld","Bruidegom","Pieter Frederik",null,"Montandon",null,"Labbe…. (Switserland)","Heicop"]
[null,null,"T HenB NA 1-II",null,594,{"$f":"F596","v":141},{"$f":"G596","v":4},5,11,{"$f":"J596","v":1767},"Heicop",29,11,1767,"Zijderveld","Bruid","Anne Regina",null,"Bruggemanns",null,"Grossenwieder Schönburg  (Hessen)","Heicop"]
[null,null,"T HenB NA 1-II",null,595,141,5,8,4,1768,"Heicop",1,5,1768,"Heicop","Bruidegom","Lambertus",null,"Brugman",null,"Leerdam","Noordeloos"]
[null,null,"T HenB NA 1-II",null,596,{"$f":"F598","v":141},{"$f":"G598","v":5},8,4,{"$f":"J598","v":1768},"Heicop",1,5,1768,"Heicop","Bruid","Caatje",null,"Makop",null,"Heicop","Heicop"]
[null,null,"T HenB NA 1-II",null,597,142,1,1,9,1769,"Heicop",null,null,null,"Heicop","Bruidegom","Symen",null,"Paak",null,"Ameide","Heicop"]
[null,null,"T HenB NA 1-II",null,598,{"$f":"F600","v":142},{"$f":"G600","v":1},1,9,{"$f":"J600","v":1769},"Heicop",0,0,0,"Heicop","Bruid","Neeltje","van","Dommelen",null,"Ameide","Heicop",null,"Weduwe van Gijs de Vrome"]
[null,null,"T HenB NA 1-II",null,599,142,2,23,2,1770,"Heicop",11,3,1770,"Heicop","Bruidegom","Pieter","van","Loon",null,"Heicop","Heicop"]
[null,null,"T HenB NA 1-II",null,600,{"$f":"F602","v":142},{"$f":"G602","v":2},23,2,{"$f":"J602","v":1770},"Heicop",11,3,1770,"Heicop","Bruid","Maagje","de","Stigter",null,"Heicop","Heicop"]
[null,null,"T HenB NA 1-II",null,601,142,3,27,4,1770,"Heicop",null,null,null,"Heicop","Bruidegom","Hermen","de","Vos",null,"Heicop","Heicop"]
[null,null,"T HenB NA 1-II",null,602,{"$f":"F604","v":142},{"$f":"G604","v":3},27,4,{"$f":"J604","v":1770},"Heicop",0,0,0,"Heicop","Bruid","Lijntje",null,"Bogaart",null,"Heicop","Heicop"]
[null,null,"T HenB NA 1-II",null,603,142,4,27,4,1770,"Heicop",null,null,null,"Heicop","Bruidegom","Gerrit ",null,"Dijns","Coene","Lexmond","Ameide",null,"Weduwnaar van Maria Pinse van der Aa"]
[null,null,"T HenB NA 1-II",null,604,{"$f":"F606","v":142},{"$f":"G606","v":4},27,4,{"$f":"J606","v":1770},"Heicop",0,0,0,"Heicop","Bruid","Anna","ten","Otter",null,"Rossum","Heicop"]
[null,null,"T HenB NA 1-II",null,605,143,1,22,2,1772,"Heicop",8,3,1772,"Heicop","Bruidegom","Jan",null,"Heikop","Dirkse","Heicop","Heicop",null,"Weduwnaar van Willempje Janse de Brave"]
[null,null,"T HenB NA 1-II",null,606,{"$f":"F608","v":143},{"$f":"G608","v":1},22,2,{"$f":"J608","v":1772},"Heicop",8,3,1772,"Heicop","Bruid","Pleuntje","de","Louw",null,"Lakerveld","Heicop"]
[null,null,"T HenB NA 1-II",null,607,143,2,"??",3,1772,"Heicop",null,null,null,"Utrecht","Bruidegom","Johannes","van","Heumen",null,"Tiel","Utrecht"]
[null,null,"T HenB NA 1-II",null,608,143,2,"??",3,1772,"Heicop",{"$f":"L610","v":0},{"$f":"M610","v":0},{"$f":"N610","v":0},"Utrecht","Bruid","Aaltje",null,"Tak",null,"Benschop","Heicop"]
[null,null,"T HenB NA 1-II",null,609,143,3,12,4,1772,"Heicop",null,null,null,"Oosterwijk","Bruid","Cornelis","van","Rijn",null,"Heicop","Heicop"]
[null,null,"T HenB NA 1-II",null,610,143,3,12,4,1772,"Heicop",{"$f":"L612","v":0},{"$f":"M612","v":0},{"$f":"N612","v":0},"Oosterwijk","Bruidegom","Maria","van 't","Hoofd",null,"Oosterwijk","Oosterwijk"]
[null,null,"T HenB NA 1-II",null,611,143,2,15,5,1772,"Heicop",1,6,1772,"Heicop","Bruidegom","Gerrit",null,"Verhoef","Dirkse","Streefkerk","Streefkerk",null," "]
[null,null,"T HenB NA 1-II",null,612,{"$f":"F614","v":143},{"$f":"G614","v":2},15,5,{"$f":"J614","v":1772},"Heicop",1,6,1772,"Heicop","Bruid","Pleuntje","de","Wit",null,"Heicop","Heicop"]
[null,null,"T HenB NA 1-II",null,613,144,1,29,5,1772,"Heicop",null,null,null,"Leerbroek","Bruidegom","Gerrit",null,"Baas",null,"Meerkerk","Leerbroek",null,"Weduwnaar van Gerrigje Artsse Middag"]
[null,null,"T HenB NA 1-II",null,614,{"$f":"F616","v":144},{"$f":"G616","v":1},29,5,{"$f":"J616","v":1772},"Heicop",0,0,0,"Leerbroek","Bruid","Aartje"," ","Scheer",null,"Schoonrewoerd","Heicop",null,"Weduwe van Arie den Ridder"]
[null,null,"T HenB NA 1-II",null,615,144,2,null,null,0,"Heicop",23,8,1772,"Heicop","Bruidegom","Arie","van den ","Heuvel",null,"Bergambacht","Polsbroek",null," "]
[null,null,"T HenB NA 1-II",null,616,{"$f":"F618","v":144},{"$f":"G618","v":2},null,null,{"$f":"J618","v":0},"Heicop",23,8,1772,"Heicop","Bruid","Jannigje "," ","Zijdervelt",null,"Heicop","Polsbroek"]
[null,null,"T HenB NA 1-II",null,617,144,3,19,2,1773,"Heicop",1,3,1773,"Heicop","Bruidegom","Gerrit  ",null,"Zijdervelt",null,"Heicop","Heicop"]
[null,null,"T HenB NA 1-II",null,618,{"$f":"F620","v":144},{"$f":"G620","v":3},19,2,{"$f":"J620","v":1773},"Heicop",1,3,1773,"Heicop","Bruid","Annigje","van","Es",null,"Wilge Langerak","Heicop",null,"Weduwe van Hendrik van Oostrum"]
[null,null,"T HenB NA 1-II",null,619,144,4,30,4,1773,"Heicop",16,5,1773,"Heicop","Bruidegom","Thomas",null,"Boogaardt",null,"Schoonrewoerd","Heicop",null," "]
[null,null,"T HenB NA 1-II",null,620,{"$f":"F622","v":144},{"$f":"G622","v":4},30,4,{"$f":"J622","v":1773},"Heicop",16,5,1773,"Heicop","Bruid","Neeltje"," ","Peek",null,"Zijderveld","Heicop"]
[null,null,"T HenB NA 1-II",null,621,144,5,27,8,1773,"Heicop",19,9,1773,"Heicop","Bruidegom","Pieter",null,"Heicop",null,"Schoonrewoerd","Heicop",null," "]
[null,null,"T HenB NA 1-II",null,622,{"$f":"F624","v":144},{"$f":"G624","v":5},27,8,{"$f":"J624","v":1773},"Heicop",19,9,1773,"Heicop","Bruid","Pieternella","van","Bruggen",null,"Leerdam","Heicop"]
[null,null,"T HenB NA 1-II",null,623,145,1,31,12,1773,"Heicop",16,1,1774,"Heicop","Bruidegom","Klaas","van","Zijl",null,"Vianen","Vianen",null," "]
[null,null,"T HenB NA 1-II",null,624,{"$f":"F626","v":145},{"$f":"G626","v":1},31,12,{"$f":"J626","v":1773},"Heicop",16,1,1774,"Heicop","Bruid","Cornelia"," ","Zijdervelt",null,"Heicop","Heicop"]
[null,null,"T HenB NA 1-II",null,625,145,2,14,1,1774,"Heicop",30,1,1774,"Heicop","Bruidegom","Johannes",null,"Brouwer",null,"Heicop","Heicop",null," "]
[null,null,"T HenB NA 1-II",null,626,{"$f":"F628","v":145},{"$f":"G628","v":2},14,1,{"$f":"J628","v":1774},"Heicop",30,1,1774,"Heicop","Bruid","Grietje","van ","Ewijk",null,"Heicop","Heicop"]
[null,null,"T HenB NA 1-II",null,627,145,5,null,null," "," ",8,5,1774,"Heicop","Bruidegom","Gijsbert",null,"Brakel",null,"Meerkerk","Leerdam",null," "]
[null,null,"T HenB NA 1-II",null,628,{"$f":"F630","v":145},{"$f":"G630","v":5},null,null,{"$f":"J630","v":" "}," ",8,5,1774,"Heicop","Bruid","Betje"," ","Vink",null,"Meerkerk","Nieuwland"]
[null,null,"T HenB NA 1-II",null,629,145,6,null,null," "," ",5,6,1774,"Heicop","Bruidegom","Pieter","van","Oorde",null,"Delft","Leerdam",null," "]
[null,null,"T HenB NA 1-II",null,630,{"$f":"F632","v":145},{"$f":"G632","v":6},null,null,{"$f":"J632","v":" "}," ",5,6,1774,"Heicop","Bruid","Aantje"," ","Dalman",null,"Leerdam","Leerdam"]
[null,null,"T HenB NA 1-II",null,631,146,1,26,8,1774,"Heicop",18,9,1774,"Heicop","Bruidegom","Jan","van","Soomeren",null,"Houten","Jutphaas",null," "]
[null,null,"T HenB NA 1-II",null,632,{"$f":"F634","v":146},{"$f":"G634","v":1},26,8,{"$f":"J634","v":1774},"Heicop",18,9,1774,"Heicop","Bruid","Huijbertje","van","Santen",null,"Tricht","Utrecht"]
[null,null,"T HenB NA 1-II",null,633,146,2,9,9,1774,"Heicop",25,9,1774,"Heicop","Bruidegom","Pieter","van","Maaswinkel",null,"Culemborg","Heicop",null," "]
[null,null,"T HenB NA 1-II",null,634,{"$f":"F636","v":146},{"$f":"G636","v":2},9,9,{"$f":"J636","v":1774},"Heicop",25,9,1774,"Heicop","Bruid","Maagje"," ","Lakerveld","Claassen","Vianen","Heicop"]
[null,null,"T HenB NA 1-II",null,635,146,3,15,10,1774,"Heicop",30,10,1774,"Heicop","Bruidegom","Jan",null,"Hoogendoorn",null,"Vianen","Heicop",null," "]
[null,null,"T HenB NA 1-II",null,636,{"$f":"F638","v":146},{"$f":"G638","v":3},15,10,{"$f":"J638","v":1774},"Heicop",30,10,1774,"Heicop","Bruid","Ursulla"," ","Meijer",null,"'s Hertogenbosch","Heicop"]
[null,null,"T HenB NA 1-II",null,637,146,4,28,10,1774,"Heicop",20,11,1774,"Heicop","Bruidegom","Govert ","de","Haas",null,"Schoondrewoerd","Zijderveld",null," "]
[null,null,"T HenB NA 1-II",null,638,{"$f":"F640","v":146},{"$f":"G640","v":4},28,10,{"$f":"J640","v":1774},"Heicop",20,11,1774,"Heicop","Bruid","Dirkje","de","Jong",null,"Noordeloos","Heicop"]
[null,null,"T HenB NA 1-II",null,639,146,5,3,2,1775,"Heicop",26,2,1775,"Heicop","Bruidegom","Gerrit","van","Vijtert",null,"Ophemert","Rumpt",null," "]
[null,null,"T HenB NA 1-II",null,640,{"$f":"F642","v":146},{"$f":"G642","v":5},3,2,{"$f":"J642","v":1775},"Heicop",26,2,1775,"Heicop","Bruid","Aartje","van","Karssen",null,"Nieuwland","Rumpt"]
[null,null,"T HenB NA 1-II",null,641,146,6,11,2,1775,"Heicop",12,3,1775,"Heicop","Bruidegom","Gerrit","van","Tooren",null,"Lexmond","Heicop",null," "]
[null,null,"T HenB NA 1-II",null,642,{"$f":"F644","v":146},{"$f":"G644","v":6},11,2,{"$f":"J644","v":1775},"Heicop",12,3,1775,"Heicop","Bruid","Neeltje"," ","Paardekoper",null,"Schoonrewoerd","Heicop"]
[null,null,"T HenB NA 1-II",null,643,147,1,12,11,1775,"Heicop",19,11,1775,"Heicop","Bruidegom","Frans","de","Witte",null,"Heicop","Heicop",null," "]
[null,null,"T HenB NA 1-II",null,644,{"$f":"F646","v":147},{"$f":"G646","v":1},12,11,{"$f":"J646","v":1775},"Heicop",19,11,1775,"Heicop","Bruid","Elzabeth"," ","Brut",null,"Noordeloos","Noordeloos"]
[null,null,"T HenB NA 1-II",null,645,147,2,2,8,1776,"Heicop",18,8,1776,"Heicop","Bruidegom","Hessel","van","Ewijk",null,"Heicop","Heicop",null," "]
[null,null,"T HenB NA 1-II",null,646,{"$f":"F648","v":147},2,2,8,{"$f":"J648","v":1776},"Heicop",18,8,1776,"Heicop","Bruid","Ariaantje"," ","Verweij",null,"Schoonrewoerd","Heicop"]
[null,null,"T HenB NA 1-II",null,647,147,3,2,8,1777,"Tricht",24,8,1777,"Geldermalsen","Bruidegom","Everhard Francois",null,"Temminck",null,"Buren","Heicop",null,"Predikant te Heikoop"]
[null,null,"T HenB NA 1-II",null,648,{"$f":"F650","v":147},3,2,8,{"$f":"J650","v":1777},"Tricht",24,8,1777,"Geldermalsen","Bruid","Anna","den","Tex",null,"Buren",null,null,"Gehuwd door Ds. J.G. Repelius. Pred. te Geldermalsen"]
[null,null,"T HenB NA 1-II",null,649,147,4,null,null,null,"Driebergen",9,11,1777,"Heicop","Bruidegom","Theunis ","van","Soest",null,"Driebergen","?",null," "]
[null,null,"T HenB NA 1-II",null,650,{"$f":"F652","v":147},{"$f":"G652","v":4},null,null,{"$f":"J652","v":0},"'t Waal",{"$f":"L652","v":9},{"$f":"M652","v":11},{"$f":"N652","v":1777},{"$f":"O652","v":"Heicop"},"Bruid","Grietje","van","Lakerveld",null,"Heicop","'t Waal"]
[null,null,"T HenB NA 1-II",null,651,147,5,5,4,1778,"Heicop",5,4,1778,"Heicop","Bruidegom","Arij","van","Lakerveld",null,"Meerkerk","Heicop",null,"weduwnaar van Maria Rietveld"]
[null,null,"T HenB NA 1-II",null,652,{"$f":"F654","v":147},{"$f":"G654","v":5},5,4,{"$f":"J654","v":1778},"Heicop",{"$f":"L654","v":5},{"$f":"M654","v":4},{"$f":"N654","v":1778},{"$f":"O654","v":"Heicop"},"Bruid","Engelina Antonetta","van der","Kluijs",null,"Lexmond","Lexmond"]
[null,null,"T HenB NA 1-II",null,653,147,6,8,8,1778,"?",30,8,1778,"Heicop","Bruidegom","Jan","de","Jong","Dirkze","Heicop","Heicop",null," "]
[null,null,"T HenB NA 1-II",null,654,{"$f":"F656","v":147},{"$f":"G656","v":6},8,8,{"$f":"J656","v":1778},"?",30,8,1778,"Heicop","Bruid","Maaike","van","Alphen","Cornelissen","Ameijde","Heicop"]
[null,null,"T HenB NA 1-II",null,655,147,1,"??",11,1778,null,2,12,1778,"Culemborg","Bruidegom","Teunis",null,"Hol",null,"Leerdam","Heicop",null,"weduwnaar van Ceundertje de Jongh"]
[null,null,"T HenB NA 1-II",null,656,{"$f":"F658","v":147},{"$f":"G658","v":1},"??",11,{"$f":"J658","v":1778},0,2,12,1778,"Culemborg","Bruid","Christina Charlotta","la","Clair",null,"Culemborg","Culemborg"]
[null,null,"T HenB NA 1-II",null,657,147,2,"??",1,1779,null,21,1,1779,"Leerdam","Bruidegom","Cornelis",null,"Brakband",null,"Heicop","Heicop"]
[null,null,"T HenB NA 1-II",null,658,{"$f":"F660","v":147},{"$f":"G660","v":2},"??",1,{"$f":"J660","v":1779},0,21,1,1779,"Leerdam","Bruid","Flora","van der","Linden",null,"Leerdam","Leerdam"]
[null,null,"T HenB NA 1-II",null,659,148,3,23,4,1779,"Heicop",9,5,1779,"Heicop","Bruidegom","Willem","de","With",null,"Heicop","Heicop",null," "]
[null,null,"T HenB NA 1-II",null,660,{"$f":"F662","v":148},{"$f":"G662","v":3},23,4,{"$f":"J662","v":1779},"Heicop",9,5,1779,"Heicop","Bruid","Maagje"," ","Kars ",null,"Heicop","Heicop"]
[null,null,"T HenB NA 1-II",null,661,148,4,23,12,1779,"Heicop",16,1,1780,"Heicop","Bruidegom","Jan",null,"Liefhebber",null,"Heicop","Montfoort",null," "]
[null,null,"T HenB NA 1-II",null,662,{"$f":"F664","v":148},{"$f":"G664","v":4},23,12,{"$f":"J664","v":1779},"Heicop",16,1,1780,"Heicop","Bruid","Lijsbet "," ","Vrolijk",null,"Schoonrewoerd","Montfoort"]
[null,null,"T HenB NA 1-II",null,663,148,5,14,4,1780,"Heicop",1,5,1780,"Heicop","Bruidegom","Dirk ","van","Vlissingen","Willemsz","Schoonrewoerd","Schoonrewoerd",null," "]
[null,null,"T HenB NA 1-II",null,664,{"$f":"F666","v":148},{"$f":"G666","v":5},14,4,{"$f":"J666","v":1780},"Heicop",1,5,1780,"Heicop","Bruid","Jannigje"," ","Brouwer","Gerritsz ","Heicop","Heicop"]
[null,null,"T HenB NA 1-II",null,665,148,6,5,5,1780,"Heicop",28,5,1780,"Heicop","Bruidegom","Jan",null,"Verhoef",null,"Heicop","Heicop",null,"Weduwnaar van Maria den Hertog"]
[null,null,"T HenB NA 1-II",null,666,{"$f":"F668","v":148},{"$f":"G668","v":6},5,5,{"$f":"J668","v":1780},"Heicop",28,5,1780,"Heicop","Bruid","Heiltje","de","Vos",null,"Schoondrewoerd","Heicop",null,"Weduwe van Gerrit den Boer"]
[null,null,"T HenB NA 1-II",null,667,148,7,25,5,1780,"Heicop",null,null,null,null,"Bruidegom","Jochem",null,"Liefhebber",null,"Heicop","Heicop"]
[null,null,"T HenB NA 1-II",null,668,{"$f":"F670","v":148},{"$f":"G670","v":7},25,5,{"$f":"J670","v":1780},"Heicop",0,0,0,0,"Bruid","Grietje","van","Wijk",null,"Meerkerk","Meerkerk"]
[null,null,"T HenB NA 1-II",null,669,148,8,19,5,1780,"Heicop",11,6,1780,"Heicop","Bruidegom","Gerrit",null,"Middelkoop",null,"Heicop","Heicop",null," "]
[null,null,"T HenB NA 1-II",null,670,{"$f":"F672","v":148},{"$f":"G672","v":8},19,5,{"$f":"J672","v":1780},"Heicop",11,6,1780,"Heicop","Bruid","Hendrijn"," ","Storm",null,"Heicop","Heicop"]
[null,null,"T HenB NA 1-II",null,671,149,1,"??",9,1780,"Heicop","??",9,1780,"Heicop","Bruidegom","Christoffel",null,"Bot",null,"Naarden","Heicop",null,"weduwnaar van Susanna Kegelaa - gerechtsdeurwaarder"]
[null,null,"T HenB NA 1-II",null,672,{"$f":"F674","v":149},{"$f":"G674","v":1},"??",9,{"$f":"J674","v":1780},"Heicop","??",9,1780,"Heicop","Bruid","Jacoba"," ","Giesberts",null,"Amsterdam","Culemborg",null,"weduwe van Abraham Camphoven"]
[null,null,"T HenB NA 1-II",null,673,149,2,"??",11,1780,"Heicop","??",11,1780,"Culemborg","Bruidegom","Adam",null,"Tak",null,"Benschop","Heicop"]
[null,null,"T HenB NA 1-II",null,674,{"$f":"F676","v":149},{"$f":"G676","v":2},"??",11,{"$f":"J676","v":1780},"Heicop","??",11,1780,"Culemborg","Bruid","Henrietta","la","Clair",null,"Culemborg","Culemborg"]
[null,null,"T HenB NA 1-II",null,675,149,3,"??",4,1782,"Heicop",19,5,1782,"Everdingen","Bruidegom","Jan",null,"Brouwer",null,"Heicop","Heicop"]
[null,null,"T HenB NA 1-II",null,676,{"$f":"F678","v":149},{"$f":"G678","v":3},"??",4,{"$f":"J678","v":1782},"Heicop",19,5,1782,"Everdingen","Bruid","Grietje",null,"Peek",null,"Leerbroek","Everdingen"]
[null,null,"T HenB NA 1-II",null,677,149,4,"??",4,1782,"Schoonrewoerd",19,5,1782,"Heicop","Bruidegom","Gijsbert","van 't","Hart",null,"Schoonrewoerd","Schoonrewoerd",null," "]
[null,null,"T HenB NA 1-II",null,678,{"$f":"F680","v":149},{"$f":"G680","v":4},"??",4,{"$f":"J680","v":1782},"Lexmond",{"$f":"L680","v":19},{"$f":"M680","v":5},{"$f":"N680","v":1782},{"$f":"O680","v":"Heicop"},"Bruid","Johanna"," ","Hermelen","Johannessen","Vianen","Lakerveld",null,"Weduwe van Maarten Gerritsze Zijderveld"]
[null,null,"T HenB NA 1-II",null,679,149,5,5,7,1782,"Heicop",21,7,1782,"Heicop","Bruidegom","Frederik",null,"Lakerveld",null,"Vianen","Heicop",null," "]
[null,null,"T HenB NA 1-II",null,680,{"$f":"F682","v":149},{"$f":"G682","v":5},5,7,{"$f":"J682","v":1782},"Heicop",21,7,1782,"Heicop","Bruid","Grietje"," ","Vink",null,"Meerkerk","Heicop"]
[null,null,"T HenB NA 1-II",null,681,149,6,23,8,1782,"Heicop",15,9,1782,"Heicop","Bruidegom","Cornelis",null,"Oorschot",null,"Heicop","Giessendam",null," "]
[null,null,"T HenB NA 1-II",null,682,{"$f":"F684","v":149},{"$f":"G684","v":6},23,8,{"$f":"J684","v":1782},"Heicop",15,9,1782,"Heicop","Bruid","Christina Charlotte ","La","Clair",null,"Culemborg","Heicop",null,"Weduwe van Teunis Holl"]
[null,null,"T HenB NA 1-II",null,683,150,1,"??",10,1782,"Heicop",3,11,1782,"Vianen","Bruidegom","Pieter",null,"Maaswinkel",null,"Culemborg","Heicop",null,"weduwnaar van Maagjen Clkaessen Lakerveld"]
[null,null,"T HenB NA 1-II",null,684,{"$f":"F686","v":150},{"$f":"G686","v":1},"??",10,{"$f":"J686","v":1782},"Heicop",3,11,1782,"Vianen","Bruid","Elizabeth"," ","Versteeg",null,"Vianen","Vianen"]
[null,null,"T HenB NA 1-II",null,685,150,2,2,5,1783,"Heicop",25,5,1783,"Heicop","Bruidegom","Jan","van","Zenden",null,"Vreeswijk aan de Vaart","IJsselstein",null," "]
[null,null,"T HenB NA 1-II",null,686,{"$f":"F688","v":150},{"$f":"G688","v":2},2,5,{"$f":"J688","v":1783},"Heicop",25,5,1783,"Heicop","Bruid","Maaike"," ","Spinhoven",null,"Vreeswijk aan de Vaart","Heicop",null,"Weduwe van Cornelis de Vos"]
[null,null,"T HenB NA 1-II",null,687,150,3,16,1,1784,"Heicop",1,2,1784,"Heicop","Bruidegom","Jan","de","Jong","Dirkze","Noordeloos","Leerdam",null,"Weduwnaar van Neeltje Dogterom"]
[null,null,"T HenB NA 1-II",null,688,{"$f":"F690","v":150},{"$f":"G690","v":3},16,1,{"$f":"J690","v":1784},"Heicop",1,2,1784,"Heicop","Bruid","Susanna"," ","Storm","Willemsze","Heicop","Heicop"]
[null,null,"T HenB NA 1-II",null,689,150,4,4,4,1784,"Heicop","??",4,1784,null,"Bruidegom","Reijer",null,"Rozendaal","Willemze","Langerak","Langerak"]
[null,null,"T HenB NA 1-II",null,690,{"$f":"F692","v":150},{"$f":"G692","v":4},4,4,{"$f":"J692","v":1784},{"$f":"K692","v":"Heicop"},{"$f":"L692","v":"??"},{"$f":"M692","v":4},{"$f":"N692","v":1784},null,"Bruid","Annigje","de","Wild","Thomasz","Heicop","Langerak"]
[null,null,"T HenB NA 1-II",null,691,150,5,31,7,1784,"Heicop",15,8,1784,"Heicop","Bruidegom","Cornelis",null,"Pesselze",null,"Everdingen","Heicop",null," "]
[null,null,"T HenB NA 1-II",null,692,{"$f":"F694","v":150},{"$f":"G694","v":5},31,7,{"$f":"J694","v":1784},"Heicop",15,8,1784,"Heicop","Bruid","Neeltje "," ","Peek",null,"Zijderveld","Heicop",null,"Weduwe van Thomas Bogaard"]
[null,null,"T HenB NA 1-II",null,693,150,6,28,11,1784,"Heicop",null,null,null,"Heicop","Bruidegom","Folker","den ","Boer",null,"Zijderveld","Heicop",null," "]
[null,null,"T HenB NA 1-II",null,694,{"$f":"F696","v":150},{"$f":"G696","v":6},28,11,{"$f":"J696","v":1784},"Heicop",0,0,0,"Heicop","Bruid","Dirkje"," ","Middag",null,"Zijderveld","Zijderveld"]
[null,null,"T HenB NA 1-II",null,695,150,7,"??",7,1785,"Vianen",31,7,1785,"Heicop","Bruidegom","Jan","van","Alphen","Cornelisse ","Meerkerk","Vianen",null," "]
[null,null,"T HenB NA 1-II",null,696,{"$f":"F698","v":150},{"$f":"G698","v":7},"??",7,{"$f":"J698","v":1785},"Heicop",{"$f":"L698","v":31},{"$f":"M698","v":7},{"$f":"N698","v":1785},{"$f":"O698","v":"Heicop"},"Bruid","Grietje","de","Vos","Gerrritse","Heicop","Heicop"]
[null,null,"T HenB NA 1-II",null,697,150,8,null,null," "," ",25,9,1785,"Heicop","Bruidegom","Hendrik",null,"Middelkoop",null,"Heicop","Vianen",null," "]
[null,null,"T HenB NA 1-II",null,698,{"$f":"F700","v":150},{"$f":"G700","v":8},null,null,{"$f":"J700","v":" "}," ",25,9,1785,"Heicop","Bruid","Neeltje"," ","Lakerveld","Claesse","Vianen","Heicop"]
[null,null,"T HenB NA 1-II",null,699,151,1,null,null," "," ",9,10,1785,"Heicop","Bruidegom","Jan","de","Jong",null,"Lopikerkapel","Lexmond",null," "]
[null,null,"T HenB NA 1-II",null,700,{"$f":"F702","v":151},{"$f":"G702","v":1},null,null,{"$f":"J702","v":" "}," ",9,10,1785,"Heicop","Bruid","Grietje"," ","Storm","Willemze","Heicop","Heicop"]
[null,null,"T HenB NA 1-II",null,701,151,2,3,1,1786,"Heicop",29,1,1786,"Heicop","Bruidegom","Dirk",null,"Schoonenberg",null,"Lexmond","Lexmond",null," "]
[null,null,"T HenB NA 1-II",null,702,{"$f":"F704","v":151},{"$f":"G704","v":2},3,1,{"$f":"J704","v":1786},{"$f":"K704","v":"Heicop"},{"$f":"L704","v":29},{"$f":"M704","v":1},1786,{"$f":"O704","v":"Heicop"},"Bruid","Neeltje"," ","Brouwer",null,"Heicop","Heicop"]
[null,null,"T HenB NA 1-II",null,703,151,3,"??",1,1786,"Vianen",26,1,1786,"Heicop","Bruidegom","Pieter",null,"Vroon",null,"Vianen","Vianen",null," "]
[null,null,"T HenB NA 1-II",null,704,{"$f":"F706","v":151},{"$f":"G706","v":3},"??",1,{"$f":"J706","v":1786},"Heicop",{"$f":"L706","v":26},{"$f":"M706","v":1},{"$f":"N706","v":1786},{"$f":"O706","v":"Heicop"},"Bruid","Herminkje","van","Ewijk",null,"Heicop","Heicop"]
[null,null,"T HenB NA 1-II",null,705,151,4,null,null,null,"Heicop",8,3,1786,"Nijmegen","Bruidegom","Everhard Francois",null,"Temminck",null,null,null,null,"Weduwnaar van Anna den Tex (4 jaar)"]
[null,null,"T HenB NA 1-II",null,706,{"$f":"F708","v":151},{"$f":"G708","v":4},null,null,{"$f":"J708","v":0},null,{"$f":"L708","v":8},{"$f":"M708","v":3},{"$f":"N708","v":1786},{"$f":"O708","v":"Nijmegen"},"Bruid","Susanna","de","Maillart Pleinchamps",null,null,null,null,"JD Dochter van Daniel Maillart de Pleinchamps Pred.Walschen Gem.Nijmegen"]
[null,null,"T HenB NA 1-II",null,707,151,5,23,2,1787,"Leerbroek",11,3,1787,"Heicop","Bruidegom","Cornelis",null,"Brouwer","Frederikze","Leerbroek","Leerbroek"]
[null,null,"T HenB NA 1-II",null,708,{"$f":"F710","v":151},{"$f":"G710","v":5},23,2,{"$f":"J710","v":1787},"Heicop",{"$f":"L710","v":11},{"$f":"M710","v":3},{"$f":"N710","v":1787},{"$f":"O710","v":"Heicop"},"Bruid","Jannigje"," ","Zijderveld","Janzen","Zijderveld","Heicop"]
[null,null,"T HenB NA 1-II",null,709,151,6,null,null," "," ",23,9,1787,"Heicop","Bruidegom","Gerrit",null,"Rook","Ariensz","Ouderkerk aan den IJssel","Ouderkerk aan den IJssel",null,"op volledige attestatie"]
[null,null,"T HenB NA 1-II",null,710,{"$f":"F712","v":151},{"$f":"G712","v":6},null,null,{"$f":"J712","v":" "}," ",23,9,1787,"Heicop","Bruid","Susanna","van","Zanten","Roelofze","Lexmond","Lexmond"]
[null,null,"T HenB NA 1-II",null,711,151,7,null,null," "," ",10,2,1788,"Heicop","Bruidegom","Peter",null,"Zijderveld",null,"Heicop","Heicop",null,"Weduwnaar van Aartje Evertze Middelkoop"]
[null,null,"T HenB NA 1-II",null,712,{"$f":"F714","v":151},{"$f":"G714","v":7},null,null,{"$f":"J714","v":" "}," ",10,2,1788,"Heicop","Bruid","Engeltje"," ","Vink",null,"Schoonrewoerd","Heicop"]
[null,null,"T HenB NA 1-II",null,713,152,1,null,null," "," ",10,8,1788,"Heicop","Bruidegom","Jan",null,"Kers",null,"Heicop","Heicop",null," "]
[null,null,"T HenB NA 1-II",null,714,{"$f":"F716","v":152},{"$f":"G716","v":1},null,null,{"$f":"J716","v":" "}," ",10,8,1788,"Heicop","Bruid","Annigje","van","Oostrum",null,"Heicop","Heicop"]
[null,null,"T HenB NA 1-II",null,715,152,2,null,null," "," ",24,8,1788,"Heicop","Bruidegom","Jan","van der","Leeden",null,"Leerdam","Heicop",null," "]
[null,null,"T HenB NA 1-II",null,716,{"$f":"F718","v":152},{"$f":"G718","v":2},null,null,{"$f":"J718","v":" "}," ",24,8,1788,"Heicop","Bruid","Marigje","den","Wild",null,"Heicop","Heicop"]
[null,null,"T HenB NA 1-II",null,717,152,3,null,null," "," ",7,9,1788,"Vianen","Bruidegom","Jacob","van","Karssen",null,"Nieuwland","Heicop",null," "]
[null,null,"T HenB NA 1-II",null,718,{"$f":"F720","v":152},{"$f":"G720","v":3},null,null,{"$f":"J720","v":" "},{"$f":"K720","v":" "},{"$f":"L720","v":7},{"$f":"M720","v":9},{"$f":"N720","v":1788},"Vianen","Bruid","Ariaantje",null,"Boekweijt",null,"Vianen","Vianen",null,"weduwe van Jacob van Gelderen"]
[null,null,"T HenB NA 1-II",null,719,152,4,null,null," "," ",21,9,1788,"Heicop","Bruidegom","Johannes","van","Delft",null,"Lexmond","Heicop",null," "]
[null,null,"T HenB NA 1-II",null,720,{"$f":"F722","v":152},{"$f":"G722","v":4},null,null,{"$f":"J722","v":" "}," ",21,9,1788,"Heicop","Bruid","Marigje"," ","Noorland",null,"Langerak","Heicop",null,"Weduwe van Arie Middelkoop"]
[null,null,"T HenB NA 1-II",null,721,152,5,null,null," ","Maarssen",21,9,1788,"Heicop","Bruidegom","Evert ",null,"Schuurman",null,"Maarssen","Maarssenbroek",null," "]
[null,null,"T HenB NA 1-II",null,722,{"$f":"F724","v":152},{"$f":"G724","v":5},null,null,{"$f":"J724","v":" "},"Maarssen",21,9,1788,"Heicop","Bruid","Fijtje"," ","Heicop","Janzen","Heicop","Maarssenbroek"]
[null,null,"T HenB NA 1-II",null,723,152,6,6,6,1789,"Heicop",12,7,1789,"Heicop","Bruidegom","Jan",null,"Hopman",null,"Heicop","Heicop",null,"Weduwnaar van Dirkje van Os"]
[null,null,"T HenB NA 1-II",null,724,{"$f":"F726","v":152},{"$f":"G726","v":6},6,6,{"$f":"J726","v":1789},"Heicop",12,7,1789,"Heicop","Bruid","Pleuntje"," ","Langstraten",null,"Charlois","Rotterdam"]
[null,null,"T HenB NA 1-II",null,725,152,7,18,7,1789,"Heicop",4,8,1789,"Heicop","Bruidegom","Klaas",null,"Vermeer",null,"Tiel","Heicop",null,"Schoolmeester"]
[null,null,"T HenB NA 1-II",null,726,{"$f":"F728","v":152},{"$f":"G728","v":7},18,7,{"$f":"J728","v":1789},"Heicop",4,8,1789,"Heicop","Bruid","Johanna Maria","van der","Vlugt",null,"Heerenwaarden","Heerenwaarden"]
[null,null,"T HenB NA 1-II",null,727,153,1,null,null," "," ",8,11,1789,"Heicop","Bruidegom","Gerrit","den","Hartog",null,"Schoonrewoerd","Schoonrewoerd",null," "]
[null,null,"T HenB NA 1-II",null,728,{"$f":"F730","v":153},{"$f":"G730","v":1},null,null,{"$f":"J730","v":" "}," ",8,11,1789,"Heicop","Bruid","Johanna"," ","Vrolijk",null,"Heicop","Heicop"]
[null,null,"T HenB NA 1-II",null,729,153,2,16,4,1790,"Heicop",2,5,1790,"Heicop","Bruidegom","Gijsbert","de","Vor",null,"Helsdingen, Vianen","Helsdingen, Vianen",null," "]
[null,null,"T HenB NA 1-II",null,730,{"$f":"F732","v":153},{"$f":"G732","v":2},16,4,{"$f":"J732","v":1790},"Heicop",2,5,1790,"Heicop","Bruid","Hendrikje","de","With",null,"Heicop","Heicop"]
[null,null,"T HenB NA 1-II",null,731,153,3,17,4,1790,"Heicop",9,5,1790,"Heicop","Bruidegom","Frederik",null,"Vink",null,"Meerkerk","Heicop",null," "]
[null,null,"T HenB NA 1-II",null,732,{"$f":"F734","v":153},{"$f":"G734","v":3},17,4,{"$f":"J734","v":1790},"Heicop",9,5,1790,"Heicop","Bruid","Maria"," ","Bogaard",null,"Noord-Polsbroek","Heicop"]
[null,null,"T HenB NA 1-II",null,733,153,4,null,null,null,"Heicop",2,5,1790,"Lexmond","Bruidegom","Jasper",null,"Bogaard",null,"Heicop","Heicop",null,"Weduwnaar van Neeltje van Buuren"]
[null,null,"T HenB NA 1-II",null,734,{"$f":"F736","v":153},{"$f":"G736","v":4},null,null,null,{"$f":"K736","v":"Heicop"},{"$f":"L736","v":2},{"$f":"M736","v":5},{"$f":"N736","v":1790},{"$f":"O736","v":"Lexmond"},"Bruid","Lijsbet",null,"Verhoef",null,"Lakerveld","Heicop",null,"Weduwe van Willem van Scherpenzeel"]
[null,null,"T HenB NA 1-II",null,735,153,5,null,null,null,"Heicop","??",5,1790,"Heicop","Bruidegom","Jan",null,"Hol",null,"Heicop","Heicop"]
[null,null,"T HenB NA 1-II",null,736,{"$f":"F738","v":153},{"$f":"G738","v":5},null,null,null,{"$f":"K738","v":"Heicop"},{"$f":"L738","v":"??"},{"$f":"M738","v":5},{"$f":"N738","v":1790},{"$f":"O738","v":"Heicop"},"Bruid","Antonia Catarina","van","Harpen",null,"Wijk bij Duurstede ","Heicop"]
[null,null,"T HenB NA 1-II",null,737,153,6,23,10,1790,"Heicop",7,11,1790,"Heicop","Bruidegom","Willem",null,"Brouwer",null,"Heicop","Heicop",null," "]
[null,null,"T HenB NA 1-II",null,738,{"$f":"F740","v":153},{"$f":"G740","v":6},23,10,{"$f":"J740","v":1790},"Heicop",7,11,1790,"Heicop","Bruid","Grietje","de","Jongh",null,"Schoonrewoerd","Heicop",null,"Weduwe van Arie van Eck"]
[null,null,"T HenB NA 1-II",null,739,153,7,null,null,null,"Heicop","??",4,1792,"Heicop","Bruidegom","Abraham","van den","Berg",null,"Schoonrewoerd","Heicop",null," "]
[null,null,"T HenB NA 1-II",null,740,{"$f":"F742","v":153},{"$f":"G742","v":7},null,null,null,{"$f":"K742","v":"Heicop"},{"$f":"L742","v":"??"},{"$f":"M742","v":4},{"$f":"N742","v":1792},{"$f":"O742","v":"Heicop"},"Bruid","Neeltje",null,"Middag",null,"Hoornaar","Hoornaar"]
[null,null,"T HenB NA 1-II",null,741,154,1,null,null," "," ",2,9,1792,"Heicop","Bruidegom","Gijsbert","de","Wild",null,"Heicop","Heicop",null,"Weduwnaar van Maagje Bogaard"]
[null,null,"T HenB NA 1-II",null,742,{"$f":"F744","v":154},{"$f":"G744","v":1},null,null,{"$f":"J744","v":" "}," ",2,9,1792,"Heicop","Bruid","Annigje","van","Zoelen",null,"Beusichem","Heicop"]
[null,null,"T HenB NA 1-II",null,743,154,2,null,null," "," ",11,3,1793,"Heicop","Bruidegom","Johannes","van","Delft",null,"Lexmond","Heicop",null,"Weduwnaar van Marigje Noorland"]
[null,null,"T HenB NA 1-II",null,744,{"$f":"F746","v":154},{"$f":"G746","v":2},null,null,{"$f":"J746","v":" "}," ",11,3,1793,"Heicop","Bruid","Adriana"," ","Brugman",null,"Heicop","Heicop"]
[null,null,"T HenB NA 1-II",null,745,154,3,null,null," "," ",11,3,1793,"Heicop","Bruidegom","Louw ","van","Breningen",null,"Lopik ","Lopik",null," "]
[null,null,"T HenB NA 1-II",null,746,{"$f":"F748","v":154},{"$f":"G748","v":3},null,null,{"$f":"J748","v":" "}," ",11,3,1793,"Heicop","Bruid","Annigje"," ","Vogel",null,"Heicop","Lopik"]
[null,null,"T HenB NA 1-II",null,747,155,1,14,3,1794,"Heicop",21,4,1794,"Heicop","Bruidegom","Pieter",null,"Makop",null,"Heicop","Heicop",null," "]
[null,null,"T HenB NA 1-II",null,748,{"$f":"F750","v":155},{"$f":"G750","v":1},14,3,{"$f":"J750","v":1794},"Heicop",21,4,1794,"Heicop","Bruid","Annigje"," ","Verhoef","Thomassen","Vianen","Heicop"]
[null,null,"T HenB NA 1-II",null,749,155,2,18,4,1794,"Heicop",4,5,1794,"Heicop","Bruidegom","Dirk","den","Braven","Janszn","Heicop","Heicop",null," "]
[null,null,"T HenB NA 1-II",null,750,{"$f":"F752","v":155},{"$f":"G752","v":2},18,4,{"$f":"J752","v":1794},"Heicop",4,5,1794,"Heicop","Bruid","Heiltje"," ","Bogaard",null,"Leerdam","Lexmond"]
[null,null,"T HenB NA 1-II",null,751,155,3,null,null," "," ",16,6,1794,"Heicop","Bruidegom","Cornelis ","de","Ridder",null,"Culemborg","Culemborg",null," "]
[null,null,"T HenB NA 1-II",null,752,{"$f":"F754","v":155},{"$f":"G754","v":3},null,null,{"$f":"J754","v":" "}," ",16,6,1794,"Heicop","Bruid","Wilhelmina "," ","Verhagen",null,"Heicop","Culemborg"]
[null,null,"T HenB NA 1-II",null,753,155,4,1,11,1794,"Heicop",19,11,1794,"Heicop","Bruidegom","Gerrit",null,"Brouwer",null,"Leerbroek","Leerbroek",null," "]
[null,null,"T HenB NA 1-II",null,754,{"$f":"F756","v":155},{"$f":"G756","v":4},1,11,{"$f":"J756","v":1794},"Heicop",19,11,1794,"Heicop","Bruid","Cornelia"," ","Zijderveld",null,"Heicop","Heicop"]
[null,null,"T HenB NA 1-II",null,755,155,5,21,3,1795,"Heicop",12,4,1795,"Heicop","Bruidegom","Peter",null,"Zijderveld",null,"Heicop","Heicop",null,"Weduwnaar van Engeltje Vink"]
[null,null,"T HenB NA 1-II",null,756,{"$f":"F758","v":155},{"$f":"G758","v":5},21,3,{"$f":"J758","v":1795},"Heicop",12,4,1795,"Heicop","Bruid","Antonette","de","Stigter",null,"Heicop","Schoonrewoerd",null,"Weduwe van Gerrit de Jong"]
[null,null,"T HenB NA 1-II",null,757,155,6,25,4,1795,"Heicop",10,5,1795,"Heicop","Bruidegom","Cornelis","den","Braven",null,"Heicop","Heicop",null," "]
[null,null,"T HenB NA 1-II",null,758,{"$f":"F760","v":155},{"$f":"G760","v":6},25,4,{"$f":"J760","v":1795},"Heicop",10,5,1795,"Heicop","Bruid","Hermtje","de","Vos",null,"Heicop","Heicop"]
[null,null,"T HenB NA 1-II",null,759,155,7,6,5,1795,"Heicop",31,5,1795,"Heicop","Bruidegom","Pieter",null,"Korporaal",null,"Lekkerland","Alblasserdam",null," "]
[null,null,"T HenB NA 1-II",null,760,{"$f":"F762","v":155},{"$f":"G762","v":7},6,5,{"$f":"J762","v":1795},"Heicop",31,5,1795,"Heicop","Bruid","Beligje","de","Wild",null,"Heicop","Sliedrecht"]
[null,null,"T HenB NA 1-II",null,761,156,1,15,5,1795,"Lexmond",31,5,1795,"Lexmond","Bruidegom","Teunis","van","Dieren",null,"Leksmond","Leksmond",null," "]
[null,null,"T HenB NA 1-II",null,762,{"$f":"F764","v":156},{"$f":"G764","v":1},15,5,{"$f":"J764","v":1795},"Lexmond",31,5,1795,"Lexmond","Bruid","Willemijntje","van","Os",null,"Zijderveld","Lexmond"]
[null,null,"T HenB NA 1-II",null,763,156,2,null,null," "," ",24,4,1796,"Heicop","Bruidegom","Bastiaan ",null,"Langerak",null,"Lopikerkapel","Lopikerkapel",null,"Voor municipaliteit getrouwd op 22-4-1796"]
[null,null,"T HenB NA 1-II",null,764,{"$f":"F766","v":156},{"$f":"G766","v":2},null,null,{"$f":"J766","v":" "}," ",24,4,1796,"Heicop","Bruid","Aaltje","van","Loon",null,"Heicop","Heicop"]
[null,null,"T HenB NA 1-II",null,765,156,3,null,null," "," ",12,6,1796,"Heicop","Bruidegom","Gijsbert",null,"Bloemendaal",null,"Zwammerdam","Heicop",null,"Voor municipaliteit getrouwd op 12-6-1796"]
[null,null,"T HenB NA 1-II",null,766,{"$f":"F768","v":156},{"$f":"G768","v":3},null,null,{"$f":"J768","v":" "}," ",12,6,1796,"Heicop","Bruid","Neeltje","de","With",null,"Heicop","Heicop"]
[null,null,"T HenB NA 1-II",null,767,156,4,null,null," "," ",2,4,1797,"Heicop","Bruidegom","Dirk ","den","Hartog",null,"Zijderveld","Schoonrewoerd",null,"Voor municipaliteit getrouwd op 2-4-1797"]
[null,null,"T HenB NA 1-II",null,768,{"$f":"F770","v":156},{"$f":"G770","v":4},null,null,{"$f":"J770","v":" "}," ",2,4,1797,"Heicop","Bruid","Grietje","van","Ewijk",null,"Heicop","Heicop",null,"Weduwe van Johannes Brouwer"]
[null,null,"T HenB NA 1-II",null,769,156,5,null,null," "," ",25,2,1798,"Heicop","Bruidegom","Maarten",null,"Bronkhorst",null,"Zijderveld","Heicop",null,"Voor municipaliteit getrouwd op 23-2-1798"]
[null,null,"T HenB NA 1-II",null,770,{"$f":"F772","v":156},{"$f":"G772","v":5},null,null,{"$f":"J772","v":" "}," ",25,2,1798,"Heicop","Bruid","Maaike","van","Rhijn",null,"Oosterwijk","Heicop"]
[null,null,"T HenB NA 1-II",null,771,158,1,null,null," "," ",15,7,1798,"Heicop","Bruidegom","Willem","van","Benthem",null,"Lexmond","Lakerveld",null,"Voor municipaliteit getrouwd op 12-7-1798"]
[null,null,"T HenB NA 1-II",null,772,{"$f":"F774","v":158},{"$f":"G774","v":1},null,null,{"$f":"J774","v":" "}," ",15,7,1798,"Heicop","Bruid","Maaike","van","Brugge",null,"Nieuwland","Heicop"]
[null,null,"T HenB NA 1-II",null,773,158,2,null,null," "," ",15,7,1798,"Heicop","Bruidegom","Hendrik",null,"Veen",null,"Lexmond","Kortenhoeven",null,"Voor municipaliteit getrouwd op 12-7-1798"]
[null,null,"T HenB NA 1-II",null,774,{"$f":"F776","v":158},{"$f":"G776","v":2},null,null,{"$f":"J776","v":" "}," ",15,7,1798,"Heicop","Bruid","Teuntje","den","Hartog",null,"Heicop","Heicop"]
[null,null,"T HenB NA 1-II",null,775,158,3,null,null," "," ",8,5,1803,"Heicop","Bruidegom","Aart ","van","Nek",null,"Lexmond","Heicop",null,"Voor municipaliteit getrouwd op 6-5-1803"]
[null,null,"T HenB NA 1-II",null,776,{"$f":"F778","v":158},{"$f":"G778","v":3},null,null,{"$f":"J778","v":" "}," ",8,5,1803,"Heicop","Bruid","Willempje ","van","Os",null,"Heicop","Heicop"]
[null,null,"T HenB NA 1-II",null,777,158,4,null,null," "," ",1,1,1804,"Heicop","Bruidegom","Willem",null,"Bogaard",null,"Heicop","Heicop",null,"Gerechtelijk getrouwd op 30-12-1803"]
[null,null,"T HenB NA 1-II",null,778,{"$f":"F780","v":158},{"$f":"G780","v":4},null,null,{"$f":"J780","v":" "}," ",1,1,1804,"Heicop","Bruid","Grietje","van den","Berg",null,"Schoonrewoerd","Heicop"]
[null,null,"T HenB NA 1-II",null,779,158,5,null,null," ",null,27,4,1804,"Heicop","Bruidegom","Floris",null,"Bikker",null," "," ",null,"Gerechtelijk getrouwd op 27-4-1804"]
[null,null,"T HenB NA 1-II",null,780,{"$f":"F782","v":158},{"$f":"G782","v":5},null,null,{"$f":"J782","v":" "},0,27,4,1804,"Heicop","Bruid","Maaijke","de","With",null," "," "]
[null,null,"T HenB NA 1-II",null,781,158,6,null,null," "," ",27,4,1804,"Heicop","Bruidegom","Cornelis",null,"Vink","Jansz."," "," ",null,"Gerechtelijk getrouwd op 27-4-1804"]
[null,null,"T HenB NA 1-II",null,782,{"$f":"F784","v":158},{"$f":"G784","v":6},null,null,{"$f":"J784","v":" "}," ",27,4,1804,"Heicop","Bruid","Grietje"," ","Sprong",null," "," "]
[null,null,"T HenB NA 1-II",null,783,158,7,null,null," "," ",19,10,1806,"Heicop","Bruidegom","Jacob","de","Wild","Thomasse ","Heicop","Heicop",null,"Gerechtelijk getrouwd op 17-10-1806"]
[null,null,"T HenB NA 1-II",null,784,{"$f":"F786","v":158},{"$f":"G786","v":7},null,null,{"$f":"J786","v":" "}," ",19,10,1806,"Heicop","Bruid","Annigje"," ","Zijderveld",null,"Heicop","Heicop"]
[null,null,"T HenB NA 1-II",null,785,159,1,null,null," "," ",10,5,1807,"Heicop","Bruidegom","Govert ","de","With",null,"Heicop","Heicop",null,"Gerechtelijk getrouwd op 8-5-1807"]
[null,null,"T HenB NA 1-II",null,786,{"$f":"F788","v":159},{"$f":"G788","v":1},null,null,{"$f":"J788","v":" "}," ",10,5,1807,"Heicop","Bruid","Geertje","t","Lam",null,"Leerdam","Heicop"]
[null,null,"T HenB NA 1-II",null,787,159,2,null,null," "," ",9,6,1810,"Heicop","Bruidegom","Christiaan",null,"Lasonder",null,"Amsterdam","Amsterdam",null,"Gerechtelijk getrouwd op 9-6-1810"]
[null,null,"T HenB NA 1-II",null,788,{"$f":"F790","v":159},{"$f":"G790","v":2},null,null,{"$f":"J790","v":" "}," ",9,6,1810,"Heicop","Bruid","Anna Sara","van","Hall",null,"Vianen","Heicop",null,"Dochter van tegenwoordige Ambachtsvrouwe"]